BODY,BODY NAME,SUPPLIER CODE,SUPPLIER NAME,TRANSACTION NUMBER,INVOICE DATE,THEIR REF,NARR1,PAID DATE,VAT AMOUNT,EXCLUSIVE AMOUNT,INCLUSIVE AMOUNT,EXPENSE AREA,EXPENSE TYPE,EXPENSE CODE
http://statistics.data.gov.uk/id/local-authority/12UE,Huntingdonshire District Council,202959,5Day (Norwich) Ltd,64051,22/04/2022,PS-LW5P5,5 DAY INTENSIVE COURSE,12/05/2022,168.33,841.67,1010,Domestic Waste Collection,Staff Development And Training,60115
http://statistics.data.gov.uk/id/local-authority/12UE,Huntingdonshire District Council,202959,5Day (Norwich) Ltd,64052,22/04/2022,PE-MBPMJ,REDACTED,12/05/2022,168.33,841.67,1010,Domestic Waste Collection,Staff Development And Training,60115
http://statistics.data.gov.uk/id/local-authority/12UE,Huntingdonshire District Council,202959,5Day (Norwich) Ltd,65341,11/05/2022,REDACTED,REDACTED,01/06/2022,168.33,841.67,1010,Domestic Waste Collection,Staff Development And Training,60115
http://statistics.data.gov.uk/id/local-authority/12UE,Huntingdonshire District Council,201106,A & C ENERGY SURVEYS LTD,63986,06/05/2022,2883,ops 2 stonehill,09/05/2022,0,399,399,Commercial Investment Strategy,Consultancy Fees,62400
http://statistics.data.gov.uk/id/local-authority/12UE,Huntingdonshire District Council,200000,A C COMMERCIALS A C COMMERCIALS,66423,27/05/2022,INV0017322,Dewalt Wrench,30/06/2022,53,265,318,Domestic Waste Collection,Equipment,61713
http://statistics.data.gov.uk/id/local-authority/12UE,Huntingdonshire District Council,200000,A C COMMERCIALS A C COMMERCIALS,61943,22/03/2022,INV0016415,OPS GRAVITY FEED,13/04/2022,184.5,922.5,1107,Domestic Waste Collection,Vehicle Repairs And Maintenance,60904
http://statistics.data.gov.uk/id/local-authority/12UE,Huntingdonshire District Council,200000,A C COMMERCIALS A C COMMERCIALS,64223,29/04/2022,INV0016938,50kg Grease,26/05/2022,14.7,73.48,88.18,Domestic Waste Collection,Vehicle Repairs And Maintenance,60904
http://statistics.data.gov.uk/id/local-authority/12UE,Huntingdonshire District Council,200000,A C COMMERCIALS A C COMMERCIALS,66433,27/05/2022,INV0017335,Truck/Screen Wash,30/06/2022,15.67,78.37,94.04,Domestic Waste Collection,Vehicle Repairs And Maintenance,60904
http://statistics.data.gov.uk/id/local-authority/12UE,Huntingdonshire District Council,200000,A C COMMERCIALS A C COMMERCIALS,61943,22/03/2022,INV0016415,OPS GRAVITY FEED,13/04/2022,184.5,922.5,1107,Green Waste Collection,Vehicle Repairs And Maintenance,60904
http://statistics.data.gov.uk/id/local-authority/12UE,Huntingdonshire District Council,200000,A C COMMERCIALS A C COMMERCIALS,64223,29/04/2022,INV0016938,50kg Grease,26/05/2022,14.7,73.48,88.18,Green Waste Collection,Vehicle Repairs And Maintenance,60904
http://statistics.data.gov.uk/id/local-authority/12UE,Huntingdonshire District Council,200000,A C COMMERCIALS A C COMMERCIALS,66433,27/05/2022,INV0017335,Truck/Screen Wash,30/06/2022,13.06,65.32,78.38,Green Waste Collection,Vehicle Repairs And Maintenance,60904
http://statistics.data.gov.uk/id/local-authority/12UE,Huntingdonshire District Council,200000,A C COMMERCIALS A C COMMERCIALS,61943,22/03/2022,INV0016415,OPS GRAVITY FEED,13/04/2022,73.8,369,442.8,Grounds Maintenance,Vehicle Repairs And Maintenance,60904
http://statistics.data.gov.uk/id/local-authority/12UE,Huntingdonshire District Council,200000,A C COMMERCIALS A C COMMERCIALS,66433,27/05/2022,INV0017335,Truck/Screen Wash,30/06/2022,2.61,13.07,15.68,Grounds Maintenance,Vehicle Repairs And Maintenance,60904
http://statistics.data.gov.uk/id/local-authority/12UE,Huntingdonshire District Council,200000,A C COMMERCIALS A C COMMERCIALS,64276,06/05/2022,INV0017043,Seat Compressor,01/06/2022,26.1,130.5,156.6,Grounds Maintenance,Vehicle Repairs And Maintenance,60904
http://statistics.data.gov.uk/id/local-authority/12UE,Huntingdonshire District Council,200000,A C COMMERCIALS A C COMMERCIALS,64276,06/05/2022,INV0017043,Seat Compressor,01/06/2022,26.1,130.5,156.6,Grounds Maintenance,Vehicle Repairs And Maintenance,60904
http://statistics.data.gov.uk/id/local-authority/12UE,Huntingdonshire District Council,200000,A C COMMERCIALS A C COMMERCIALS,66433,27/05/2022,INV0017335,Truck/Screen Wash,30/06/2022,2.61,13.06,15.67,Pool Cars,Vehicle Repairs And Maintenance,60904
http://statistics.data.gov.uk/id/local-authority/12UE,Huntingdonshire District Council,200000,A C COMMERCIALS A C COMMERCIALS,61943,22/03/2022,INV0016415,OPS GRAVITY FEED,13/04/2022,184.5,922.5,1107,Recycling Collections,Vehicle Repairs And Maintenance,60904
http://statistics.data.gov.uk/id/local-authority/12UE,Huntingdonshire District Council,200000,A C COMMERCIALS A C COMMERCIALS,64223,29/04/2022,INV0016938,50kg Grease,26/05/2022,14.7,73.48,88.18,Recycling Collections,Vehicle Repairs And Maintenance,60904
http://statistics.data.gov.uk/id/local-authority/12UE,Huntingdonshire District Council,200000,A C COMMERCIALS A C COMMERCIALS,66433,27/05/2022,INV0017335,Truck/Screen Wash,30/06/2022,15.68,78.37,94.05,Recycling Collections,Vehicle Repairs And Maintenance,60904
http://statistics.data.gov.uk/id/local-authority/12UE,Huntingdonshire District Council,200000,A C COMMERCIALS A C COMMERCIALS,63091,17/03/2022,INV0016340,VN66CBY Battery,21/04/2022,64.38,321.88,386.26,Recycling Collections,Vehicle Repairs And Maintenance,60904
http://statistics.data.gov.uk/id/local-authority/12UE,Huntingdonshire District Council,200000,A C COMMERCIALS A C COMMERCIALS,61943,22/03/2022,INV0016415,OPS GRAVITY FEED,13/04/2022,110.7,553.5,664.2,Street Cleansing,Vehicle Repairs And Maintenance,60904
http://statistics.data.gov.uk/id/local-authority/12UE,Huntingdonshire District Council,200000,A C COMMERCIALS A C COMMERCIALS,64223,29/04/2022,INV0016938,50kg Grease,26/05/2022,14.7,73.48,88.18,Street Cleansing,Vehicle Repairs And Maintenance,60904
http://statistics.data.gov.uk/id/local-authority/12UE,Huntingdonshire District Council,200000,A C COMMERCIALS A C COMMERCIALS,66433,27/05/2022,INV0017335,Truck/Screen Wash,30/06/2022,2.61,13.06,15.67,Street Cleansing,Vehicle Repairs And Maintenance,60904
http://statistics.data.gov.uk/id/local-authority/12UE,Huntingdonshire District Council,200000,A C COMMERCIALS A C COMMERCIALS,62686,29/03/2022,INV0016516,Grease/Pump,21/04/2022,65.56,327.82,393.38,Vehicle Maintenance,Materials,61709
http://statistics.data.gov.uk/id/local-authority/12UE,Huntingdonshire District Council,200005,ABBEY COLLEGE ABBEY COLLEGE,61581,21/03/2022,1169,OLR Water Recharge Sep21-Mar22,13/04/2022,133.47,667.35,800.82,OLR - Site & Centre Management,Water And Sewerage,60302
http://statistics.data.gov.uk/id/local-authority/12UE,Huntingdonshire District Council,201618,ABBEY ROOFING,63438,11/03/2022,11769,MSCP Gutter Repairs,28/04/2022,72,360,432,MSCP (HUN),Maintenance - Building,60201
http://statistics.data.gov.uk/id/local-authority/12UE,Huntingdonshire District Council,201195,Abbots Ripton  Parish Council,63400,27/04/2022,PARISH PRECEPT APR 22,Parish Precept - April 2022,27/04/2022,0,11000,11000,P C Precept Abbots Ripton,Precepts,66301
http://statistics.data.gov.uk/id/local-authority/12UE,Huntingdonshire District Council,201196,Abbotsley Parish Council,63400,27/04/2022,PARISH PRECEPT APR 22,Parish Precept - April 2022,27/04/2022,0,16540,16540,P C Precept Abbotsley,Precepts,66301
http://statistics.data.gov.uk/id/local-authority/12UE,Huntingdonshire District Council,201727,ABBOTSLEY VILLAGE HALL,64513,05/05/2022,HALL HIRE MAY22,Elections Hall Hire 05.05.22,30/06/2022,0,250,250,District Elections,Premises Hire - Facilities,60402
http://statistics.data.gov.uk/id/local-authority/12UE,Huntingdonshire District Council,200009,ABC FOOD LAW LTD ABC FOOD LAW LTD,62637,04/04/2022,INV-2838,Online Subscription,28/04/2022,39,195,234,Food Safety General,Membership And Subscriptions,64800
http://statistics.data.gov.uk/id/local-authority/12UE,Huntingdonshire District Council,200009,ABC FOOD LAW LTD ABC FOOD LAW LTD,62637,04/04/2022,INV-2838,Online Subscription,28/04/2022,39,195,234,Food Safety General,Membership And Subscriptions,64800
http://statistics.data.gov.uk/id/local-authority/12UE,Huntingdonshire District Council,202919,Acas,61679,23/03/2022,05/17867,Staff Training & Development,13/04/2022,0,2055,2055,HR Services,Staff Development And Training,60115
http://statistics.data.gov.uk/id/local-authority/12UE,Huntingdonshire District Council,200017,ACCESS & AUTOMATION LTD ACCESS & AUTOMATION LTD,65694,05/05/2022,7349,ciha window opener,13/06/2022,0,850,850,Disables Facilities Grants,Mandatory Grants,64601
http://statistics.data.gov.uk/id/local-authority/12UE,Huntingdonshire District Council,202754,ACCESS INTELLIGENCE MEDIA & COMMUNICATIONS LIMITED,65190,27/05/2022,INV41188,3CICT JUN 22-MAY 23,23/06/2022,1350,6750,8100,3CICT NON STAFF HOLDING ACCOUNT,Ict Software,64071
http://statistics.data.gov.uk/id/local-authority/12UE,Huntingdonshire District Council,201003,ACEBENCH LIMITED,64198,25/04/2022,3249,ESTATES INSURANCE,12/05/2022,0,25497.18,25497.18,Industrial Properties,Premises Insurance Premiums,60600
http://statistics.data.gov.uk/id/local-authority/12UE,Huntingdonshire District Council,202766,ACI REPORTS LIMITED,65744,25/01/2022,34708,building compliance certificate,13/06/2022,129,645,774,Eastfield House,Maintenance - Building,60201
http://statistics.data.gov.uk/id/local-authority/12UE,Huntingdonshire District Council,202766,ACI REPORTS LIMITED,65744,25/01/2022,34708,building compliance certificate,13/06/2022,99,495,594,OLH - Site & Centre Management,Maintenance - Building,60201
http://statistics.data.gov.uk/id/local-authority/12UE,Huntingdonshire District Council,202766,ACI REPORTS LIMITED,65744,25/01/2022,34708,building compliance certificate,13/06/2022,108,540,648,OLSI - Site & Centre Management,Maintenance - Building,60201
http://statistics.data.gov.uk/id/local-authority/12UE,Huntingdonshire District Council,202766,ACI REPORTS LIMITED,65744,25/01/2022,34708,building compliance certificate,13/06/2022,41,205,246,OLSIO - Site & Centre Management,Maintenance - Building,60201
http://statistics.data.gov.uk/id/local-authority/12UE,Huntingdonshire District Council,202766,ACI REPORTS LIMITED,65744,25/01/2022,34708,building compliance certificate,13/06/2022,99,495,594,OLSN - Site & Centre Management,Maintenance - Building,60201
http://statistics.data.gov.uk/id/local-authority/12UE,Huntingdonshire District Council,202766,ACI REPORTS LIMITED,65744,25/01/2022,34708,building compliance certificate,13/06/2022,199,995,1194,Pathfinder House,Maintenance - Building,60201
http://statistics.data.gov.uk/id/local-authority/12UE,Huntingdonshire District Council,200028,AEBI SCHMIDT AEBI SCHMIDT,61602,14/03/2022,60278271,AF16HJG Repair Engine Oil Leak,07/04/2022,275.28,1376.4,1651.68,Street Cleansing,Vehicle Maintenance - External,60921
http://statistics.data.gov.uk/id/local-authority/12UE,Huntingdonshire District Council,200028,AEBI SCHMIDT AEBI SCHMIDT,62668,30/03/2022,60278664,AF16HJG Engine Repairs,21/04/2022,75.05,375.25,450.3,Street Cleansing,Vehicle Maintenance - External,60921
http://statistics.data.gov.uk/id/local-authority/12UE,Huntingdonshire District Council,200028,AEBI SCHMIDT AEBI SCHMIDT,62676,04/04/2022,60276767,AF16HJG Hose,28/04/2022,68.32,341.6,409.92,Street Cleansing,Vehicle Repairs And Maintenance,60904
http://statistics.data.gov.uk/id/local-authority/12UE,Huntingdonshire District Council,200028,AEBI SCHMIDT AEBI SCHMIDT,64985,13/05/2022,60279657,AJ66AVV Front Shock/Arb Brushes,09/06/2022,304.71,1523.54,1828.25,Street Cleansing,Vehicle Repairs And Maintenance,60904
http://statistics.data.gov.uk/id/local-authority/12UE,Huntingdonshire District Council,200033,AIRQUEE LTD AIRQUEE LTD,64965,26/05/2022,A33591 PROFORMA,OLSI Bouncy Castle,23/06/2022,801.67,4008.33,4810,OLSI - Indoor Sports,Equipment,61713
http://statistics.data.gov.uk/id/local-authority/12UE,Huntingdonshire District Council,201059,ALCONBURY & ELLINGTON IDB,64015,20/01/2022,AE 01-2022/23,DRAINAGE 22-23,12/05/2022,0,42647.5,42647.5,Alconbury & Ellington,Levies Paid,69110
http://statistics.data.gov.uk/id/local-authority/12UE,Huntingdonshire District Council,201728,ALCONBURY MEMORIAL HALL,64789,18/05/2022,BO-INVOICE-461,Elections Hall Hire 05.05.22,09/06/2022,0,252,252,District Elections,Premises Hire - Facilities,60402
http://statistics.data.gov.uk/id/local-authority/12UE,Huntingdonshire District Council,200924,ALCONBURY PARISH COUNCIL,64930,18/05/2022,GC/A/HDC 22-23,Grass Cutting Apr22-Mar23,26/05/2022,0,960,960,Grounds Maintenance,Grounds Maintenance,60503
http://statistics.data.gov.uk/id/local-authority/12UE,Huntingdonshire District Council,200924,ALCONBURY PARISH COUNCIL,63400,27/04/2022,PARISH PRECEPT APR 22,Parish Precept - April 2022,27/04/2022,0,19500,19500,P C Precept Alconbury,Precepts,66301
http://statistics.data.gov.uk/id/local-authority/12UE,Huntingdonshire District Council,201684,ALCONBURY WESTON PARISH COUNCIL,63058,20/04/2022,CIL FUNDING 22-23 - 1,CIL Funding 2022-2023,21/04/2022,0,7161.74,7161.74,Community Infrastruct Levy Cil,Cil Payment To Parishes,66402
http://statistics.data.gov.uk/id/local-authority/12UE,Huntingdonshire District Council,201684,ALCONBURY WESTON PARISH COUNCIL,63400,27/04/2022,PARISH PRECEPT APR 22,Parish Precept - April 2022,27/04/2022,0,16500,16500,P C Precept Alconbury Weston,Precepts,66301
http://statistics.data.gov.uk/id/local-authority/12UE,Huntingdonshire District Council,200915,ALEXANDRA,62483,11/04/2022,PROFORMA CLOTHING ORDER,Clothing Order,13/04/2022,208.36,1041.82,1250.18,One Leisure Support Team,"Clothes, Uniform And Laundry",62000
http://statistics.data.gov.uk/id/local-authority/12UE,Huntingdonshire District Council,202832,ALLIANCE LEISURE SERVICES LTD,65714,08/06/2022,9981,TA6 MARKETING SUPPORT,16/06/2022,336.67,1683.33,2020,OLSIO - Training Shed,"Advertising, Publicity And Marketing",62005
http://statistics.data.gov.uk/id/local-authority/12UE,Huntingdonshire District Council,202832,ALLIANCE LEISURE SERVICES LTD,65715,08/06/2022,9980,TA6 MARKETING SUPPORT,16/06/2022,336.67,1683.33,2020,OLSIO - Training Shed,"Advertising, Publicity And Marketing",62005
http://statistics.data.gov.uk/id/local-authority/12UE,Huntingdonshire District Council,201197,Alwalton Parish Council,63058,20/04/2022,CIL FUNDING 22-23 - 2,CIL Funding 2022-2023,21/04/2022,0,4336.72,4336.72,Community Infrastruct Levy Cil,Cil Payment To Parishes,66402
http://statistics.data.gov.uk/id/local-authority/12UE,Huntingdonshire District Council,201197,Alwalton Parish Council,63400,27/04/2022,PARISH PRECEPT APR 22,Parish Precept - April 2022,27/04/2022,0,5400,5400,P C Precept Alwalton,Precepts,66301
http://statistics.data.gov.uk/id/local-authority/12UE,Huntingdonshire District Council,200046,AMALGAMATED COMPUTER SUPPLIES AMALGAMATED COMPUTER SUPPLIES,63162,04/04/2022,SINV00729619,Stationery/Ink Toner,28/04/2022,97.39,486.95,584.34,Benefits Management,Stationery,62002
http://statistics.data.gov.uk/id/local-authority/12UE,Huntingdonshire District Council,202880,Amberol Limited,61115,14/03/2022,21443,Gardening Supplies,07/04/2022,269.08,1345.39,1614.47,Welcome Back Fund,Gardening Supplies,60506
http://statistics.data.gov.uk/id/local-authority/12UE,Huntingdonshire District Council,202237,AMICUS TRUST LTD,64767,20/05/2022,REDACTED,REDACTED,23/05/2022,0,708.98,708.98,Homelessness,Homeless Prevention Payments,64403
http://statistics.data.gov.uk/id/local-authority/12UE,Huntingdonshire District Council,201344,ANDREW FIREBRACE PARTNERSHIP LTD,65532,31/05/2022,116,oak tree services,30/06/2022,107,535,642,Oak Tree Remedial Work,Consultancy Fees,62400
http://statistics.data.gov.uk/id/local-authority/12UE,Huntingdonshire District Council,201124,ANDY KNOTT CONSTRUCTION,64966,18/05/2022,4581,REDACTED,09/06/2022,0,1639.44,1639.44,Disables Facilities Grants,Mandatory Grants,64601
http://statistics.data.gov.uk/id/local-authority/12UE,Huntingdonshire District Council,202848,ANGLIA STAIRLIFTS LTD,61991,15/03/2022,49,12973 Moranza,07/04/2022,0,6120,6120,Disables Facilities Grants,Mandatory Grants,64601
http://statistics.data.gov.uk/id/local-authority/12UE,Huntingdonshire District Council,202747,ANNA PAGE DRIVING SCHOOL,64191,09/05/2022,9,REDACTED,01/06/2022,0,340,340,Cctv Huntingdonshire,Staff Other Expenses,60117
http://statistics.data.gov.uk/id/local-authority/12UE,Huntingdonshire District Council,202747,ANNA PAGE DRIVING SCHOOL,64566,09/05/2022,8,may driving lessons,01/06/2022,0,656,656,Grounds Maintenance,Staff Development And Training,60115
http://statistics.data.gov.uk/id/local-authority/12UE,Huntingdonshire District Council,202747,ANNA PAGE DRIVING SCHOOL,65336,06/04/2022,7,2 Hr Driving Lessons,09/06/2022,74.67,373.33,448,Grounds Maintenance,Staff Development And Training,60115
http://statistics.data.gov.uk/id/local-authority/12UE,Huntingdonshire District Council,202747,ANNA PAGE DRIVING SCHOOL,62342,06/02/2022,4,Driving Lessons Feb22,07/04/2022,50,250,300,Grounds Maintenance,Staff Development And Training,60115
http://statistics.data.gov.uk/id/local-authority/12UE,Huntingdonshire District Council,202251,REDACTED,62093,06/03/2022,1100,Weekly Disinfect Vehicle Interior,04/04/2022,0,600,600,Covid-19,Vehicle Cleaning,60923
http://statistics.data.gov.uk/id/local-authority/12UE,Huntingdonshire District Council,202251,REDACTED,62093,06/03/2022,1100,Weekly Disinfect Vehicle Interior,04/04/2022,0,75,75,Covid-19,Vehicle Cleaning,60923
http://statistics.data.gov.uk/id/local-authority/12UE,Huntingdonshire District Council,202251,REDACTED,62093,06/03/2022,1100,Weekly Disinfect Vehicle Interior,04/04/2022,0,150,150,Covid-19,Vehicle Cleaning,60923
http://statistics.data.gov.uk/id/local-authority/12UE,Huntingdonshire District Council,202251,REDACTED,62093,06/03/2022,1100,Weekly Disinfect Vehicle Interior,04/04/2022,0,135,135,Covid-19,Vehicle Cleaning,60923
http://statistics.data.gov.uk/id/local-authority/12UE,Huntingdonshire District Council,202251,REDACTED,62093,06/03/2022,1100,Weekly Disinfect Vehicle Interior,04/04/2022,0,15,15,Covid-19,Vehicle Cleaning,60923
http://statistics.data.gov.uk/id/local-authority/12UE,Huntingdonshire District Council,202251,REDACTED,62097,13/02/2022,1097,Weekly Vehicle Disinfect Feb22,04/04/2022,0,600,600,Covid-19,Vehicle Cleaning,60923
http://statistics.data.gov.uk/id/local-authority/12UE,Huntingdonshire District Council,202251,REDACTED,62097,13/02/2022,1097,Weekly Vehicle Disinfect Feb22,04/04/2022,0,75,75,Covid-19,Vehicle Cleaning,60923
http://statistics.data.gov.uk/id/local-authority/12UE,Huntingdonshire District Council,202251,REDACTED,62097,13/02/2022,1097,Weekly Vehicle Disinfect Feb22,04/04/2022,0,150,150,Covid-19,Vehicle Cleaning,60923
http://statistics.data.gov.uk/id/local-authority/12UE,Huntingdonshire District Council,202251,REDACTED,62097,13/02/2022,1097,Weekly Vehicle Disinfect Feb22,04/04/2022,0,135,135,Covid-19,Vehicle Cleaning,60923
http://statistics.data.gov.uk/id/local-authority/12UE,Huntingdonshire District Council,202251,REDACTED,62097,13/02/2022,1097,Weekly Vehicle Disinfect Feb22,04/04/2022,0,15,15,Covid-19,Vehicle Cleaning,60923
http://statistics.data.gov.uk/id/local-authority/12UE,Huntingdonshire District Council,202251,REDACTED,62101,30/01/2022,1095,Weekly Vehicle Disinfect Jan/Feb22,04/04/2022,0,600,600,Covid-19,Vehicle Cleaning,60923
http://statistics.data.gov.uk/id/local-authority/12UE,Huntingdonshire District Council,202251,REDACTED,62101,30/01/2022,1095,Weekly Vehicle Disinfect Jan/Feb22,04/04/2022,0,75,75,Covid-19,Vehicle Cleaning,60923
http://statistics.data.gov.uk/id/local-authority/12UE,Huntingdonshire District Council,202251,REDACTED,62101,30/01/2022,1095,Weekly Vehicle Disinfect Jan/Feb22,04/04/2022,0,150,150,Covid-19,Vehicle Cleaning,60923
http://statistics.data.gov.uk/id/local-authority/12UE,Huntingdonshire District Council,202251,REDACTED,62101,30/01/2022,1095,Weekly Vehicle Disinfect Jan/Feb22,04/04/2022,0,135,135,Covid-19,Vehicle Cleaning,60923
http://statistics.data.gov.uk/id/local-authority/12UE,Huntingdonshire District Council,202251,REDACTED,62101,30/01/2022,1095,Weekly Vehicle Disinfect Jan/Feb22,04/04/2022,0,15,15,Covid-19,Vehicle Cleaning,60923
http://statistics.data.gov.uk/id/local-authority/12UE,Huntingdonshire District Council,202251,REDACTED,62094,20/02/2022,1098,Weekly Vehicle Disinfect Feb22,04/04/2022,0,580,580,Covid-19,Vehicle Cleaning,60923
http://statistics.data.gov.uk/id/local-authority/12UE,Huntingdonshire District Council,202251,REDACTED,62094,20/02/2022,1098,Weekly Vehicle Disinfect Feb22,04/04/2022,0,75,75,Covid-19,Vehicle Cleaning,60923
http://statistics.data.gov.uk/id/local-authority/12UE,Huntingdonshire District Council,202251,REDACTED,62094,20/02/2022,1098,Weekly Vehicle Disinfect Feb22,04/04/2022,0,150,150,Covid-19,Vehicle Cleaning,60923
http://statistics.data.gov.uk/id/local-authority/12UE,Huntingdonshire District Council,202251,REDACTED,62094,20/02/2022,1098,Weekly Vehicle Disinfect Feb22,04/04/2022,0,150,150,Covid-19,Vehicle Cleaning,60923
http://statistics.data.gov.uk/id/local-authority/12UE,Huntingdonshire District Council,202251,REDACTED,62094,20/02/2022,1098,Weekly Vehicle Disinfect Feb22,04/04/2022,0,15,15,Covid-19,Vehicle Cleaning,60923
http://statistics.data.gov.uk/id/local-authority/12UE,Huntingdonshire District Council,202251,REDACTED,59710,19/12/2021,1089,ops vehicle clean,13/04/2022,0,600,600,Covid-19,Vehicle Cleaning,60923
http://statistics.data.gov.uk/id/local-authority/12UE,Huntingdonshire District Council,202251,REDACTED,59710,19/12/2021,1089,ops vehicle clean,13/04/2022,0,75,75,Covid-19,Vehicle Cleaning,60923
http://statistics.data.gov.uk/id/local-authority/12UE,Huntingdonshire District Council,202251,REDACTED,59710,19/12/2021,1089,ops vehicle clean,13/04/2022,0,135,135,Covid-19,Vehicle Cleaning,60923
http://statistics.data.gov.uk/id/local-authority/12UE,Huntingdonshire District Council,202251,REDACTED,59710,19/12/2021,1089,ops vehicle clean,13/04/2022,0,135,135,Covid-19,Vehicle Cleaning,60923
http://statistics.data.gov.uk/id/local-authority/12UE,Huntingdonshire District Council,202251,REDACTED,59710,19/12/2021,1089,ops vehicle clean,13/04/2022,0,15,15,Covid-19,Vehicle Cleaning,60923
http://statistics.data.gov.uk/id/local-authority/12UE,Huntingdonshire District Council,202251,REDACTED,62099,06/02/2022,1096,Weekly Vehicle Disinfect Feb22,04/04/2022,0,600,600,Covid-19,Vehicle Cleaning,60923
http://statistics.data.gov.uk/id/local-authority/12UE,Huntingdonshire District Council,202251,REDACTED,62099,06/02/2022,1096,Weekly Vehicle Disinfect Feb22,04/04/2022,0,75,75,Covid-19,Vehicle Cleaning,60923
http://statistics.data.gov.uk/id/local-authority/12UE,Huntingdonshire District Council,202251,REDACTED,62099,06/02/2022,1096,Weekly Vehicle Disinfect Feb22,04/04/2022,0,135,135,Covid-19,Vehicle Cleaning,60923
http://statistics.data.gov.uk/id/local-authority/12UE,Huntingdonshire District Council,202251,REDACTED,62099,06/02/2022,1096,Weekly Vehicle Disinfect Feb22,04/04/2022,0,135,135,Covid-19,Vehicle Cleaning,60923
http://statistics.data.gov.uk/id/local-authority/12UE,Huntingdonshire District Council,202251,REDACTED,62099,06/02/2022,1096,Weekly Vehicle Disinfect Feb22,04/04/2022,0,15,15,Covid-19,Vehicle Cleaning,60923
http://statistics.data.gov.uk/id/local-authority/12UE,Huntingdonshire District Council,202251,REDACTED,62120,16/01/2022,1093,Weekly Vehicle Disinfect Jan22,04/04/2022,0,15,15,Covid-19,Vehicle Cleaning,60923
http://statistics.data.gov.uk/id/local-authority/12UE,Huntingdonshire District Council,202251,REDACTED,62120,16/01/2022,1093,Weekly Vehicle Disinfect Jan22,04/04/2022,0,600,600,Covid-19,Vehicle Cleaning,60923
http://statistics.data.gov.uk/id/local-authority/12UE,Huntingdonshire District Council,202251,REDACTED,62120,16/01/2022,1093,Weekly Vehicle Disinfect Jan22,04/04/2022,0,75,75,Covid-19,Vehicle Cleaning,60923
http://statistics.data.gov.uk/id/local-authority/12UE,Huntingdonshire District Council,202251,REDACTED,62120,16/01/2022,1093,Weekly Vehicle Disinfect Jan22,04/04/2022,0,135,135,Covid-19,Vehicle Cleaning,60923
http://statistics.data.gov.uk/id/local-authority/12UE,Huntingdonshire District Council,202251,REDACTED,62120,16/01/2022,1093,Weekly Vehicle Disinfect Jan22,04/04/2022,0,135,135,Covid-19,Vehicle Cleaning,60923
http://statistics.data.gov.uk/id/local-authority/12UE,Huntingdonshire District Council,202251,REDACTED,62111,23/01/2022,1094,Weekly Vehicle Disinfect Jan22,04/04/2022,0,580,580,Covid-19,Vehicle Cleaning,60923
http://statistics.data.gov.uk/id/local-authority/12UE,Huntingdonshire District Council,202251,REDACTED,62111,23/01/2022,1094,Weekly Vehicle Disinfect Jan22,04/04/2022,0,75,75,Covid-19,Vehicle Cleaning,60923
http://statistics.data.gov.uk/id/local-authority/12UE,Huntingdonshire District Council,202251,REDACTED,62111,23/01/2022,1094,Weekly Vehicle Disinfect Jan22,04/04/2022,0,150,150,Covid-19,Vehicle Cleaning,60923
http://statistics.data.gov.uk/id/local-authority/12UE,Huntingdonshire District Council,202251,REDACTED,62111,23/01/2022,1094,Weekly Vehicle Disinfect Jan22,04/04/2022,0,135,135,Covid-19,Vehicle Cleaning,60923
http://statistics.data.gov.uk/id/local-authority/12UE,Huntingdonshire District Council,202251,REDACTED,62111,23/01/2022,1094,Weekly Vehicle Disinfect Jan22,04/04/2022,0,15,15,Covid-19,Vehicle Cleaning,60923
http://statistics.data.gov.uk/id/local-authority/12UE,Huntingdonshire District Council,202251,REDACTED,62096,27/02/2022,1099,Weekly Vehicle Disinfect Feb/Mar22,04/04/2022,0,560,560,Covid-19,Vehicle Cleaning,60923
http://statistics.data.gov.uk/id/local-authority/12UE,Huntingdonshire District Council,202251,REDACTED,62096,27/02/2022,1099,Weekly Vehicle Disinfect Feb/Mar22,04/04/2022,0,75,75,Covid-19,Vehicle Cleaning,60923
http://statistics.data.gov.uk/id/local-authority/12UE,Huntingdonshire District Council,202251,REDACTED,62096,27/02/2022,1099,Weekly Vehicle Disinfect Feb/Mar22,04/04/2022,0,150,150,Covid-19,Vehicle Cleaning,60923
http://statistics.data.gov.uk/id/local-authority/12UE,Huntingdonshire District Council,202251,REDACTED,62096,27/02/2022,1099,Weekly Vehicle Disinfect Feb/Mar22,04/04/2022,0,150,150,Covid-19,Vehicle Cleaning,60923
http://statistics.data.gov.uk/id/local-authority/12UE,Huntingdonshire District Council,202251,REDACTED,62096,27/02/2022,1099,Weekly Vehicle Disinfect Feb/Mar22,04/04/2022,0,15,15,Covid-19,Vehicle Cleaning,60923
http://statistics.data.gov.uk/id/local-authority/12UE,Huntingdonshire District Council,202251,REDACTED,62178,20/03/2022,1102,Weekly Vehicle Disinfect Mar22,07/04/2022,0,600,600,Covid-19,Vehicle Cleaning,60923
http://statistics.data.gov.uk/id/local-authority/12UE,Huntingdonshire District Council,202251,REDACTED,62178,20/03/2022,1102,Weekly Vehicle Disinfect Mar22,07/04/2022,0,75,75,Covid-19,Vehicle Cleaning,60923
http://statistics.data.gov.uk/id/local-authority/12UE,Huntingdonshire District Council,202251,REDACTED,62178,20/03/2022,1102,Weekly Vehicle Disinfect Mar22,07/04/2022,0,135,135,Covid-19,Vehicle Cleaning,60923
http://statistics.data.gov.uk/id/local-authority/12UE,Huntingdonshire District Council,202251,REDACTED,62178,20/03/2022,1102,Weekly Vehicle Disinfect Mar22,07/04/2022,0,120,120,Covid-19,Vehicle Cleaning,60923
http://statistics.data.gov.uk/id/local-authority/12UE,Huntingdonshire District Council,202251,REDACTED,62178,20/03/2022,1102,Weekly Vehicle Disinfect Mar22,07/04/2022,0,15,15,Covid-19,Vehicle Cleaning,60923
http://statistics.data.gov.uk/id/local-authority/12UE,Huntingdonshire District Council,202251,REDACTED,62177,27/03/2022,1103,Weekly Vehicle Disinfect Mar/Apr22,07/04/2022,0,135,135,Covid-19,Vehicle Cleaning,60923
http://statistics.data.gov.uk/id/local-authority/12UE,Huntingdonshire District Council,202251,REDACTED,62177,27/03/2022,1103,Weekly Vehicle Disinfect Mar/Apr22,07/04/2022,0,135,135,Covid-19,Vehicle Cleaning,60923
http://statistics.data.gov.uk/id/local-authority/12UE,Huntingdonshire District Council,202251,REDACTED,62177,27/03/2022,1103,Weekly Vehicle Disinfect Mar/Apr22,07/04/2022,0,15,15,Covid-19,Vehicle Cleaning,60923
http://statistics.data.gov.uk/id/local-authority/12UE,Huntingdonshire District Council,202251,REDACTED,62177,27/03/2022,1103,Weekly Vehicle Disinfect Mar/Apr22,07/04/2022,0,580,580,Covid-19,Vehicle Cleaning,60923
http://statistics.data.gov.uk/id/local-authority/12UE,Huntingdonshire District Council,202251,REDACTED,62177,27/03/2022,1103,Weekly Vehicle Disinfect Mar/Apr22,07/04/2022,0,75,75,Covid-19,Vehicle Cleaning,60923
http://statistics.data.gov.uk/id/local-authority/12UE,Huntingdonshire District Council,202251,REDACTED,62179,03/04/2022,1104,Weekly Vehicle Disinfect Apr22,07/04/2022,0,580,580,Covid-19,Vehicle Cleaning,60923
http://statistics.data.gov.uk/id/local-authority/12UE,Huntingdonshire District Council,202251,REDACTED,62179,03/04/2022,1104,Weekly Vehicle Disinfect Apr22,07/04/2022,0,75,75,Covid-19,Vehicle Cleaning,60923
http://statistics.data.gov.uk/id/local-authority/12UE,Huntingdonshire District Council,202251,REDACTED,62179,03/04/2022,1104,Weekly Vehicle Disinfect Apr22,07/04/2022,0,135,135,Covid-19,Vehicle Cleaning,60923
http://statistics.data.gov.uk/id/local-authority/12UE,Huntingdonshire District Council,202251,REDACTED,62179,03/04/2022,1104,Weekly Vehicle Disinfect Apr22,07/04/2022,0,135,135,Covid-19,Vehicle Cleaning,60923
http://statistics.data.gov.uk/id/local-authority/12UE,Huntingdonshire District Council,202251,REDACTED,62179,03/04/2022,1104,Weekly Vehicle Disinfect Apr22,07/04/2022,0,15,15,Covid-19,Vehicle Cleaning,60923
http://statistics.data.gov.uk/id/local-authority/12UE,Huntingdonshire District Council,202251,REDACTED,62175,13/03/2022,1101,Weekly Vehicle Disinfect Mar22,07/04/2022,0,580,580,Covid-19,Vehicle Cleaning,60923
http://statistics.data.gov.uk/id/local-authority/12UE,Huntingdonshire District Council,202251,REDACTED,62175,13/03/2022,1101,Weekly Vehicle Disinfect Mar22,07/04/2022,0,60,60,Covid-19,Vehicle Cleaning,60923
http://statistics.data.gov.uk/id/local-authority/12UE,Huntingdonshire District Council,202251,REDACTED,62175,13/03/2022,1101,Weekly Vehicle Disinfect Mar22,07/04/2022,0,135,135,Covid-19,Vehicle Cleaning,60923
http://statistics.data.gov.uk/id/local-authority/12UE,Huntingdonshire District Council,202251,REDACTED,62175,13/03/2022,1101,Weekly Vehicle Disinfect Mar22,07/04/2022,0,135,135,Covid-19,Vehicle Cleaning,60923
http://statistics.data.gov.uk/id/local-authority/12UE,Huntingdonshire District Council,202251,REDACTED,62175,13/03/2022,1101,Weekly Vehicle Disinfect Mar22,07/04/2022,0,15,15,Covid-19,Vehicle Cleaning,60923
http://statistics.data.gov.uk/id/local-authority/12UE,Huntingdonshire District Council,202251,REDACTED,66583,15/05/2022,1110,Weekly Vehicle Disinfect May22,30/06/2022,0,680,680,Vehicle Maintenance,Vehicle Cleaning,60923
http://statistics.data.gov.uk/id/local-authority/12UE,Huntingdonshire District Council,202251,REDACTED,66583,15/05/2022,1110,Weekly Vehicle Disinfect May22,30/06/2022,0,75,75,Vehicle Maintenance,Vehicle Cleaning,60923
http://statistics.data.gov.uk/id/local-authority/12UE,Huntingdonshire District Council,202251,REDACTED,66583,15/05/2022,1110,Weekly Vehicle Disinfect May22,30/06/2022,0,135,135,Vehicle Maintenance,Vehicle Cleaning,60923
http://statistics.data.gov.uk/id/local-authority/12UE,Huntingdonshire District Council,202251,REDACTED,66583,15/05/2022,1110,Weekly Vehicle Disinfect May22,30/06/2022,0,150,150,Vehicle Maintenance,Vehicle Cleaning,60923
http://statistics.data.gov.uk/id/local-authority/12UE,Huntingdonshire District Council,202251,REDACTED,66583,15/05/2022,1110,Weekly Vehicle Disinfect May22,30/06/2022,0,15,15,Vehicle Maintenance,Vehicle Cleaning,60923
http://statistics.data.gov.uk/id/local-authority/12UE,Huntingdonshire District Council,202251,REDACTED,66582,08/05/2022,1109,Weekly Vehicle Disinfect May22,30/06/2022,0,680,680,Vehicle Maintenance,Vehicle Cleaning,60923
http://statistics.data.gov.uk/id/local-authority/12UE,Huntingdonshire District Council,202251,REDACTED,66582,08/05/2022,1109,Weekly Vehicle Disinfect May22,30/06/2022,0,75,75,Vehicle Maintenance,Vehicle Cleaning,60923
http://statistics.data.gov.uk/id/local-authority/12UE,Huntingdonshire District Council,202251,REDACTED,66582,08/05/2022,1109,Weekly Vehicle Disinfect May22,30/06/2022,0,135,135,Vehicle Maintenance,Vehicle Cleaning,60923
http://statistics.data.gov.uk/id/local-authority/12UE,Huntingdonshire District Council,202251,REDACTED,66582,08/05/2022,1109,Weekly Vehicle Disinfect May22,30/06/2022,0,135,135,Vehicle Maintenance,Vehicle Cleaning,60923
http://statistics.data.gov.uk/id/local-authority/12UE,Huntingdonshire District Council,202251,REDACTED,66582,08/05/2022,1109,Weekly Vehicle Disinfect May22,30/06/2022,0,15,15,Vehicle Maintenance,Vehicle Cleaning,60923
http://statistics.data.gov.uk/id/local-authority/12UE,Huntingdonshire District Council,202251,REDACTED,66576,22/05/2022,1111,Weekly Vehicle Disinfect May22,30/06/2022,0,75,75,Vehicle Maintenance,Vehicle Cleaning,60923
http://statistics.data.gov.uk/id/local-authority/12UE,Huntingdonshire District Council,202251,REDACTED,66576,22/05/2022,1111,Weekly Vehicle Disinfect May22,30/06/2022,0,135,135,Vehicle Maintenance,Vehicle Cleaning,60923
http://statistics.data.gov.uk/id/local-authority/12UE,Huntingdonshire District Council,202251,REDACTED,66576,22/05/2022,1111,Weekly Vehicle Disinfect May22,30/06/2022,0,150,150,Vehicle Maintenance,Vehicle Cleaning,60923
http://statistics.data.gov.uk/id/local-authority/12UE,Huntingdonshire District Council,202251,REDACTED,66576,22/05/2022,1111,Weekly Vehicle Disinfect May22,30/06/2022,0,660,660,Vehicle Maintenance,Vehicle Cleaning,60923
http://statistics.data.gov.uk/id/local-authority/12UE,Huntingdonshire District Council,202251,REDACTED,66576,22/05/2022,1111,Weekly Vehicle Disinfect May22,30/06/2022,0,15,15,Vehicle Maintenance,Vehicle Cleaning,60923
http://statistics.data.gov.uk/id/local-authority/12UE,Huntingdonshire District Council,202251,REDACTED,66581,29/05/2022,1112,Weekly Vehicle Disinfect May22,30/06/2022,0,600,600,Vehicle Maintenance,Vehicle Cleaning,60923
http://statistics.data.gov.uk/id/local-authority/12UE,Huntingdonshire District Council,202251,REDACTED,66581,29/05/2022,1112,Weekly Vehicle Disinfect May22,30/06/2022,0,75,75,Vehicle Maintenance,Vehicle Cleaning,60923
http://statistics.data.gov.uk/id/local-authority/12UE,Huntingdonshire District Council,202251,REDACTED,66581,29/05/2022,1112,Weekly Vehicle Disinfect May22,30/06/2022,0,150,150,Vehicle Maintenance,Vehicle Cleaning,60923
http://statistics.data.gov.uk/id/local-authority/12UE,Huntingdonshire District Council,202251,REDACTED,66581,29/05/2022,1112,Weekly Vehicle Disinfect May22,30/06/2022,0,150,150,Vehicle Maintenance,Vehicle Cleaning,60923
http://statistics.data.gov.uk/id/local-authority/12UE,Huntingdonshire District Council,202251,REDACTED,66581,29/05/2022,1112,Weekly Vehicle Disinfect May22,30/06/2022,0,15,15,Vehicle Maintenance,Vehicle Cleaning,60923
http://statistics.data.gov.uk/id/local-authority/12UE,Huntingdonshire District Council,202251,REDACTED,66132,01/05/2022,1108,Weekly Vehicle Disinfect May22,23/06/2022,0,600,600,Vehicle Maintenance,Vehicle Cleaning,60923
http://statistics.data.gov.uk/id/local-authority/12UE,Huntingdonshire District Council,202251,REDACTED,66132,01/05/2022,1108,Weekly Vehicle Disinfect May22,23/06/2022,0,75,75,Vehicle Maintenance,Vehicle Cleaning,60923
http://statistics.data.gov.uk/id/local-authority/12UE,Huntingdonshire District Council,202251,REDACTED,66132,01/05/2022,1108,Weekly Vehicle Disinfect May22,23/06/2022,0,135,135,Vehicle Maintenance,Vehicle Cleaning,60923
http://statistics.data.gov.uk/id/local-authority/12UE,Huntingdonshire District Council,202251,REDACTED,66132,01/05/2022,1108,Weekly Vehicle Disinfect May22,23/06/2022,0,150,150,Vehicle Maintenance,Vehicle Cleaning,60923
http://statistics.data.gov.uk/id/local-authority/12UE,Huntingdonshire District Council,202251,REDACTED,66132,01/05/2022,1108,Weekly Vehicle Disinfect May22,23/06/2022,0,15,15,Vehicle Maintenance,Vehicle Cleaning,60923
http://statistics.data.gov.uk/id/local-authority/12UE,Huntingdonshire District Council,202251,REDACTED,66134,17/04/2022,1106,Weekly Vehicle Disinfect Apr22,23/06/2022,0,600,600,Vehicle Maintenance,Vehicle Cleaning,60923
http://statistics.data.gov.uk/id/local-authority/12UE,Huntingdonshire District Council,202251,REDACTED,66134,17/04/2022,1106,Weekly Vehicle Disinfect Apr22,23/06/2022,0,75,75,Vehicle Maintenance,Vehicle Cleaning,60923
http://statistics.data.gov.uk/id/local-authority/12UE,Huntingdonshire District Council,202251,REDACTED,66134,17/04/2022,1106,Weekly Vehicle Disinfect Apr22,23/06/2022,0,135,135,Vehicle Maintenance,Vehicle Cleaning,60923
http://statistics.data.gov.uk/id/local-authority/12UE,Huntingdonshire District Council,202251,REDACTED,66134,17/04/2022,1106,Weekly Vehicle Disinfect Apr22,23/06/2022,0,150,150,Vehicle Maintenance,Vehicle Cleaning,60923
http://statistics.data.gov.uk/id/local-authority/12UE,Huntingdonshire District Council,202251,REDACTED,66134,17/04/2022,1106,Weekly Vehicle Disinfect Apr22,23/06/2022,0,15,15,Vehicle Maintenance,Vehicle Cleaning,60923
http://statistics.data.gov.uk/id/local-authority/12UE,Huntingdonshire District Council,202251,REDACTED,66135,10/04/2022,1105,Weekly Vehicle Disinfect Apr22,23/06/2022,0,600,600,Vehicle Maintenance,Vehicle Cleaning,60923
http://statistics.data.gov.uk/id/local-authority/12UE,Huntingdonshire District Council,202251,REDACTED,66135,10/04/2022,1105,Weekly Vehicle Disinfect Apr22,23/06/2022,0,75,75,Vehicle Maintenance,Vehicle Cleaning,60923
http://statistics.data.gov.uk/id/local-authority/12UE,Huntingdonshire District Council,202251,REDACTED,66135,10/04/2022,1105,Weekly Vehicle Disinfect Apr22,23/06/2022,0,135,135,Vehicle Maintenance,Vehicle Cleaning,60923
http://statistics.data.gov.uk/id/local-authority/12UE,Huntingdonshire District Council,202251,REDACTED,66135,10/04/2022,1105,Weekly Vehicle Disinfect Apr22,23/06/2022,0,150,150,Vehicle Maintenance,Vehicle Cleaning,60923
http://statistics.data.gov.uk/id/local-authority/12UE,Huntingdonshire District Council,202251,REDACTED,66135,10/04/2022,1105,Weekly Vehicle Disinfect Apr22,23/06/2022,0,15,15,Vehicle Maintenance,Vehicle Cleaning,60923
http://statistics.data.gov.uk/id/local-authority/12UE,Huntingdonshire District Council,202251,REDACTED,66136,24/04/2022,1107,Weekly Vehicle Disinfect Apr22,23/06/2022,0,600,600,Vehicle Maintenance,Vehicle Cleaning,60923
http://statistics.data.gov.uk/id/local-authority/12UE,Huntingdonshire District Council,202251,REDACTED,66136,24/04/2022,1107,Weekly Vehicle Disinfect Apr22,23/06/2022,0,60,60,Vehicle Maintenance,Vehicle Cleaning,60923
http://statistics.data.gov.uk/id/local-authority/12UE,Huntingdonshire District Council,202251,REDACTED,66136,24/04/2022,1107,Weekly Vehicle Disinfect Apr22,23/06/2022,0,135,135,Vehicle Maintenance,Vehicle Cleaning,60923
http://statistics.data.gov.uk/id/local-authority/12UE,Huntingdonshire District Council,202251,REDACTED,66136,24/04/2022,1107,Weekly Vehicle Disinfect Apr22,23/06/2022,0,150,150,Vehicle Maintenance,Vehicle Cleaning,60923
http://statistics.data.gov.uk/id/local-authority/12UE,Huntingdonshire District Council,202251,REDACTED,66136,24/04/2022,1107,Weekly Vehicle Disinfect Apr22,23/06/2022,0,15,15,Vehicle Maintenance,Vehicle Cleaning,60923
http://statistics.data.gov.uk/id/local-authority/12UE,Huntingdonshire District Council,202251,REDACTED,66574,12/06/2022,1114,Weekly Vehicle Disinfect Jun22,30/06/2022,0,520,520,Vehicle Maintenance,Vehicle Cleaning,60923
http://statistics.data.gov.uk/id/local-authority/12UE,Huntingdonshire District Council,202251,REDACTED,66574,12/06/2022,1114,Weekly Vehicle Disinfect Jun22,30/06/2022,0,75,75,Vehicle Maintenance,Vehicle Cleaning,60923
http://statistics.data.gov.uk/id/local-authority/12UE,Huntingdonshire District Council,202251,REDACTED,66574,12/06/2022,1114,Weekly Vehicle Disinfect Jun22,30/06/2022,0,135,135,Vehicle Maintenance,Vehicle Cleaning,60923
http://statistics.data.gov.uk/id/local-authority/12UE,Huntingdonshire District Council,202251,REDACTED,66574,12/06/2022,1114,Weekly Vehicle Disinfect Jun22,30/06/2022,0,150,150,Vehicle Maintenance,Vehicle Cleaning,60923
http://statistics.data.gov.uk/id/local-authority/12UE,Huntingdonshire District Council,202251,REDACTED,66574,12/06/2022,1114,Weekly Vehicle Disinfect Jun22,30/06/2022,0,15,15,Vehicle Maintenance,Vehicle Cleaning,60923
http://statistics.data.gov.uk/id/local-authority/12UE,Huntingdonshire District Council,202251,REDACTED,66575,05/06/2022,1113,Weekly Vehicle Disinfect Jun22,30/06/2022,0,520,520,Vehicle Maintenance,Vehicle Cleaning,60923
http://statistics.data.gov.uk/id/local-authority/12UE,Huntingdonshire District Council,202251,REDACTED,66575,05/06/2022,1113,Weekly Vehicle Disinfect Jun22,30/06/2022,0,75,75,Vehicle Maintenance,Vehicle Cleaning,60923
http://statistics.data.gov.uk/id/local-authority/12UE,Huntingdonshire District Council,202251,REDACTED,66575,05/06/2022,1113,Weekly Vehicle Disinfect Jun22,30/06/2022,0,135,135,Vehicle Maintenance,Vehicle Cleaning,60923
http://statistics.data.gov.uk/id/local-authority/12UE,Huntingdonshire District Council,202251,REDACTED,66575,05/06/2022,1113,Weekly Vehicle Disinfect Jun22,30/06/2022,0,150,150,Vehicle Maintenance,Vehicle Cleaning,60923
http://statistics.data.gov.uk/id/local-authority/12UE,Huntingdonshire District Council,202251,REDACTED,66575,05/06/2022,1113,Weekly Vehicle Disinfect Jun22,30/06/2022,0,15,15,Vehicle Maintenance,Vehicle Cleaning,60923
http://statistics.data.gov.uk/id/local-authority/12UE,Huntingdonshire District Council,200050,ANTALIS LTD ANTALIS LTD,62079,22/03/2022,2293059,Xerox Ecoprint A4,13/04/2022,145.8,729,874.8,Printing,Paper,62803
http://statistics.data.gov.uk/id/local-authority/12UE,Huntingdonshire District Council,200050,ANTALIS LTD ANTALIS LTD,63469,15/03/2022,22382230,doc centre paper,28/04/2022,72.9,364.5,437.4,Printing,Paper,62803
http://statistics.data.gov.uk/id/local-authority/12UE,Huntingdonshire District Council,202942,Anvil Design & Fabrication,62858,07/04/2022,INV-0304,Custom Outdoor Benches,05/05/2022,856,4280,5136,Godmanchester Mill Weir Improvements,Contributions From Other Local Authorities (Income),51000
http://statistics.data.gov.uk/id/local-authority/12UE,Huntingdonshire District Council,201474,APEX TRAINING CENTRES (UK) LTD,61387,14/03/2022,20374,ops lgv tests,07/04/2022,220,1100,1320,Domestic Waste Collection,Staff Development And Training,60115
http://statistics.data.gov.uk/id/local-authority/12UE,Huntingdonshire District Council,201474,APEX TRAINING CENTRES (UK) LTD,61387,14/03/2022,20374,ops lgv tests,07/04/2022,0,115,115,Domestic Waste Collection,Staff Development And Training,60115
http://statistics.data.gov.uk/id/local-authority/12UE,Huntingdonshire District Council,201474,APEX TRAINING CENTRES (UK) LTD,61387,14/03/2022,20374,ops lgv tests,07/04/2022,1,5,6,Domestic Waste Collection,Staff Development And Training,60115
http://statistics.data.gov.uk/id/local-authority/12UE,Huntingdonshire District Council,201474,APEX TRAINING CENTRES (UK) LTD,61387,14/03/2022,20374,ops lgv tests,07/04/2022,0,40,40,Domestic Waste Collection,Staff Development And Training,60115
http://statistics.data.gov.uk/id/local-authority/12UE,Huntingdonshire District Council,201474,APEX TRAINING CENTRES (UK) LTD,64935,24/05/2022,21238,LGV/PCV Test Fee,16/06/2022,220,1100,1320,Domestic Waste Collection,Staff Development And Training,60115
http://statistics.data.gov.uk/id/local-authority/12UE,Huntingdonshire District Council,201474,APEX TRAINING CENTRES (UK) LTD,64935,24/05/2022,21238,LGV/PCV Test Fee,16/06/2022,0,40,40,Domestic Waste Collection,Staff Development And Training,60115
http://statistics.data.gov.uk/id/local-authority/12UE,Huntingdonshire District Council,201474,APEX TRAINING CENTRES (UK) LTD,64935,24/05/2022,21238,LGV/PCV Test Fee,16/06/2022,1,5,6,Domestic Waste Collection,Staff Development And Training,60115
http://statistics.data.gov.uk/id/local-authority/12UE,Huntingdonshire District Council,201474,APEX TRAINING CENTRES (UK) LTD,64935,24/05/2022,21238,LGV/PCV Test Fee,16/06/2022,0,115,115,Domestic Waste Collection,Staff Development And Training,60115
http://statistics.data.gov.uk/id/local-authority/12UE,Huntingdonshire District Council,201474,APEX TRAINING CENTRES (UK) LTD,65128,26/05/2022,21278,LGV Test/Booking Fees,23/06/2022,220,1100,1320,Domestic Waste Collection,Staff Development And Training,60115
http://statistics.data.gov.uk/id/local-authority/12UE,Huntingdonshire District Council,201474,APEX TRAINING CENTRES (UK) LTD,65128,26/05/2022,21278,LGV Test/Booking Fees,23/06/2022,0,115,115,Domestic Waste Collection,Staff Development And Training,60115
http://statistics.data.gov.uk/id/local-authority/12UE,Huntingdonshire District Council,201474,APEX TRAINING CENTRES (UK) LTD,65128,26/05/2022,21278,LGV Test/Booking Fees,23/06/2022,1,5,6,Domestic Waste Collection,Staff Development And Training,60115
http://statistics.data.gov.uk/id/local-authority/12UE,Huntingdonshire District Council,201474,APEX TRAINING CENTRES (UK) LTD,65128,26/05/2022,21278,LGV Test/Booking Fees,23/06/2022,0,40,40,Domestic Waste Collection,Staff Development And Training,60115
http://statistics.data.gov.uk/id/local-authority/12UE,Huntingdonshire District Council,201474,APEX TRAINING CENTRES (UK) LTD,63398,25/04/2022,20883,NORS Reg Fee/Novice FLT Course,19/05/2022,85,425,510,Domestic Waste Collection,Staff Development And Training,60115
http://statistics.data.gov.uk/id/local-authority/12UE,Huntingdonshire District Council,201474,APEX TRAINING CENTRES (UK) LTD,63398,25/04/2022,20883,NORS Reg Fee/Novice FLT Course,19/05/2022,2.59,12.95,15.54,Domestic Waste Collection,Staff Development And Training,60115
http://statistics.data.gov.uk/id/local-authority/12UE,Huntingdonshire District Council,201474,APEX TRAINING CENTRES (UK) LTD,64933,23/05/2022,21215,LGV/PCV Test Fee,16/06/2022,32,160,192,Domestic Waste Collection,Staff Development And Training,60115
http://statistics.data.gov.uk/id/local-authority/12UE,Huntingdonshire District Council,201474,APEX TRAINING CENTRES (UK) LTD,64933,23/05/2022,21215,LGV/PCV Test Fee,16/06/2022,0,115,115,Domestic Waste Collection,Staff Development And Training,60115
http://statistics.data.gov.uk/id/local-authority/12UE,Huntingdonshire District Council,201474,APEX TRAINING CENTRES (UK) LTD,64933,23/05/2022,21215,LGV/PCV Test Fee,16/06/2022,0.5,2.5,3,Domestic Waste Collection,Staff Development And Training,60115
http://statistics.data.gov.uk/id/local-authority/12UE,Huntingdonshire District Council,202851,APL CONSTRUCTION SERVICES LTD,64982,23/05/2022,453,St Ives&Hunts BS WC's Payment 3,26/05/2022,0,0,0,Huntingdon Bus Station,Construction Industry Tax (Cis),21003
http://statistics.data.gov.uk/id/local-authority/12UE,Huntingdonshire District Council,202851,APL CONSTRUCTION SERVICES LTD,63713,14/04/2022,448.2,Blocking Doorway St Ives,04/05/2022,0,0,0,Huntingdon Bus Station,Construction Industry Tax (Cis),21003
http://statistics.data.gov.uk/id/local-authority/12UE,Huntingdonshire District Council,202851,APL CONSTRUCTION SERVICES LTD,63713,14/04/2022,448.2,Blocking Doorway St Ives,04/05/2022,71.88,359.4,431.28,Huntingdon Bus Station,Maintenance - Building,60201
http://statistics.data.gov.uk/id/local-authority/12UE,Huntingdonshire District Council,202851,APL CONSTRUCTION SERVICES LTD,63713,14/04/2022,448.2,Blocking Doorway St Ives,04/05/2022,186.78,933.91,1120.69,St Ives Bus Station,Maintenance - Building,60201
http://statistics.data.gov.uk/id/local-authority/12UE,Huntingdonshire District Council,202851,APL CONSTRUCTION SERVICES LTD,63707,22/04/2022,449.2,St Ives&Hunts BS WC's Payment 3,04/05/2022,13554.24,67771.22,81325.46,Upgrade/Replacement of Public Toilets,Site Alterations And Materials,60273
http://statistics.data.gov.uk/id/local-authority/12UE,Huntingdonshire District Council,202851,APL CONSTRUCTION SERVICES LTD,64982,23/05/2022,453,St Ives&Hunts BS WC's Payment 3,26/05/2022,3033.22,15166.12,18199.34,Upgrade/Replacement of Public Toilets,Site Alterations And Materials,60273
http://statistics.data.gov.uk/id/local-authority/12UE,Huntingdonshire District Council,200054.01,APSE,64576,05/12/2021,2122/1902,ops apse 2-3 dec 21,19/05/2022,56,280,336,Domestic Waste Collection,Staff Development And Training,60115
http://statistics.data.gov.uk/id/local-authority/12UE,Huntingdonshire District Council,200054.01,APSE,65043,17/03/2022,2122/2624,Park Seminar,30/05/2022,107.4,537,644.4,Green Waste Collection,Staff Development And Training,60115
http://statistics.data.gov.uk/id/local-authority/12UE,Huntingdonshire District Council,202059.01,AQUASERVE MAINTENANCE LTD,63828,29/04/2022,AQUAMAIN22024,Sluice Outlet Clearance,26/05/2022,314.32,1571.59,1885.91,Barford Road Pocket Park,Grounds Maintenance,60503
http://statistics.data.gov.uk/id/local-authority/12UE,Huntingdonshire District Council,202059.01,AQUASERVE MAINTENANCE LTD,63303,13/04/2022,AQUMAIN22019,10 Day Maintenance Works,05/05/2022,2353.51,11767.53,14121.04,Paxton Pits,Grounds Maintenance,60503
http://statistics.data.gov.uk/id/local-authority/12UE,Huntingdonshire District Council,202059.01,AQUASERVE MAINTENANCE LTD,63828,29/04/2022,AQUAMAIN22024,Sluice Outlet Clearance,26/05/2022,0,0,0,Paxton Pits,Grounds Maintenance,60503
http://statistics.data.gov.uk/id/local-authority/12UE,Huntingdonshire District Council,202059.01,AQUASERVE MAINTENANCE LTD,63529,19/04/2022,AQMAIN22021,OPS ACCESS PANEL,12/05/2022,1178.1,5890.5,7068.6,Watercourses,Subcontractors,62401
http://statistics.data.gov.uk/id/local-authority/12UE,Huntingdonshire District Council,202059.01,AQUASERVE MAINTENANCE LTD,63527,19/04/2022,AQMAIN22011,OPS GATE INSTALLATION,12/05/2022,142.06,710.28,852.34,Watercourses,Subcontractors,62401
http://statistics.data.gov.uk/id/local-authority/12UE,Huntingdonshire District Council,202059,AQUASERVE MANAGEMENT LTD,62636,28/02/2022,AQMAN22004,Watercourse Audit,13/04/2022,79.96,399.8,479.76,Watercourses,Site Alterations And Materials,60273
http://statistics.data.gov.uk/id/local-authority/12UE,Huntingdonshire District Council,202059,AQUASERVE MANAGEMENT LTD,64373,14/04/2022,AQMAN22010,3 Audits Buckden Stream,16/05/2022,76.76,383.82,460.58,Watercourses,Subcontractors,62401
http://statistics.data.gov.uk/id/local-authority/12UE,Huntingdonshire District Council,200058,ARCHANT HERTS AND CAMBS ARCHANT HERTS AND CAMBS,65061,26/03/2022,56990770,c tax hunts post,30/05/2022,249.4,1247,1496.4,Benefits Management,"Advertising, Publicity And Marketing",62005
http://statistics.data.gov.uk/id/local-authority/12UE,Huntingdonshire District Council,200058,ARCHANT HERTS AND CAMBS ARCHANT HERTS AND CAMBS,65008,06/02/2021,56815582,HDC RELAUNCH SUPP 030221,30/05/2022,260,1300,1560,Corporate Team,"Advertising, Publicity And Marketing",62005
http://statistics.data.gov.uk/id/local-authority/12UE,Huntingdonshire District Council,200058,ARCHANT HERTS AND CAMBS ARCHANT HERTS AND CAMBS,65007,06/02/2022,56815550,HDC Lunch supp 030221,30/05/2022,160,800,960,Corporate Team,"Advertising, Publicity And Marketing",62005
http://statistics.data.gov.uk/id/local-authority/12UE,Huntingdonshire District Council,200058,ARCHANT HERTS AND CAMBS ARCHANT HERTS AND CAMBS,65009,06/05/2022,56824964,HDC RELAUNCH SUPP 0303021,01/06/2022,150,750,900,Corporate Team,"Advertising, Publicity And Marketing",62005
http://statistics.data.gov.uk/id/local-authority/12UE,Huntingdonshire District Council,200058,ARCHANT HERTS AND CAMBS ARCHANT HERTS AND CAMBS,65006,20/03/2022,56815549,HDC RELAUNCH SUPP 030221,30/05/2022,80,400,480,Corporate Team,"Advertising, Publicity And Marketing",62005
http://statistics.data.gov.uk/id/local-authority/12UE,Huntingdonshire District Council,200060,ARTHUR IBBETT LTD ARTHUR IBBETT LTD,62466,08/04/2022,128138,HCP Equipment/Materials,05/05/2022,0.01,0,0.01,Finance,Over/Under VAT Rounding,68350
http://statistics.data.gov.uk/id/local-authority/12UE,Huntingdonshire District Council,200060,ARTHUR IBBETT LTD ARTHUR IBBETT LTD,62466,08/04/2022,128138,HCP Equipment/Materials,05/05/2022,33.54,167.72,201.26,Hinchingbrooke Park Management,Equipment,61713
http://statistics.data.gov.uk/id/local-authority/12UE,Huntingdonshire District Council,200060,ARTHUR IBBETT LTD ARTHUR IBBETT LTD,62466,08/04/2022,128138,HCP Equipment/Materials,05/05/2022,39.51,197.55,237.06,Hinchingbrooke Park Management,Materials,61709
http://statistics.data.gov.uk/id/local-authority/12UE,Huntingdonshire District Council,201006,ASHCO BUILDING & MAINTENANCE SERVICES LTD,61959,15/03/2022,AC0215560,REDACTED,07/04/2022,0,7310,7310,Disables Facilities Grants,Mandatory Grants,64601
http://statistics.data.gov.uk/id/local-authority/12UE,Huntingdonshire District Council,201026,ASSOCIATION OF ELECTORAL ADMINISTRATORS AEA BOOKINGS,63122,07/03/2022,30494,Elec Admin Jun22,21/04/2022,200,1000,1200,HR Services,Staff Development And Training,60115
http://statistics.data.gov.uk/id/local-authority/12UE,Huntingdonshire District Council,200742,ASTREA ACADEMY TRUST - ST IVO ACADEMY ST IVO SCHOOL,62876,31/03/2022,37SI62,olsti water recharge,28/04/2022,0,976.95,976.95,OLSI - Site & Centre Management,Water And Sewerage,60302
http://statistics.data.gov.uk/id/local-authority/12UE,Huntingdonshire District Council,200811,ATOS IT SERVICES UK LTD UNIFY,65172,20/05/2022,5584391239,CCC Landline Rental/Call Charge,16/06/2022,2462.24,12311.2,14773.44,Cambridge City Business Case ,Land Line Rental,64077
http://statistics.data.gov.uk/id/local-authority/12UE,Huntingdonshire District Council,200811,ATOS IT SERVICES UK LTD UNIFY,61618,16/03/2022,5584386309,CCC Land Line Rental/Call Charge,07/04/2022,2446.6,12233,14679.6,Cambridge City Business Case ,Land Line Rental,64077
http://statistics.data.gov.uk/id/local-authority/12UE,Huntingdonshire District Council,200811,ATOS IT SERVICES UK LTD UNIFY,64588,12/04/2022,5584388676,CCC LandLine Call Charge/Rental Mar22,19/05/2022,2454.8,12274,14728.8,Cambridge City Business Case ,Land Line Rental,64077
http://statistics.data.gov.uk/id/local-authority/12UE,Huntingdonshire District Council,200811,ATOS IT SERVICES UK LTD UNIFY,65172,20/05/2022,5584391239,CCC Landline Rental/Call Charge,16/06/2022,2.42,12.08,14.5,Cambridge City Business Case ,Landline Call Charges,64082
http://statistics.data.gov.uk/id/local-authority/12UE,Huntingdonshire District Council,200811,ATOS IT SERVICES UK LTD UNIFY,61618,16/03/2022,5584386309,CCC Land Line Rental/Call Charge,07/04/2022,14.26,71.28,85.54,Cambridge City Business Case ,Landline Call Charges,64082
http://statistics.data.gov.uk/id/local-authority/12UE,Huntingdonshire District Council,200811,ATOS IT SERVICES UK LTD UNIFY,64588,12/04/2022,5584388676,CCC LandLine Call Charge/Rental Mar22,19/05/2022,2.5,12.51,15.01,Cambridge City Business Case ,Landline Call Charges,64082
http://statistics.data.gov.uk/id/local-authority/12UE,Huntingdonshire District Council,201621,AUTHENTIC8 ID SOLUTIONS,65127,26/05/2022,4007089,"10,000 OL Key Fobs",16/06/2022,1623,8115,9738,Ol Impressions Equipment,Maintenance - Building,60201
http://statistics.data.gov.uk/id/local-authority/12UE,Huntingdonshire District Council,200072,B & H DIGITAL LTD B & H DIGITAL LTD,64391,30/04/2022,38433,Print Of Signpost,26/05/2022,0,511.82,511.82,Committee Management,Printing (Internal),69301
http://statistics.data.gov.uk/id/local-authority/12UE,Huntingdonshire District Council,200072,B & H DIGITAL LTD B & H DIGITAL LTD,65431,31/05/2022,38639,Direct Mail,30/06/2022,131.95,659.76,791.71,Green Waste Collection,Printing,62001
http://statistics.data.gov.uk/id/local-authority/12UE,Huntingdonshire District Council,200072,B & H DIGITAL LTD B & H DIGITAL LTD,65543,31/05/2022,38638,health walk leaflets,30/06/2022,0,250,250,Integrated Lifestyle Service,"Advertising, Publicity And Marketing",62005
http://statistics.data.gov.uk/id/local-authority/12UE,Huntingdonshire District Council,200072,B & H DIGITAL LTD B & H DIGITAL LTD,65543,31/05/2022,38638,health walk leaflets,30/06/2022,0,614.29,614.29,Integrated Lifestyle Service,"Advertising, Publicity And Marketing",62005
http://statistics.data.gov.uk/id/local-authority/12UE,Huntingdonshire District Council,200072,B & H DIGITAL LTD B & H DIGITAL LTD,65422,31/05/2022,38636,Pax Pits Leaflets,30/06/2022,77.5,387.5,465,Paxton Pits,"Advertising, Publicity And Marketing",62005
http://statistics.data.gov.uk/id/local-authority/12UE,Huntingdonshire District Council,200072,B & H DIGITAL LTD B & H DIGITAL LTD,64675,30/09/2021,36127,Outsourced Printing,19/05/2022,0,259.57,259.57,Printing,Hire - Equipment Furniture And Materials,61700
http://statistics.data.gov.uk/id/local-authority/12UE,Huntingdonshire District Council,200072,B & H DIGITAL LTD B & H DIGITAL LTD,64675,30/09/2021,36127,Outsourced Printing,19/05/2022,91.54,457.68,549.22,Printing,Hire - Equipment Furniture And Materials,61700
http://statistics.data.gov.uk/id/local-authority/12UE,Huntingdonshire District Council,200072,B & H DIGITAL LTD B & H DIGITAL LTD,61550,22/03/2022,38150,printing works,13/04/2022,0,332.23,332.23,Printing,Hire - Equipment Furniture And Materials,61700
http://statistics.data.gov.uk/id/local-authority/12UE,Huntingdonshire District Council,200072,B & H DIGITAL LTD B & H DIGITAL LTD,61550,22/03/2022,38150,printing works,13/04/2022,45.27,226.34,271.61,Printing,Hire - Equipment Furniture And Materials,61700
http://statistics.data.gov.uk/id/local-authority/12UE,Huntingdonshire District Council,200072,B & H DIGITAL LTD B & H DIGITAL LTD,64674,28/02/2022,38026,Outsourced Printing,19/05/2022,25.95,129.74,155.69,Printing,Hire - Equipment Furniture And Materials,61700
http://statistics.data.gov.uk/id/local-authority/12UE,Huntingdonshire District Council,200072,B & H DIGITAL LTD B & H DIGITAL LTD,64674,28/02/2022,38026,Outsourced Printing,19/05/2022,0,40.78,40.78,Printing,Hire - Equipment Furniture And Materials,61700
http://statistics.data.gov.uk/id/local-authority/12UE,Huntingdonshire District Council,200072,B & H DIGITAL LTD B & H DIGITAL LTD,63603,30/04/2022,38413,Outsourced Printing,26/05/2022,0,2.1,2.1,Printing,Hire - Equipment Furniture And Materials,61700
http://statistics.data.gov.uk/id/local-authority/12UE,Huntingdonshire District Council,200072,B & H DIGITAL LTD B & H DIGITAL LTD,63603,30/04/2022,38413,Outsourced Printing,26/05/2022,38.49,192.47,230.96,Printing,Hire - Equipment Furniture And Materials,61700
http://statistics.data.gov.uk/id/local-authority/12UE,Huntingdonshire District Council,200072,B & H DIGITAL LTD B & H DIGITAL LTD,65328,31/05/2022,38633,Outsourced Printing,30/06/2022,26.21,131.03,157.24,Printing,Hire - Equipment Furniture And Materials,61700
http://statistics.data.gov.uk/id/local-authority/12UE,Huntingdonshire District Council,200072,B & H DIGITAL LTD B & H DIGITAL LTD,65328,31/05/2022,38633,Outsourced Printing,30/06/2022,0,18.74,18.74,Printing,Hire - Equipment Furniture And Materials,61700
http://statistics.data.gov.uk/id/local-authority/12UE,Huntingdonshire District Council,200072,B & H DIGITAL LTD B & H DIGITAL LTD,64675,30/09/2021,36127,Outsourced Printing,19/05/2022,0,881.39,881.39,Printing,"Maintenance - Equipment, Furniture And Materials",61702
http://statistics.data.gov.uk/id/local-authority/12UE,Huntingdonshire District Council,200072,B & H DIGITAL LTD B & H DIGITAL LTD,64675,30/09/2021,36127,Outsourced Printing,19/05/2022,53.13,265.66,318.79,Printing,"Maintenance - Equipment, Furniture And Materials",61702
http://statistics.data.gov.uk/id/local-authority/12UE,Huntingdonshire District Council,200072,B & H DIGITAL LTD B & H DIGITAL LTD,61550,22/03/2022,38150,printing works,13/04/2022,0,1128.15,1128.15,Printing,"Maintenance - Equipment, Furniture And Materials",61702
http://statistics.data.gov.uk/id/local-authority/12UE,Huntingdonshire District Council,200072,B & H DIGITAL LTD B & H DIGITAL LTD,61550,22/03/2022,38150,printing works,13/04/2022,26.28,131.37,157.65,Printing,"Maintenance - Equipment, Furniture And Materials",61702
http://statistics.data.gov.uk/id/local-authority/12UE,Huntingdonshire District Council,200072,B & H DIGITAL LTD B & H DIGITAL LTD,64674,28/02/2022,38026,Outsourced Printing,19/05/2022,15.06,75.31,90.37,Printing,"Maintenance - Equipment, Furniture And Materials",61702
http://statistics.data.gov.uk/id/local-authority/12UE,Huntingdonshire District Council,200072,B & H DIGITAL LTD B & H DIGITAL LTD,64674,28/02/2022,38026,Outsourced Printing,19/05/2022,0,138.48,138.48,Printing,"Maintenance - Equipment, Furniture And Materials",61702
http://statistics.data.gov.uk/id/local-authority/12UE,Huntingdonshire District Council,200072,B & H DIGITAL LTD B & H DIGITAL LTD,63603,30/04/2022,38413,Outsourced Printing,26/05/2022,0,7.14,7.14,Printing,"Maintenance - Equipment, Furniture And Materials",61702
http://statistics.data.gov.uk/id/local-authority/12UE,Huntingdonshire District Council,200072,B & H DIGITAL LTD B & H DIGITAL LTD,63603,30/04/2022,38413,Outsourced Printing,26/05/2022,22.34,111.72,134.06,Printing,"Maintenance - Equipment, Furniture And Materials",61702
http://statistics.data.gov.uk/id/local-authority/12UE,Huntingdonshire District Council,200072,B & H DIGITAL LTD B & H DIGITAL LTD,65328,31/05/2022,38633,Outsourced Printing,30/06/2022,0,63.65,63.65,Printing,"Maintenance - Equipment, Furniture And Materials",61702
http://statistics.data.gov.uk/id/local-authority/12UE,Huntingdonshire District Council,200072,B & H DIGITAL LTD B & H DIGITAL LTD,65328,31/05/2022,38633,Outsourced Printing,30/06/2022,15.21,76.06,91.27,Printing,"Maintenance - Equipment, Furniture And Materials",61702
http://statistics.data.gov.uk/id/local-authority/12UE,Huntingdonshire District Council,200072,B & H DIGITAL LTD B & H DIGITAL LTD,63981,30/04/2022,38434,ops waste labels,26/05/2022,111.14,555.68,666.82,Trade Refuse,Printing,62001
http://statistics.data.gov.uk/id/local-authority/12UE,Huntingdonshire District Council,200072,B & H DIGITAL LTD B & H DIGITAL LTD,65410,31/05/2022,38640,Rejected Recycling Bin Hangers,30/06/2022,404.31,2021.54,2425.85,Waste Minimisation,Printing,62001
http://statistics.data.gov.uk/id/local-authority/12UE,Huntingdonshire District Council,200072,B & H DIGITAL LTD B & H DIGITAL LTD,63504,21/02/2022,38151,Leaflet Printing,28/04/2022,57.24,286.2,343.44,Waste Minimisation,Printing,62001
http://statistics.data.gov.uk/id/local-authority/12UE,Huntingdonshire District Council,200072,B & H DIGITAL LTD B & H DIGITAL LTD,63504,21/02/2022,38151,Leaflet Printing,28/04/2022,38,190,228,Waste Minimisation,Printing,62001
http://statistics.data.gov.uk/id/local-authority/12UE,Huntingdonshire District Council,201608,B I CATERING EQUIPMENT SERVICES,62174,01/04/2022,25394,OLSI Caf� Kitchen Deep Clean,28/04/2022,141.6,708,849.6,OLSI - Site & Centre Management,Maintenance - Building,60201
http://statistics.data.gov.uk/id/local-authority/12UE,Huntingdonshire District Council,200075,B S GRAVES ELECTRICAL LTD B S GRAVES ELECTRICAL LTD,61336,10/03/2022,30537,CHIA DFG 13124,07/04/2022,0,1386.72,1386.72,Disables Facilities Grants,Mandatory Grants,64601
http://statistics.data.gov.uk/id/local-authority/12UE,Huntingdonshire District Council,200075,B S GRAVES ELECTRICAL LTD B S GRAVES ELECTRICAL LTD,65312,11/05/2022,30643,HCP Rangers Hut Alterations,01/06/2022,114.7,573.5,688.2,Hinchingbrooke Park Management,Site Alterations And Materials,60273
http://statistics.data.gov.uk/id/local-authority/12UE,Huntingdonshire District Council,200075,B S GRAVES ELECTRICAL LTD B S GRAVES ELECTRICAL LTD,63555,27/04/2022,30614,Hunts Market Sq Repairs,19/05/2022,118.79,593.97,712.76,Markets Management,Maintenance - Building,60201
http://statistics.data.gov.uk/id/local-authority/12UE,Huntingdonshire District Council,200075,B S GRAVES ELECTRICAL LTD B S GRAVES ELECTRICAL LTD,63615,28/04/2022,30619,1-50 MHP Meter Checks,26/05/2022,198.05,990.24,1188.29,Mobile Home Park,Maintenance - Building,60201
http://statistics.data.gov.uk/id/local-authority/12UE,Huntingdonshire District Council,200079,BANDVULC TRUCK TYRES BANDVULC TRUCK TYRES,63737,28/04/2022,169477,Tyres P:4 W:0,26/05/2022,23.6,118.01,141.61,Domestic Waste Collection,Vehicle Accident Damage,60925
http://statistics.data.gov.uk/id/local-authority/12UE,Huntingdonshire District Council,200079,BANDVULC TRUCK TYRES BANDVULC TRUCK TYRES,63737,28/04/2022,169477,Tyres P:4 W:0,26/05/2022,264.63,1323.13,1587.76,Domestic Waste Collection,Vehicle Accident Damage,60925
http://statistics.data.gov.uk/id/local-authority/12UE,Huntingdonshire District Council,200079,BANDVULC TRUCK TYRES BANDVULC TRUCK TYRES,63737,28/04/2022,169477,Tyres P:4 W:0,26/05/2022,33.93,169.63,203.56,Domestic Waste Collection,Vehicle Accident Damage,60925
http://statistics.data.gov.uk/id/local-authority/12UE,Huntingdonshire District Council,200079,BANDVULC TRUCK TYRES BANDVULC TRUCK TYRES,65344,30/05/2022,170927,Tyres P:5 W:0,30/06/2022,25.63,128.13,153.76,Domestic Waste Collection,Vehicle Repairs And Maintenance,60904
http://statistics.data.gov.uk/id/local-authority/12UE,Huntingdonshire District Council,200079,BANDVULC TRUCK TYRES BANDVULC TRUCK TYRES,62544,30/03/2022,168753,Tyres P:3 W:0,21/04/2022,14.68,73.38,88.06,Domestic Waste Collection,Vehicle Repairs And Maintenance,60904
http://statistics.data.gov.uk/id/local-authority/12UE,Huntingdonshire District Council,200079,BANDVULC TRUCK TYRES BANDVULC TRUCK TYRES,65344,30/05/2022,170927,Tyres P:5 W:0,30/06/2022,22.35,111.75,134.1,Domestic Waste Collection,Vehicle Repairs And Maintenance,60904
http://statistics.data.gov.uk/id/local-authority/12UE,Huntingdonshire District Council,200079,BANDVULC TRUCK TYRES BANDVULC TRUCK TYRES,62544,30/03/2022,168753,Tyres P:3 W:0,21/04/2022,225.95,1129.75,1355.7,Domestic Waste Collection,Vehicle Repairs And Maintenance,60904
http://statistics.data.gov.uk/id/local-authority/12UE,Huntingdonshire District Council,200079,BANDVULC TRUCK TYRES BANDVULC TRUCK TYRES,65344,30/05/2022,170927,Tyres P:5 W:0,30/06/2022,16.7,83.5,100.2,Domestic Waste Collection,Vehicle Repairs And Maintenance,60904
http://statistics.data.gov.uk/id/local-authority/12UE,Huntingdonshire District Council,200079,BANDVULC TRUCK TYRES BANDVULC TRUCK TYRES,65344,30/05/2022,170927,Tyres P:5 W:0,30/06/2022,293.88,1469.4,1763.28,Domestic Waste Collection,Vehicle Repairs And Maintenance,60904
http://statistics.data.gov.uk/id/local-authority/12UE,Huntingdonshire District Council,200079,BANDVULC TRUCK TYRES BANDVULC TRUCK TYRES,65344,30/05/2022,170927,Tyres P:5 W:0,30/06/2022,8.93,44.63,53.56,Domestic Waste Collection,Vehicle Repairs And Maintenance,60904
http://statistics.data.gov.uk/id/local-authority/12UE,Huntingdonshire District Council,200079,BANDVULC TRUCK TYRES BANDVULC TRUCK TYRES,65344,30/05/2022,170927,Tyres P:5 W:0,30/06/2022,-0.01,0,-0.01,Finance,Over/Under VAT Rounding,68350
http://statistics.data.gov.uk/id/local-authority/12UE,Huntingdonshire District Council,200079,BANDVULC TRUCK TYRES BANDVULC TRUCK TYRES,65344,30/05/2022,170927,Tyres P:5 W:0,30/06/2022,270.71,1353.54,1624.25,Green Waste Collection,Vehicle Repairs And Maintenance,60904
http://statistics.data.gov.uk/id/local-authority/12UE,Huntingdonshire District Council,200079,BANDVULC TRUCK TYRES BANDVULC TRUCK TYRES,65344,30/05/2022,170927,Tyres P:5 W:0,30/06/2022,25.45,127.25,152.7,Green Waste Collection,Vehicle Repairs And Maintenance,60904
http://statistics.data.gov.uk/id/local-authority/12UE,Huntingdonshire District Council,200079,BANDVULC TRUCK TYRES BANDVULC TRUCK TYRES,63737,28/04/2022,169477,Tyres P:4 W:0,26/05/2022,194.25,971.26,1165.51,Recycling Collections,Vehicle Accident Damage,60925
http://statistics.data.gov.uk/id/local-authority/12UE,Huntingdonshire District Council,200079,BANDVULC TRUCK TYRES BANDVULC TRUCK TYRES,63737,28/04/2022,169477,Tyres P:4 W:0,26/05/2022,23.43,117.13,140.56,Recycling Collections,Vehicle Accident Damage,60925
http://statistics.data.gov.uk/id/local-authority/12UE,Huntingdonshire District Council,200079,BANDVULC TRUCK TYRES BANDVULC TRUCK TYRES,63737,28/04/2022,169477,Tyres P:4 W:0,26/05/2022,384.4,1922.01,2306.41,Recycling Collections,Vehicle Accident Damage,60925
http://statistics.data.gov.uk/id/local-authority/12UE,Huntingdonshire District Council,200079,BANDVULC TRUCK TYRES BANDVULC TRUCK TYRES,63737,28/04/2022,169477,Tyres P:4 W:0,26/05/2022,67.7,338.5,406.2,Recycling Collections,Vehicle Accident Damage,60925
http://statistics.data.gov.uk/id/local-authority/12UE,Huntingdonshire District Council,200079,BANDVULC TRUCK TYRES BANDVULC TRUCK TYRES,63737,28/04/2022,169477,Tyres P:4 W:0,26/05/2022,137.4,687.01,824.41,Recycling Collections,Vehicle Accident Damage,60925
http://statistics.data.gov.uk/id/local-authority/12UE,Huntingdonshire District Council,200079,BANDVULC TRUCK TYRES BANDVULC TRUCK TYRES,62544,30/03/2022,168753,Tyres P:3 W:0,21/04/2022,38.28,191.39,229.67,Recycling Collections,Vehicle Repairs And Maintenance,60904
http://statistics.data.gov.uk/id/local-authority/12UE,Huntingdonshire District Council,200079,BANDVULC TRUCK TYRES BANDVULC TRUCK TYRES,62544,30/03/2022,168753,Tyres P:3 W:0,21/04/2022,60.28,301.39,361.67,Recycling Collections,Vehicle Repairs And Maintenance,60904
http://statistics.data.gov.uk/id/local-authority/12UE,Huntingdonshire District Council,200079,BANDVULC TRUCK TYRES BANDVULC TRUCK TYRES,65344,30/05/2022,170927,Tyres P:5 W:0,30/06/2022,284.25,1421.26,1705.51,Recycling Collections,Vehicle Repairs And Maintenance,60904
http://statistics.data.gov.uk/id/local-authority/12UE,Huntingdonshire District Council,200079,BANDVULC TRUCK TYRES BANDVULC TRUCK TYRES,63737,28/04/2022,169477,Tyres P:4 W:0,26/05/2022,52.65,263.25,315.9,Trade Refuse,Vehicle Accident Damage,60925
http://statistics.data.gov.uk/id/local-authority/12UE,Huntingdonshire District Council,200079,BANDVULC TRUCK TYRES BANDVULC TRUCK TYRES,62544,30/03/2022,168753,Tyres P:3 W:0,21/04/2022,302.95,1514.77,1817.72,Weekly Bags,Vehicle Repairs And Maintenance,60904
http://statistics.data.gov.uk/id/local-authority/12UE,Huntingdonshire District Council,201198,Barham & Woolley Parish Council,63400,27/04/2022,PARISH PRECEPT APR 22,Parish Precept - April 2022,27/04/2022,0,900,900,P C Precept Barham & Wooley,Precepts,66301
http://statistics.data.gov.uk/id/local-authority/12UE,Huntingdonshire District Council,200090,BDO LLP BDO LLP,64938,24/05/2022,INV-0019206,BDO IT Audit 2021-22,16/06/2022,1320,6600,7920,Audit,Audit Fees,62100
http://statistics.data.gov.uk/id/local-authority/12UE,Huntingdonshire District Council,200090,BDO LLP BDO LLP,64938,24/05/2022,INV-0019206,BDO IT Audit 2021-22,16/06/2022,198,990,1188,Audit,Audit Fees,62100
http://statistics.data.gov.uk/id/local-authority/12UE,Huntingdonshire District Council,200096,BEN BURGESS & COMPANY BEN BURGESS & COMPANY,64176,05/05/2022,949326,olsioutdoor equipment,01/06/2022,-0.02,0,-0.02,Finance,Over/Under VAT Rounding,68350
http://statistics.data.gov.uk/id/local-authority/12UE,Huntingdonshire District Council,200096,BEN BURGESS & COMPANY BEN BURGESS & COMPANY,61908,18/03/2022,948313,Annual Tractor Services,13/04/2022,0.01,0,0.01,Finance,Over/Under VAT Rounding,68350
http://statistics.data.gov.uk/id/local-authority/12UE,Huntingdonshire District Council,200096,BEN BURGESS & COMPANY BEN BURGESS & COMPANY,61907,18/03/2022,948314,Annual Tractor Service,13/04/2022,-0.01,0,-0.01,Finance,Over/Under VAT Rounding,68350
http://statistics.data.gov.uk/id/local-authority/12UE,Huntingdonshire District Council,200096,BEN BURGESS & COMPANY BEN BURGESS & COMPANY,61836,19/03/2022,948334,Annual Tractor Services,13/04/2022,8.42,42.08,50.5,OLSIO - Site & Centre Management,Equipment,61713
http://statistics.data.gov.uk/id/local-authority/12UE,Huntingdonshire District Council,200096,BEN BURGESS & COMPANY BEN BURGESS & COMPANY,64176,05/05/2022,949326,olsioutdoor equipment,01/06/2022,312.25,1561.26,1873.51,OLSIO - Site & Centre Management,Grounds Maintenance,60503
http://statistics.data.gov.uk/id/local-authority/12UE,Huntingdonshire District Council,200096,BEN BURGESS & COMPANY BEN BURGESS & COMPANY,64801,18/03/2022,948311,OLSIO Grounds Maintenance,26/05/2022,121.02,605.09,726.11,OLSIO - Site & Centre Management,Grounds Maintenance,60503
http://statistics.data.gov.uk/id/local-authority/12UE,Huntingdonshire District Council,200096,BEN BURGESS & COMPANY BEN BURGESS & COMPANY,61908,18/03/2022,948313,Annual Tractor Services,13/04/2022,134.41,672.05,806.46,OLSIO - Site & Centre Management,Vehicle Maintenance - External,60921
http://statistics.data.gov.uk/id/local-authority/12UE,Huntingdonshire District Council,200096,BEN BURGESS & COMPANY BEN BURGESS & COMPANY,61909,18/03/2022,948310,Annual Tractor Services,13/04/2022,100.29,501.47,601.76,OLSIO - Site & Centre Management,Vehicle Maintenance - External,60921
http://statistics.data.gov.uk/id/local-authority/12UE,Huntingdonshire District Council,200096,BEN BURGESS & COMPANY BEN BURGESS & COMPANY,61905,18/03/2022,948312,Annual Tractor Service,13/04/2022,67.55,337.74,405.29,OLSIO - Site & Centre Management,Vehicle Maintenance - External,60921
http://statistics.data.gov.uk/id/local-authority/12UE,Huntingdonshire District Council,200096,BEN BURGESS & COMPANY BEN BURGESS & COMPANY,61836,19/03/2022,948334,Annual Tractor Services,13/04/2022,14.35,71.74,86.09,OLSIO - Site & Centre Management,Vehicle Maintenance - External,60921
http://statistics.data.gov.uk/id/local-authority/12UE,Huntingdonshire District Council,200096,BEN BURGESS & COMPANY BEN BURGESS & COMPANY,61836,19/03/2022,948334,Annual Tractor Services,13/04/2022,9.67,48.32,57.99,OLSIO - Site & Centre Management,Vehicle Maintenance - External,60921
http://statistics.data.gov.uk/id/local-authority/12UE,Huntingdonshire District Council,200096,BEN BURGESS & COMPANY BEN BURGESS & COMPANY,61836,19/03/2022,948334,Annual Tractor Services,13/04/2022,19.23,96.15,115.38,OLSIO - Site & Centre Management,Vehicle Maintenance - External,60921
http://statistics.data.gov.uk/id/local-authority/12UE,Huntingdonshire District Council,200096,BEN BURGESS & COMPANY BEN BURGESS & COMPANY,61836,19/03/2022,948334,Annual Tractor Services,13/04/2022,7.17,35.83,43,OLSIO - Site & Centre Management,Vehicle Maintenance - External,60921
http://statistics.data.gov.uk/id/local-authority/12UE,Huntingdonshire District Council,200096,BEN BURGESS & COMPANY BEN BURGESS & COMPANY,61907,18/03/2022,948314,Annual Tractor Service,13/04/2022,50.1,250.48,300.58,OLSIO - Site & Centre Management,Vehicle Maintenance - External,60921
http://statistics.data.gov.uk/id/local-authority/12UE,Huntingdonshire District Council,200101,BID HUNTINGDON BID HUNTINGDON,62392,06/04/2022,INV-1935,BID Levy Nov21-Oct22,11/04/2022,1459.25,7296.25,8755.5,Bid Revenue Account,Payment Of Amount Due,23003
http://statistics.data.gov.uk/id/local-authority/12UE,Huntingdonshire District Council,200101,BID HUNTINGDON BID HUNTINGDON,63630,25/04/2022,INV-1942,BID Levy Mar 22,05/05/2022,291.25,1456.25,1747.5,Bid Revenue Account,Payment Of Amount Due,23003
http://statistics.data.gov.uk/id/local-authority/12UE,Huntingdonshire District Council,200101,BID HUNTINGDON BID HUNTINGDON,64898,25/05/2022,INV-1945,BID Levy May22,26/05/2022,161.76,808.8,970.56,Bid Revenue Account,Payment Of Amount Due,23003
http://statistics.data.gov.uk/id/local-authority/12UE,Huntingdonshire District Council,202004,BLOOM PROCUREMENT SERVICES LTD,64165,25/04/2022,SIN032795,OPS 2 DISBURSEMENTS,12/05/2022,908.27,4541.33,5449.6,Bridge Place Car Park Const,Consultancy Fees,62400
http://statistics.data.gov.uk/id/local-authority/12UE,Huntingdonshire District Council,202004,BLOOM PROCUREMENT SERVICES LTD,66297,21/06/2022,SIN034309,Payment Schedule 6 May22,30/06/2022,532.53,2662.66,3195.19,Bridge Place Car Park Const,Consultancy Fees,62400
http://statistics.data.gov.uk/id/local-authority/12UE,Huntingdonshire District Council,202004,BLOOM PROCUREMENT SERVICES LTD,65071,20/05/2022,SIN033502,OPS SCHEDULE 050422,30/05/2022,133.33,666.66,799.99,Bridge Place Car Park Const,Consultancy Fees,62400
http://statistics.data.gov.uk/id/local-authority/12UE,Huntingdonshire District Council,202004,BLOOM PROCUREMENT SERVICES LTD,64165,25/04/2022,SIN032795,OPS 2 DISBURSEMENTS,12/05/2022,-0.01,0,-0.01,Finance,Over/Under VAT Rounding,68350
http://statistics.data.gov.uk/id/local-authority/12UE,Huntingdonshire District Council,202004,BLOOM PROCUREMENT SERVICES LTD,65071,20/05/2022,SIN033502,OPS SCHEDULE 050422,30/05/2022,0.01,0,0.01,Finance,Over/Under VAT Rounding,68350
http://statistics.data.gov.uk/id/local-authority/12UE,Huntingdonshire District Council,202004,BLOOM PROCUREMENT SERVICES LTD,64165,25/04/2022,SIN032795,OPS 2 DISBURSEMENTS,12/05/2022,908.27,4541.33,5449.6,Hinchingbrooke Country Park,Consultancy Fees,62400
http://statistics.data.gov.uk/id/local-authority/12UE,Huntingdonshire District Council,202004,BLOOM PROCUREMENT SERVICES LTD,66297,21/06/2022,SIN034309,Payment Schedule 6 May22,30/06/2022,532.53,2662.67,3195.2,Hinchingbrooke Country Park,Consultancy Fees,62400
http://statistics.data.gov.uk/id/local-authority/12UE,Huntingdonshire District Council,202004,BLOOM PROCUREMENT SERVICES LTD,65071,20/05/2022,SIN033502,OPS SCHEDULE 050422,30/05/2022,133.33,666.67,800,Hinchingbrooke Country Park,Consultancy Fees,62400
http://statistics.data.gov.uk/id/local-authority/12UE,Huntingdonshire District Council,202004,BLOOM PROCUREMENT SERVICES LTD,64165,25/04/2022,SIN032795,OPS 2 DISBURSEMENTS,12/05/2022,908.27,4541.34,5449.61,St Neots Riverside Park Path/Cycle Imps,Consultancy Fees,62400
http://statistics.data.gov.uk/id/local-authority/12UE,Huntingdonshire District Council,202004,BLOOM PROCUREMENT SERVICES LTD,66297,21/06/2022,SIN034309,Payment Schedule 6 May22,30/06/2022,532.53,2662.66,3195.19,St Neots Riverside Park Path/Cycle Imps,Consultancy Fees,62400
http://statistics.data.gov.uk/id/local-authority/12UE,Huntingdonshire District Council,202004,BLOOM PROCUREMENT SERVICES LTD,65071,20/05/2022,SIN033502,OPS SCHEDULE 050422,30/05/2022,133.33,666.67,800,St Neots Riverside Park Path/Cycle Imps,Consultancy Fees,62400
http://statistics.data.gov.uk/id/local-authority/12UE,Huntingdonshire District Council,201072,BLUNTISHAM IDB,64014,10/01/2022,BLUNT/60 10.01.22,drainage 07.01.22,12/05/2022,0,12176,12176,Bluntisham,Levies Paid,69110
http://statistics.data.gov.uk/id/local-authority/12UE,Huntingdonshire District Council,201199,Bluntisham Parish Council,63058,20/04/2022,CIL FUNDING 22-23 - 3,CIL Funding 2022-2023,21/04/2022,0,2591.41,2591.41,Community Infrastruct Levy Cil,Cil Payment To Parishes,66402
http://statistics.data.gov.uk/id/local-authority/12UE,Huntingdonshire District Council,201199,Bluntisham Parish Council,63400,27/04/2022,PARISH PRECEPT APR 22,Parish Precept - April 2022,27/04/2022,0,48689,48689,P C Precept Bluntisham,Precepts,66301
http://statistics.data.gov.uk/id/local-authority/12UE,Huntingdonshire District Council,201138,BORNEY UK LTD,63397,25/04/2022,55097,Huntingdonshire Day Flag,19/05/2022,53.37,266.85,320.22,Civic Allowances & Support,"Maintenance - Equipment, Furniture And Materials",61702
http://statistics.data.gov.uk/id/local-authority/12UE,Huntingdonshire District Council,201138,BORNEY UK LTD,63515,20/04/2022,55057,Annual Flagpole Maintenance,12/05/2022,61,305,366,Eastfield House,Maintenance - Building,60201
http://statistics.data.gov.uk/id/local-authority/12UE,Huntingdonshire District Council,201490,BPHA LTD,62860,31/03/2022,REDACTED,REDACTED,21/04/2022,0,255.83,255.83,Homelessness,Homeless Prevention Payments,64403
http://statistics.data.gov.uk/id/local-authority/12UE,Huntingdonshire District Council,200117,BRAMBLE HUB LTD BRAMBLE HUB LTD,61988,28/03/2022,12151,IT Software,21/04/2022,19334.75,96673.75,116008.5,HDC Business Case ,Ict Software,64071
http://statistics.data.gov.uk/id/local-authority/12UE,Huntingdonshire District Council,200117,BRAMBLE HUB LTD BRAMBLE HUB LTD,61271,11/03/2022,INV-12109,Gladstone Pay Gateway,07/04/2022,1444.4,7222,8666.4,HDC Business Case ,Ict Software,64071
http://statistics.data.gov.uk/id/local-authority/12UE,Huntingdonshire District Council,200117,BRAMBLE HUB LTD BRAMBLE HUB LTD,63434,30/03/2022,INV-12010,3CICT BLUETOOTH TERMINAL,28/04/2022,214,1070,1284,HDC Business Case ,"Maintenance - Equipment, Furniture And Materials",61702
http://statistics.data.gov.uk/id/local-authority/12UE,Huntingdonshire District Council,200117,BRAMBLE HUB LTD BRAMBLE HUB LTD,63434,30/03/2022,INV-12010,3CICT BLUETOOTH TERMINAL,28/04/2022,2620,13100,15720,HDC Business Case ,"Maintenance - Equipment, Furniture And Materials",61702
http://statistics.data.gov.uk/id/local-authority/12UE,Huntingdonshire District Council,200117,BRAMBLE HUB LTD BRAMBLE HUB LTD,65446,31/05/2022,12337,OLSI ANNUAL SUPPORT,30/06/2022,217.98,1089.88,1307.86,One Leisure Support Team,Ict Software,64071
http://statistics.data.gov.uk/id/local-authority/12UE,Huntingdonshire District Council,202955,Brampton Dental Practice,63701,27/04/2022,REFUND PAYMENT 804378,Refund Payment 804378,05/05/2022,0,976,976,Sales Control 2,Sales Control 2,12052
http://statistics.data.gov.uk/id/local-authority/12UE,Huntingdonshire District Council,201200,Brampton Parish Council,63058,20/04/2022,CIL FUNDING 22-23 - 4,CIL Funding 2022-2023,21/04/2022,0,3762.74,3762.74,Community Infrastruct Levy Cil,Cil Payment To Parishes,66402
http://statistics.data.gov.uk/id/local-authority/12UE,Huntingdonshire District Council,201200,Brampton Parish Council,63400,27/04/2022,PARISH PRECEPT APR 22,Parish Precept - April 2022,27/04/2022,0,151896,151896,P C Precept Brampton,Precepts,66301
http://statistics.data.gov.uk/id/local-authority/12UE,Huntingdonshire District Council,201200,Brampton Parish Council,64834,17/05/2022,3RD PARTY TEXTILE MAY22,3rd Party Textile Credit May22,26/05/2022,0,382.8,382.8,Recycling Collections,Sales - Textiles,51216
http://statistics.data.gov.uk/id/local-authority/12UE,Huntingdonshire District Council,202381,BRAMPTON VILLAGE HUB,63717,29/04/2022,COMMUNITY CHEST GRANT 290422,Community Chest Grant,05/05/2022,0,1000,1000,VAT,Grants And Contributions,64600
http://statistics.data.gov.uk/id/local-authority/12UE,Huntingdonshire District Council,202936,Bridge Planning Ltd,62628,08/04/2022,INV-001,Planning Consultant 01-08.04.22,13/04/2022,0,1890,1890,Development Management,Agency Staff,60011
http://statistics.data.gov.uk/id/local-authority/12UE,Huntingdonshire District Council,202936,Bridge Planning Ltd,63128,14/04/2022,INV-002,Consultancy Fees 11-14.04.22,25/04/2022,0,1665,1665,Development Management,Agency Staff,60011
http://statistics.data.gov.uk/id/local-authority/12UE,Huntingdonshire District Council,202936,Bridge Planning Ltd,63395,22/04/2022,INV-003,Planning Consultant 19-22.04.22,28/04/2022,0,1665,1665,Development Management,Agency Staff,60011
http://statistics.data.gov.uk/id/local-authority/12UE,Huntingdonshire District Council,202936,Bridge Planning Ltd,63838,28/04/2022,INV-004,Planning Consultant 25-28.04.22,09/05/2022,333,1665,1998,Development Management,Agency Staff,60011
http://statistics.data.gov.uk/id/local-authority/12UE,Huntingdonshire District Council,202936,Bridge Planning Ltd,64193,06/05/2022,5,planning conultant 030522-060522,12/05/2022,333,1665,1998,Development Management,Agency Staff,60011
http://statistics.data.gov.uk/id/local-authority/12UE,Huntingdonshire District Council,202936,Bridge Planning Ltd,64450,12/05/2022,INV-006,Planning Consultant 09-12.05.22,19/05/2022,333,1665,1998,Development Management,Agency Staff,60011
http://statistics.data.gov.uk/id/local-authority/12UE,Huntingdonshire District Council,202936,Bridge Planning Ltd,64934,19/05/2022,INV-007,Planning Consultant 16-19.05.22,26/05/2022,333,1665,1998,Development Management,Agency Staff,60011
http://statistics.data.gov.uk/id/local-authority/12UE,Huntingdonshire District Council,202936,Bridge Planning Ltd,65259,26/05/2022,8,planning consultant 2305-260522,01/06/2022,333,1665,1998,Development Management,Agency Staff,60011
http://statistics.data.gov.uk/id/local-authority/12UE,Huntingdonshire District Council,202936,Bridge Planning Ltd,65767,09/06/2022,INV-010,Planning Consultant 06-09.06.22,13/06/2022,333,1665,1998,Development Management,Agency Staff,60011
http://statistics.data.gov.uk/id/local-authority/12UE,Huntingdonshire District Council,202936,Bridge Planning Ltd,66199,16/06/2022,INV-011,Planning Consultant 13-16.06.22,23/06/2022,333,1665,1998,Development Management,Agency Staff,60011
http://statistics.data.gov.uk/id/local-authority/12UE,Huntingdonshire District Council,202936,Bridge Planning Ltd,66478,23/06/2022,INV-012,Planning Consultant 20-23.06.22,30/06/2022,333,1665,1998,Development Management,Agency Staff,60011
http://statistics.data.gov.uk/id/local-authority/12UE,Huntingdonshire District Council,202936,Bridge Planning Ltd,65573,01/06/2022,INV-009,CONSULTANT 300522-010622,09/06/2022,265.5,1327.5,1593,Development Management,Agency Staff,60011
http://statistics.data.gov.uk/id/local-authority/12UE,Huntingdonshire District Council,201202,Brington & Molesworth Parish Council,63058,20/04/2022,CIL FUNDING 22-23 - 5,CIL Funding 2022-2023,21/04/2022,0,5035.68,5035.68,Community Infrastruct Levy Cil,Cil Payment To Parishes,66402
http://statistics.data.gov.uk/id/local-authority/12UE,Huntingdonshire District Council,201202,Brington & Molesworth Parish Council,63400,27/04/2022,PARISH PRECEPT APR 22,Parish Precept - April 2022,27/04/2022,0,9693,9693,P C Precept Brington & Moleswor,Precepts,66301
http://statistics.data.gov.uk/id/local-authority/12UE,Huntingdonshire District Council,200126,BRITISH GAS BUSINESS BRITISH GAS BUSINESS,65843,05/04/2022,958845871,EFH March 200,16/06/2022,139.02,695.08,834.1,Eastfield House,Gas,60305
http://statistics.data.gov.uk/id/local-authority/12UE,Huntingdonshire District Council,200126,BRITISH GAS BUSINESS BRITISH GAS BUSINESS,65843,05/04/2022,958845871,EFH March 200,16/06/2022,0,-0.01,-0.01,Eastfield House,Gas,60305
http://statistics.data.gov.uk/id/local-authority/12UE,Huntingdonshire District Council,200126,BRITISH GAS BUSINESS BRITISH GAS BUSINESS,63983,03/05/2022,953981407,facilities efh april 22,12/05/2022,122.79,613.93,736.72,Eastfield House,Gas,60305
http://statistics.data.gov.uk/id/local-authority/12UE,Huntingdonshire District Council,200126,BRITISH GAS BUSINESS BRITISH GAS BUSINESS,65502,06/06/2022,956870538,EFH MAY 22,16/06/2022,92.46,462.3,554.76,Eastfield House,Gas,60305
http://statistics.data.gov.uk/id/local-authority/12UE,Huntingdonshire District Council,200126,BRITISH GAS BUSINESS BRITISH GAS BUSINESS,64248,03/05/2022,953981404,OLSI Apr22,12/05/2022,-0.01,0,-0.01,Finance,Over/Under VAT Rounding,68350
http://statistics.data.gov.uk/id/local-authority/12UE,Huntingdonshire District Council,200126,BRITISH GAS BUSINESS BRITISH GAS BUSINESS,63120,13/04/2022,717644850,OLR Final Bill Mar22,21/04/2022,-0.01,0,-0.01,Finance,Over/Under VAT Rounding,68350
http://statistics.data.gov.uk/id/local-authority/12UE,Huntingdonshire District Council,200126,BRITISH GAS BUSINESS BRITISH GAS BUSINESS,64254,03/05/2022,986565349,OLH Dry Apr22,12/05/2022,-0.01,0,-0.01,Finance,Over/Under VAT Rounding,68350
http://statistics.data.gov.uk/id/local-authority/12UE,Huntingdonshire District Council,200126,BRITISH GAS BUSINESS BRITISH GAS BUSINESS,66082,16/06/2022,717951122,OLSN Dry Apr-May22,30/06/2022,-0.01,0,-0.01,Finance,Over/Under VAT Rounding,68350
http://statistics.data.gov.uk/id/local-authority/12UE,Huntingdonshire District Council,200126,BRITISH GAS BUSINESS BRITISH GAS BUSINESS,63983,03/05/2022,953981407,facilities efh april 22,12/05/2022,-0.01,0,-0.01,Finance,Over/Under VAT Rounding,68350
http://statistics.data.gov.uk/id/local-authority/12UE,Huntingdonshire District Council,200126,BRITISH GAS BUSINESS BRITISH GAS BUSINESS,66169,14/06/2022,717937676,OLSIO Apr-May22,30/06/2022,-0.01,0,-0.01,Finance,Over/Under VAT Rounding,68350
http://statistics.data.gov.uk/id/local-authority/12UE,Huntingdonshire District Council,200126,BRITISH GAS BUSINESS BRITISH GAS BUSINESS,66080,16/06/2022,717951117,OLSN Dry Aug21,30/06/2022,-0.01,0,-0.01,Finance,Over/Under VAT Rounding,68350
http://statistics.data.gov.uk/id/local-authority/12UE,Huntingdonshire District Council,200126,BRITISH GAS BUSINESS BRITISH GAS BUSINESS,65503,06/06/2022,956870537,PFH MAY 22,16/06/2022,-0.01,0,-0.01,Finance,Over/Under VAT Rounding,68350
http://statistics.data.gov.uk/id/local-authority/12UE,Huntingdonshire District Council,200126,BRITISH GAS BUSINESS BRITISH GAS BUSINESS,66226,06/06/2022,717896397,Cancel 340843108,30/06/2022,0.01,-0.01,0,Finance,Over/Under VAT Rounding,68350
http://statistics.data.gov.uk/id/local-authority/12UE,Huntingdonshire District Council,200126,BRITISH GAS BUSINESS BRITISH GAS BUSINESS,66227,06/06/2022,717896396,Cancel 430652936,30/06/2022,0.01,-0.01,0,Finance,Over/Under VAT Rounding,68350
http://statistics.data.gov.uk/id/local-authority/12UE,Huntingdonshire District Council,200126,BRITISH GAS BUSINESS BRITISH GAS BUSINESS,66228,06/06/2022,717896394,Cancel 973662333,30/06/2022,0.01,-0.01,0,Finance,Over/Under VAT Rounding,68350
http://statistics.data.gov.uk/id/local-authority/12UE,Huntingdonshire District Council,200126,BRITISH GAS BUSINESS BRITISH GAS BUSINESS,66230,06/06/2022,717896391,Cancel 996445361,30/06/2022,0.01,-0.01,0,Finance,Over/Under VAT Rounding,68350
http://statistics.data.gov.uk/id/local-authority/12UE,Huntingdonshire District Council,200126,BRITISH GAS BUSINESS BRITISH GAS BUSINESS,66233,06/06/2022,717896392,Cancel 96575730,30/06/2022,0.01,-0.01,0,Finance,Over/Under VAT Rounding,68350
http://statistics.data.gov.uk/id/local-authority/12UE,Huntingdonshire District Council,200126,BRITISH GAS BUSINESS BRITISH GAS BUSINESS,66235,06/06/2022,717896384,Cancel 958845869,30/06/2022,0.01,-0.01,0,Finance,Over/Under VAT Rounding,68350
http://statistics.data.gov.uk/id/local-authority/12UE,Huntingdonshire District Council,200126,BRITISH GAS BUSINESS BRITISH GAS BUSINESS,66237,06/06/2022,717896370,Cancel 956870536,30/06/2022,0.01,-0.01,0,Finance,Over/Under VAT Rounding,68350
http://statistics.data.gov.uk/id/local-authority/12UE,Huntingdonshire District Council,200126,BRITISH GAS BUSINESS BRITISH GAS BUSINESS,66180,06/06/2022,717896398,OLSN Cancel 716268740,30/06/2022,0.01,-0.01,0,Finance,Over/Under VAT Rounding,68350
http://statistics.data.gov.uk/id/local-authority/12UE,Huntingdonshire District Council,200126,BRITISH GAS BUSINESS BRITISH GAS BUSINESS,66173,16/06/2022,717950771,Cancel 717644850,30/06/2022,0.01,-0.01,0,Finance,Over/Under VAT Rounding,68350
http://statistics.data.gov.uk/id/local-authority/12UE,Huntingdonshire District Council,200126,BRITISH GAS BUSINESS BRITISH GAS BUSINESS,62327,05/04/2022,958845865,OLH Dry Mar22,13/04/2022,176.35,881.73,1058.08,OLH - Site & Centre Management,Gas,60305
http://statistics.data.gov.uk/id/local-authority/12UE,Huntingdonshire District Council,200126,BRITISH GAS BUSINESS BRITISH GAS BUSINESS,64254,03/05/2022,986565349,OLH Dry Apr22,12/05/2022,151.27,756.33,907.6,OLH - Site & Centre Management,Gas,60305
http://statistics.data.gov.uk/id/local-authority/12UE,Huntingdonshire District Council,200126,BRITISH GAS BUSINESS BRITISH GAS BUSINESS,65458,06/06/2022,956870532,May 22 OLH,16/06/2022,133.07,665.32,798.39,OLH - Site & Centre Management,Gas,60305
http://statistics.data.gov.uk/id/local-authority/12UE,Huntingdonshire District Council,200126,BRITISH GAS BUSINESS BRITISH GAS BUSINESS,65459,06/06/2022,965870534,OLH MAY 22,16/06/2022,688.04,3440.22,4128.26,OLH - Swimming,Gas,60305
http://statistics.data.gov.uk/id/local-authority/12UE,Huntingdonshire District Council,200126,BRITISH GAS BUSINESS BRITISH GAS BUSINESS,64247,03/05/2022,953987403,OLH Wet Apr22,12/05/2022,566.27,2831.36,3397.63,OLH - Swimming,Gas,60305
http://statistics.data.gov.uk/id/local-authority/12UE,Huntingdonshire District Council,200126,BRITISH GAS BUSINESS BRITISH GAS BUSINESS,62325,05/04/2022,958845867,OLH Wet Mar22,13/04/2022,399.83,1999.15,2398.98,OLH - Swimming,Gas,60305
http://statistics.data.gov.uk/id/local-authority/12UE,Huntingdonshire District Council,200126,BRITISH GAS BUSINESS BRITISH GAS BUSINESS,63120,13/04/2022,717644850,OLR Final Bill Mar22,21/04/2022,469.76,2348.78,2818.54,OLR - Site & Centre Management,Gas,60305
http://statistics.data.gov.uk/id/local-authority/12UE,Huntingdonshire District Council,200126,BRITISH GAS BUSINESS BRITISH GAS BUSINESS,62321,05/04/2022,958845872,OLR Mar22,13/04/2022,450.01,2250.05,2700.06,OLR - Site & Centre Management,Gas,60305
http://statistics.data.gov.uk/id/local-authority/12UE,Huntingdonshire District Council,200126,BRITISH GAS BUSINESS BRITISH GAS BUSINESS,66168,16/06/2022,717950773,OLR Mar22,30/06/2022,440.04,2200.21,2640.25,OLR - Site & Centre Management,Gas,60305
http://statistics.data.gov.uk/id/local-authority/12UE,Huntingdonshire District Council,200126,BRITISH GAS BUSINESS BRITISH GAS BUSINESS,63119,11/04/2022,717632979,OLR Mar22 Credit/Re-Invoice,12/05/2022,-450.01,-2250.05,-2700.06,OLR - Site & Centre Management,Gas,60305
http://statistics.data.gov.uk/id/local-authority/12UE,Huntingdonshire District Council,200126,BRITISH GAS BUSINESS BRITISH GAS BUSINESS,66173,16/06/2022,717950771,Cancel 717644850,30/06/2022,-469.76,-2348.77,-2818.53,OLR - Site & Centre Management,Gas,60305
http://statistics.data.gov.uk/id/local-authority/12UE,Huntingdonshire District Council,200126,BRITISH GAS BUSINESS BRITISH GAS BUSINESS,62324,05/04/2022,958845868,OLSI Mar22,13/04/2022,1312.63,6563.16,7875.79,OLSI - Site & Centre Management,Gas,60305
http://statistics.data.gov.uk/id/local-authority/12UE,Huntingdonshire District Council,200126,BRITISH GAS BUSINESS BRITISH GAS BUSINESS,64248,03/05/2022,953981404,OLSI Apr22,12/05/2022,1261.3,6306.49,7567.79,OLSI - Site & Centre Management,Gas,60305
http://statistics.data.gov.uk/id/local-authority/12UE,Huntingdonshire District Council,200126,BRITISH GAS BUSINESS BRITISH GAS BUSINESS,65462,06/06/2022,956870535,OLSTI MAY 22,16/06/2022,1194.57,5972.85,7167.42,OLSI - Site & Centre Management,Gas,60305
http://statistics.data.gov.uk/id/local-authority/12UE,Huntingdonshire District Council,200126,BRITISH GAS BUSINESS BRITISH GAS BUSINESS,62322,06/04/2022,985561544,OLSIO Mar22,13/04/2022,125.75,628.72,754.47,OLSIO - Site & Centre Management,Gas,60305
http://statistics.data.gov.uk/id/local-authority/12UE,Huntingdonshire District Council,200126,BRITISH GAS BUSINESS BRITISH GAS BUSINESS,66013,13/06/2022,717928829,OLSIO Apr22,30/06/2022,121.99,609.97,731.96,OLSIO - Site & Centre Management,Gas,60305
http://statistics.data.gov.uk/id/local-authority/12UE,Huntingdonshire District Council,200126,BRITISH GAS BUSINESS BRITISH GAS BUSINESS,66169,14/06/2022,717937676,OLSIO Apr-May22,30/06/2022,85.55,427.74,513.29,OLSIO - Site & Centre Management,Gas,60305
http://statistics.data.gov.uk/id/local-authority/12UE,Huntingdonshire District Council,200126,BRITISH GAS BUSINESS BRITISH GAS BUSINESS,66092,16/06/2022,717951119,OLSN Dry Oct-Dec21,30/06/2022,176.63,883.16,1059.79,OLSN - Site & Centre Management,Gas,60305
http://statistics.data.gov.uk/id/local-authority/12UE,Huntingdonshire District Council,200126,BRITISH GAS BUSINESS BRITISH GAS BUSINESS,66093,16/06/2022,717951121,OLSN Dry Feb-Mar22,30/06/2022,166.49,832.47,998.96,OLSN - Site & Centre Management,Gas,60305
http://statistics.data.gov.uk/id/local-authority/12UE,Huntingdonshire District Council,200126,BRITISH GAS BUSINESS BRITISH GAS BUSINESS,66091,16/06/2022,717951112,OLSN Dry Apr-May21,30/06/2022,34.79,695.82,730.61,OLSN - Site & Centre Management,Gas,60305
http://statistics.data.gov.uk/id/local-authority/12UE,Huntingdonshire District Council,200126,BRITISH GAS BUSINESS BRITISH GAS BUSINESS,66087,16/06/2022,717951118,OLSN Dry Sep-Oct21,30/06/2022,31.46,629.28,660.74,OLSN - Site & Centre Management,Gas,60305
http://statistics.data.gov.uk/id/local-authority/12UE,Huntingdonshire District Council,200126,BRITISH GAS BUSINESS BRITISH GAS BUSINESS,66082,16/06/2022,717951122,OLSN Dry Apr-May22,30/06/2022,31.14,622.77,653.91,OLSN - Site & Centre Management,Gas,60305
http://statistics.data.gov.uk/id/local-authority/12UE,Huntingdonshire District Council,200126,BRITISH GAS BUSINESS BRITISH GAS BUSINESS,66090,16/06/2022,717951120,OLSN Dry Jan22,30/06/2022,94.65,473.26,567.91,OLSN - Site & Centre Management,Gas,60305
http://statistics.data.gov.uk/id/local-authority/12UE,Huntingdonshire District Council,200126,BRITISH GAS BUSINESS BRITISH GAS BUSINESS,66089,16/06/2022,717951116,OLSN Dry Jul21,30/06/2022,14.77,295.49,310.26,OLSN - Site & Centre Management,Gas,60305
http://statistics.data.gov.uk/id/local-authority/12UE,Huntingdonshire District Council,200126,BRITISH GAS BUSINESS BRITISH GAS BUSINESS,66080,16/06/2022,717951117,OLSN Dry Aug21,30/06/2022,14.69,293.74,308.43,OLSN - Site & Centre Management,Gas,60305
http://statistics.data.gov.uk/id/local-authority/12UE,Huntingdonshire District Council,200126,BRITISH GAS BUSINESS BRITISH GAS BUSINESS,62323,05/04/2022,958845869,OLSN Dry Nov22,13/04/2022,13.23,264.58,277.81,OLSN - Site & Centre Management,Gas,60305
http://statistics.data.gov.uk/id/local-authority/12UE,Huntingdonshire District Council,200126,BRITISH GAS BUSINESS BRITISH GAS BUSINESS,65460,06/06/2022,956870536,olstn may 22,16/06/2022,13.23,264.58,277.81,OLSN - Site & Centre Management,Gas,60305
http://statistics.data.gov.uk/id/local-authority/12UE,Huntingdonshire District Council,200126,BRITISH GAS BUSINESS BRITISH GAS BUSINESS,64252,03/05/2022,953981405,OLSN Dry Apr22,12/05/2022,12.8,256.05,268.85,OLSN - Site & Centre Management,Gas,60305
http://statistics.data.gov.uk/id/local-authority/12UE,Huntingdonshire District Council,200126,BRITISH GAS BUSINESS BRITISH GAS BUSINESS,66229,06/06/2022,717896395,Cancel 954822698,30/06/2022,-12.8,-256.05,-268.85,OLSN - Site & Centre Management,Gas,60305
http://statistics.data.gov.uk/id/local-authority/12UE,Huntingdonshire District Council,200126,BRITISH GAS BUSINESS BRITISH GAS BUSINESS,66232,06/06/2022,717896393,Cancel 520608779,30/06/2022,-12.8,-256.05,-268.85,OLSN - Site & Centre Management,Gas,60305
http://statistics.data.gov.uk/id/local-authority/12UE,Huntingdonshire District Council,200126,BRITISH GAS BUSINESS BRITISH GAS BUSINESS,66234,22/06/2022,717896378,Cancel 953981405,30/06/2022,-12.8,-256.05,-268.85,OLSN - Site & Centre Management,Gas,60305
http://statistics.data.gov.uk/id/local-authority/12UE,Huntingdonshire District Council,200126,BRITISH GAS BUSINESS BRITISH GAS BUSINESS,66226,06/06/2022,717896397,Cancel 340843108,30/06/2022,-13.23,-264.58,-277.81,OLSN - Site & Centre Management,Gas,60305
http://statistics.data.gov.uk/id/local-authority/12UE,Huntingdonshire District Council,200126,BRITISH GAS BUSINESS BRITISH GAS BUSINESS,66227,06/06/2022,717896396,Cancel 430652936,30/06/2022,-13.23,-264.58,-277.81,OLSN - Site & Centre Management,Gas,60305
http://statistics.data.gov.uk/id/local-authority/12UE,Huntingdonshire District Council,200126,BRITISH GAS BUSINESS BRITISH GAS BUSINESS,66228,06/06/2022,717896394,Cancel 973662333,30/06/2022,-13.23,-264.58,-277.81,OLSN - Site & Centre Management,Gas,60305
http://statistics.data.gov.uk/id/local-authority/12UE,Huntingdonshire District Council,200126,BRITISH GAS BUSINESS BRITISH GAS BUSINESS,66230,06/06/2022,717896391,Cancel 996445361,30/06/2022,-13.23,-264.58,-277.81,OLSN - Site & Centre Management,Gas,60305
http://statistics.data.gov.uk/id/local-authority/12UE,Huntingdonshire District Council,200126,BRITISH GAS BUSINESS BRITISH GAS BUSINESS,66233,06/06/2022,717896392,Cancel 96575730,30/06/2022,-13.23,-264.58,-277.81,OLSN - Site & Centre Management,Gas,60305
http://statistics.data.gov.uk/id/local-authority/12UE,Huntingdonshire District Council,200126,BRITISH GAS BUSINESS BRITISH GAS BUSINESS,66235,06/06/2022,717896384,Cancel 958845869,30/06/2022,-13.23,-264.58,-277.81,OLSN - Site & Centre Management,Gas,60305
http://statistics.data.gov.uk/id/local-authority/12UE,Huntingdonshire District Council,200126,BRITISH GAS BUSINESS BRITISH GAS BUSINESS,66237,06/06/2022,717896370,Cancel 956870536,30/06/2022,-13.23,-264.58,-277.81,OLSN - Site & Centre Management,Gas,60305
http://statistics.data.gov.uk/id/local-authority/12UE,Huntingdonshire District Council,200126,BRITISH GAS BUSINESS BRITISH GAS BUSINESS,66180,06/06/2022,717896398,OLSN Cancel 716268740,30/06/2022,-13.66,-273.12,-286.78,OLSN - Site & Centre Management,Gas,60305
http://statistics.data.gov.uk/id/local-authority/12UE,Huntingdonshire District Council,200126,BRITISH GAS BUSINESS BRITISH GAS BUSINESS,66177,06/06/2022,717896400,Cancel 966673687 OLSN,30/06/2022,-16.82,-336.47,-353.29,OLSN - Site & Centre Management,Gas,60305
http://statistics.data.gov.uk/id/local-authority/12UE,Huntingdonshire District Council,200126,BRITISH GAS BUSINESS BRITISH GAS BUSINESS,62326,05/04/2022,958845866,OLSN Wet Mar22,13/04/2022,787.87,3939.32,4727.19,OLSN - Swimming,Gas,60305
http://statistics.data.gov.uk/id/local-authority/12UE,Huntingdonshire District Council,200126,BRITISH GAS BUSINESS BRITISH GAS BUSINESS,64250,03/05/2022,986565350,OLSN Wet Apr22,12/05/2022,662.81,3314.07,3976.88,OLSN - Swimming,Gas,60305
http://statistics.data.gov.uk/id/local-authority/12UE,Huntingdonshire District Council,200126,BRITISH GAS BUSINESS BRITISH GAS BUSINESS,65461,06/06/2022,956870533,olstn wet may 22,16/06/2022,572.98,2864.91,3437.89,OLSN - Swimming,Gas,60305
http://statistics.data.gov.uk/id/local-authority/12UE,Huntingdonshire District Council,200126,BRITISH GAS BUSINESS BRITISH GAS BUSINESS,65842,05/04/2022,958845870,PFH ACC NO 603033955,16/06/2022,183.08,915.4,1098.48,Pathfinder House,Gas,60305
http://statistics.data.gov.uk/id/local-authority/12UE,Huntingdonshire District Council,200126,BRITISH GAS BUSINESS BRITISH GAS BUSINESS,63984,03/05/2022,953981406,facilities PFH april 22,12/05/2022,114.34,571.71,686.05,Pathfinder House,Gas,60305
http://statistics.data.gov.uk/id/local-authority/12UE,Huntingdonshire District Council,200126,BRITISH GAS BUSINESS BRITISH GAS BUSINESS,65503,06/06/2022,956870537,PFH MAY 22,16/06/2022,13.23,264.59,277.82,Pathfinder House,Gas,60305
http://statistics.data.gov.uk/id/local-authority/12UE,Huntingdonshire District Council,202932,British Sugar Topsoil,62444,10/04/2022,51166301 RI,Bagged Hortloam topsoil,05/05/2022,114,570,684,Recycling Collections,Materials,61709
http://statistics.data.gov.uk/id/local-authority/12UE,Huntingdonshire District Council,200129,BRITISH TELECOMMUNICATIONS PLC BRITISH TELECOMMUNICATIONS PLC,64553,01/04/2022,20033853,Annual Charge,19/05/2022,3252.02,16260.11,19512.13,Cctv Huntingdonshire,Broadband Line Rental,64080
http://statistics.data.gov.uk/id/local-authority/12UE,Huntingdonshire District Council,200129,BRITISH TELECOMMUNICATIONS PLC BRITISH TELECOMMUNICATIONS PLC,64554,01/04/2022,20033826,Annual Charge Apr22-Mar23,19/05/2022,379.2,1896,2275.2,Cctv Huntingdonshire,Broadband Line Rental,64080
http://statistics.data.gov.uk/id/local-authority/12UE,Huntingdonshire District Council,202860,BROOME SIGNS,62825,28/03/2022,X-02-223708,OPS DOUBLE SIDED CASE,21/04/2022,498.76,2493.8,2992.56,Welcome Back Fund,"Maintenance - Equipment, Furniture And Materials",61702
http://statistics.data.gov.uk/id/local-authority/12UE,Huntingdonshire District Council,201203,Broughton Parish Council,63058,20/04/2022,CIL FUNDING 22-23 - 6,CIL Funding 2022-2023,21/04/2022,0,3292.69,3292.69,Community Infrastruct Levy Cil,Cil Payment To Parishes,66402
http://statistics.data.gov.uk/id/local-authority/12UE,Huntingdonshire District Council,201203,Broughton Parish Council,63400,27/04/2022,PARISH PRECEPT APR 22,Parish Precept - April 2022,27/04/2022,0,3500,3500,P C Precept Broughton,Precepts,66301
http://statistics.data.gov.uk/id/local-authority/12UE,Huntingdonshire District Council,201752,BROWN & CO PROPERY & BUSINESS CONSULTANTS LLP,66194,31/12/2021,26242,Service Fee- Steel Close,23/06/2022,250,1250,1500,Miscellaneous Properties,Consultancy Fees,62400
http://statistics.data.gov.uk/id/local-authority/12UE,Huntingdonshire District Council,201468,BROWNE JACOBSON LLP,62343,29/03/2022,IN-000109205,Legal Advice,21/04/2022,352.4,1762,2114.4,Market Towns,Charge From Legal Shared Service,68729
http://statistics.data.gov.uk/id/local-authority/12UE,Huntingdonshire District Council,200131,BROXAP LTD BROXAP LTD,64666,18/05/2022,INV289103,OPS BENCH,09/06/2022,502.2,2511,3013.2,Parks & Open Spaces,Site Alterations And Materials,60273
http://statistics.data.gov.uk/id/local-authority/12UE,Huntingdonshire District Council,200132,BRYAN LECOCHE LTD BRYAN LECOCHE LTD,66413,08/06/2022,6588,Subcontractors 14.05.22,30/06/2022,149.33,746.65,895.98,Env Protection,Subcontractors,62401
http://statistics.data.gov.uk/id/local-authority/12UE,Huntingdonshire District Council,200132,BRYAN LECOCHE LTD BRYAN LECOCHE LTD,66412,08/06/2022,6587,Subcontractors 28.04.22,30/06/2022,143.81,719.05,862.86,Env Protection,Subcontractors,62401
http://statistics.data.gov.uk/id/local-authority/12UE,Huntingdonshire District Council,200133,BSG PROPERTY SERVICES LTD BSG PROPERTY SERVICES LTD,62666,24/11/2021,S49784,REDACTED,21/04/2022,0,19717,19717,Disables Facilities Grants,Mandatory Grants,64601
http://statistics.data.gov.uk/id/local-authority/12UE,Huntingdonshire District Council,200133,BSG PROPERTY SERVICES LTD BSG PROPERTY SERVICES LTD,62700,09/02/2022,S50324,Safety Works,21/04/2022,0,13586.18,13586.18,Disables Facilities Grants,Mandatory Grants,64601
http://statistics.data.gov.uk/id/local-authority/12UE,Huntingdonshire District Council,200133,BSG PROPERTY SERVICES LTD BSG PROPERTY SERVICES LTD,62838,19/04/2022,S51189,REDACTED,12/05/2022,0,4644,4644,Disables Facilities Grants,Mandatory Grants,64601
http://statistics.data.gov.uk/id/local-authority/12UE,Huntingdonshire District Council,200133,BSG PROPERTY SERVICES LTD BSG PROPERTY SERVICES LTD,64574,22/03/2022,S50942,REDACTED,19/05/2022,0,4442,4442,Disables Facilities Grants,Mandatory Grants,64601
http://statistics.data.gov.uk/id/local-authority/12UE,Huntingdonshire District Council,200133,BSG PROPERTY SERVICES LTD BSG PROPERTY SERVICES LTD,62736,04/03/2022,S50756,REDACTED,21/04/2022,0,4345,4345,Disables Facilities Grants,Mandatory Grants,64601
http://statistics.data.gov.uk/id/local-authority/12UE,Huntingdonshire District Council,202559,BUCHER MUNICIPAL LTD,64983,26/04/2022,62098847,Wire Brush,26/05/2022,183.52,917.62,1101.14,Street Cleansing,Vehicle Repairs And Maintenance,60904
http://statistics.data.gov.uk/id/local-authority/12UE,Huntingdonshire District Council,201204,Buckden Parish Council,63400,27/04/2022,PARISH PRECEPT APR 22,Parish Precept - April 2022,27/04/2022,0,80438,80438,P C Precept Buckden,Precepts,66301
http://statistics.data.gov.uk/id/local-authority/12UE,Huntingdonshire District Council,201206,Buckworth Parish Council,63400,27/04/2022,PARISH PRECEPT APR 22,Parish Precept - April 2022,27/04/2022,0,3600,3600,P C Precept Buckworth,Precepts,66301
http://statistics.data.gov.uk/id/local-authority/12UE,Huntingdonshire District Council,200137,BULLETIN.NET (UK) LIMITED BULLETIN.NET (UK) LIMITED,62217,31/03/2022,10008520,Returned BACS Payment,05/05/2022,0,280.92,280.92,Paymaster Account,Paymaster Account,10082
http://statistics.data.gov.uk/id/local-authority/12UE,Huntingdonshire District Council,200137,BULLETIN.NET (UK) LIMITED BULLETIN.NET (UK) LIMITED,62217,31/03/2022,10008520,Returned BACS Payment,05/05/2022,0,500,500,Paymaster Account,Paymaster Account,10082
http://statistics.data.gov.uk/id/local-authority/12UE,Huntingdonshire District Council,200137,BULLETIN.NET (UK) LIMITED BULLETIN.NET (UK) LIMITED,62217,31/03/2022,10008520,Returned BACS Payment,05/05/2022,0,60,60,Paymaster Account,Paymaster Account,10082
http://statistics.data.gov.uk/id/local-authority/12UE,Huntingdonshire District Council,202268,BUREAU VAN DIJK ELECTRONIC PUBLISHING LTD,66257,11/04/2022,ZGB3004009,Economic Development Licence,23/06/2022,1554,7770,9324,Business & Enterprise Support,Ict Licences,64072
http://statistics.data.gov.uk/id/local-authority/12UE,Huntingdonshire District Council,201732,BURLEIGH HILL COMMUNITY CENTRE,65483,05/05/2022,REDACTED,REDACTED,09/06/2022,0,320,320,District Elections,Premises Hire - Facilities,60402
http://statistics.data.gov.uk/id/local-authority/12UE,Huntingdonshire District Council,201207,Bury Parish Council,63058,20/04/2022,CIL FUNDING 22-23 - 7,CIL Funding 2022-2023,21/04/2022,0,57997.53,57997.53,Community Infrastruct Levy Cil,Cil Payment To Parishes,66402
http://statistics.data.gov.uk/id/local-authority/12UE,Huntingdonshire District Council,201207,Bury Parish Council,63400,27/04/2022,PARISH PRECEPT APR 22,Parish Precept - April 2022,27/04/2022,0,30600,30600,P C Precept Bury,Precepts,66301
http://statistics.data.gov.uk/id/local-authority/12UE,Huntingdonshire District Council,201733,BURY VILLAGE HALL,64481,05/05/2022,HDC HIRE MAY22,Elections Hall Hire 05.05.22,01/06/2022,0,250,250,District Elections,Premises Hire - Facilities,60402
http://statistics.data.gov.uk/id/local-authority/12UE,Huntingdonshire District Council,201208,Bythorn & Keyston Parish Council,63058,20/04/2022,CIL FUNDING 22-23 - 8,CIL Funding 2022-2023,21/04/2022,0,973.92,973.92,Community Infrastruct Levy Cil,Cil Payment To Parishes,66402
http://statistics.data.gov.uk/id/local-authority/12UE,Huntingdonshire District Council,201208,Bythorn & Keyston Parish Council,63400,27/04/2022,PARISH PRECEPT APR 22,Parish Precept - April 2022,27/04/2022,0,8375,8375,P C Precept Bythorn & Keyston,Precepts,66301
http://statistics.data.gov.uk/id/local-authority/12UE,Huntingdonshire District Council,200148,CALLCREDIT LTD CALLCREDIT LTD,64000,01/05/2022,923898,fraud callcharge,26/05/2022,144.19,720.94,865.13,Benefits Management,Enquiries,63400
http://statistics.data.gov.uk/id/local-authority/12UE,Huntingdonshire District Council,200148,CALLCREDIT LTD CALLCREDIT LTD,65591,01/06/2022,928848,TRACES,30/06/2022,137.72,688.58,826.3,Benefits Management,Enquiries,63400
http://statistics.data.gov.uk/id/local-authority/12UE,Huntingdonshire District Council,200148,CALLCREDIT LTD CALLCREDIT LTD,62541,01/04/2022,921286,,28/04/2022,87.05,435.24,522.29,Benefits Management,Enquiries,63400
http://statistics.data.gov.uk/id/local-authority/12UE,Huntingdonshire District Council,200148,CALLCREDIT LTD CALLCREDIT LTD,62541,01/04/2022,921286,,28/04/2022,-0.01,0,-0.01,Finance,Over/Under VAT Rounding,68350
http://statistics.data.gov.uk/id/local-authority/12UE,Huntingdonshire District Council,200148,CALLCREDIT LTD CALLCREDIT LTD,65591,01/06/2022,928848,TRACES,30/06/2022,4.24,21.2,25.44,Housing Needs & Resources,Enquiries,63400
http://statistics.data.gov.uk/id/local-authority/12UE,Huntingdonshire District Council,200148,CALLCREDIT LTD CALLCREDIT LTD,62541,01/04/2022,921286,,28/04/2022,8.04,40.18,48.22,Housing Needs & Resources,Enquiries,63400
http://statistics.data.gov.uk/id/local-authority/12UE,Huntingdonshire District Council,200149,CAMBRIDGE CITY COUNCIL CAMBRIDGE CITY COUNCIL,61314,18/03/2022,12073075,ccc ict costs recharge,13/04/2022,265.16,1325.78,1590.94,3CICT NON STAFF HOLDING ACCOUNT,Land Line Rental,64077
http://statistics.data.gov.uk/id/local-authority/12UE,Huntingdonshire District Council,200149,CAMBRIDGE CITY COUNCIL CAMBRIDGE CITY COUNCIL,61314,18/03/2022,12073075,ccc ict costs recharge,13/04/2022,20.47,102.33,122.8,3CICT NON STAFF HOLDING ACCOUNT,Postage And Courier Services,64100
http://statistics.data.gov.uk/id/local-authority/12UE,Huntingdonshire District Council,200149,CAMBRIDGE CITY COUNCIL CAMBRIDGE CITY COUNCIL,61314,18/03/2022,12073075,ccc ict costs recharge,13/04/2022,1.21,6.04,7.25,3CICT NON STAFF HOLDING ACCOUNT,Stationery,62002
http://statistics.data.gov.uk/id/local-authority/12UE,Huntingdonshire District Council,200149,CAMBRIDGE CITY COUNCIL CAMBRIDGE CITY COUNCIL,61530,21/03/2022,12073181,Building Control Income- Owed To CCC,13/04/2022,0,117,117,B Regs Applications,Planning Applications Income,54100
http://statistics.data.gov.uk/id/local-authority/12UE,Huntingdonshire District Council,200149,CAMBRIDGE CITY COUNCIL CAMBRIDGE CITY COUNCIL,61530,21/03/2022,12073181,Building Control Income- Owed To CCC,13/04/2022,0,8.13,8.13,B Regs Applications,Sale Of Publications ,51210
http://statistics.data.gov.uk/id/local-authority/12UE,Huntingdonshire District Council,200149,CAMBRIDGE CITY COUNCIL CAMBRIDGE CITY COUNCIL,65350,31/03/2022,12076932,3C Building Control 21/22 Contribution,06/06/2022,21530.25,107651.26,129181.51,Bc Advice,Client Contracts,62404
http://statistics.data.gov.uk/id/local-authority/12UE,Huntingdonshire District Council,200149,CAMBRIDGE CITY COUNCIL CAMBRIDGE CITY COUNCIL,65350,31/03/2022,12076932,3C Building Control 21/22 Contribution,06/06/2022,3408.71,17043.57,20452.28,Bc Advice,Client Contracts,62404
http://statistics.data.gov.uk/id/local-authority/12UE,Huntingdonshire District Council,200149,CAMBRIDGE CITY COUNCIL CAMBRIDGE CITY COUNCIL,61530,21/03/2022,12073181,Building Control Income- Owed To CCC,13/04/2022,0,2100,2100,Building Control,Fees & Charges Income (B),53004
http://statistics.data.gov.uk/id/local-authority/12UE,Huntingdonshire District Council,200149,CAMBRIDGE CITY COUNCIL CAMBRIDGE CITY COUNCIL,61314,18/03/2022,12073075,ccc ict costs recharge,13/04/2022,13238.93,66194.63,79433.56,Cambridge City Business Case ,Ict Software,64071
http://statistics.data.gov.uk/id/local-authority/12UE,Huntingdonshire District Council,200149,CAMBRIDGE CITY COUNCIL CAMBRIDGE CITY COUNCIL,63356,31/03/2022,12075172,Software Subscription Mar22,06/06/2022,220,1100,1320,Cambridge City Business Case ,Ict Software,64071
http://statistics.data.gov.uk/id/local-authority/12UE,Huntingdonshire District Council,200149,CAMBRIDGE CITY COUNCIL CAMBRIDGE CITY COUNCIL,62127,28/03/2022,12073284,CCTV 2021-22,21/04/2022,3400,17000,20400,Cctv Huntingdonshire,Fees & Charges Income ,53000
http://statistics.data.gov.uk/id/local-authority/12UE,Huntingdonshire District Council,200149,CAMBRIDGE CITY COUNCIL CAMBRIDGE CITY COUNCIL,62127,28/03/2022,12073284,CCTV 2021-22,21/04/2022,665.04,3325.2,3990.24,Cctv Shared Service Hosting,Equipment,61713
http://statistics.data.gov.uk/id/local-authority/12UE,Huntingdonshire District Council,200149,CAMBRIDGE CITY COUNCIL CAMBRIDGE CITY COUNCIL,62127,28/03/2022,12073284,CCTV 2021-22,21/04/2022,2017.3,10086.5,12103.8,Cctv Shared Service Hosting,Equipment,61713
http://statistics.data.gov.uk/id/local-authority/12UE,Huntingdonshire District Council,200149,CAMBRIDGE CITY COUNCIL CAMBRIDGE CITY COUNCIL,62127,28/03/2022,12073284,CCTV 2021-22,21/04/2022,26.34,131.72,158.06,Cctv Shared Service Hosting,Equipment,61713
http://statistics.data.gov.uk/id/local-authority/12UE,Huntingdonshire District Council,200149,CAMBRIDGE CITY COUNCIL CAMBRIDGE CITY COUNCIL,63129,15/04/2022,CN952170,Overpaid DFG Fees From CCC,06/06/2022,0,-40999.2,-40999.2,Disables Facilities Grants,Home Improvement Agency Fees,67200
http://statistics.data.gov.uk/id/local-authority/12UE,Huntingdonshire District Council,200149,CAMBRIDGE CITY COUNCIL CAMBRIDGE CITY COUNCIL,61314,18/03/2022,12073075,ccc ict costs recharge,13/04/2022,-0.01,0,-0.01,Finance,Over/Under VAT Rounding,68350
http://statistics.data.gov.uk/id/local-authority/12UE,Huntingdonshire District Council,200149,CAMBRIDGE CITY COUNCIL CAMBRIDGE CITY COUNCIL,61951,21/03/2022,12073167,HRIS MANAGER COSTS 0421-0322,13/04/2022,2826.99,14134.93,16961.92,HR Services,Licences,60410
http://statistics.data.gov.uk/id/local-authority/12UE,Huntingdonshire District Council,200149,CAMBRIDGE CITY COUNCIL CAMBRIDGE CITY COUNCIL,65340,31/03/2022,12076931,3C Legal Shared Services Contribution,06/06/2022,44341.62,221708.12,266049.74,Legal,Client Contracts,62404
http://statistics.data.gov.uk/id/local-authority/12UE,Huntingdonshire District Council,200149,CAMBRIDGE CITY COUNCIL CAMBRIDGE CITY COUNCIL,64800,18/05/2022,12076844,Building Control Fees,09/06/2022,118,590,708,Pathfinder House,Site Alterations And Materials,60273
http://statistics.data.gov.uk/id/local-authority/12UE,Huntingdonshire District Council,200149,CAMBRIDGE CITY COUNCIL CAMBRIDGE CITY COUNCIL,63471,21/03/2022,12073178,Ideagen Agile Online 22/23,06/06/2022,383.6,1918,2301.6,Risk and Control,Licences,60410
http://statistics.data.gov.uk/id/local-authority/12UE,Huntingdonshire District Council,200150,CAMBRIDGE CONSULTANCY IN COUNSELLING CAMBRIDGE CONSULTANCY IN COUNSELLING,63479,31/03/2022,103257,Monthly payment Plan Mar22,28/04/2022,0,666.5,666.5,HR Services,Occupational Health,60111
http://statistics.data.gov.uk/id/local-authority/12UE,Huntingdonshire District Council,200150,CAMBRIDGE CONSULTANCY IN COUNSELLING CAMBRIDGE CONSULTANCY IN COUNSELLING,65238,30/04/2022,103287,HR APRIL PLAN,01/06/2022,0,666.5,666.5,HR Services,Occupational Health,60111
http://statistics.data.gov.uk/id/local-authority/12UE,Huntingdonshire District Council,200150,CAMBRIDGE CONSULTANCY IN COUNSELLING CAMBRIDGE CONSULTANCY IN COUNSELLING,66330,31/05/2022,103326,Monthly Payment Plan May22,30/06/2022,0,666.5,666.5,HR Services,Occupational Health,60111
http://statistics.data.gov.uk/id/local-authority/12UE,Huntingdonshire District Council,201351,CAMBRIDGESHIRE ACRE,64932,13/05/2022,7649,Cambs Rural AH Partnership,09/06/2022,0,2100,2100,Housing Strategy,Grants And Contributions,64600
http://statistics.data.gov.uk/id/local-authority/12UE,Huntingdonshire District Council,201033,CAMBRIDGESHIRE COUNTY COUNCIL,65486,24/05/2022,4.23E+11,REDACTED,16/06/2022,0,360,360,District Elections,Premises Hire - Facilities,60402
http://statistics.data.gov.uk/id/local-authority/12UE,Huntingdonshire District Council,201033,CAMBRIDGESHIRE COUNTY COUNCIL,62475,07/07/2021,4.23E+11,Service Grants & Contributions,11/04/2022,0,10400,10400,Housing Policy R&D,Grants And Contributions,64600
http://statistics.data.gov.uk/id/local-authority/12UE,Huntingdonshire District Council,201033,CAMBRIDGESHIRE COUNTY COUNCIL,61192,10/03/2022,4.23E+11,Housing Monitoring,07/04/2022,2200,11000,13200,Planning Projects General,Grants And Contributions,64600
http://statistics.data.gov.uk/id/local-authority/12UE,Huntingdonshire District Council,201033,CAMBRIDGESHIRE COUNTY COUNCIL,62129,30/03/2022,4.23E+11,Archaeological Services Oct21-Mar22,21/04/2022,1471,7355,8826,Planning Projects General,Grants And Contributions,64600
http://statistics.data.gov.uk/id/local-authority/12UE,Huntingdonshire District Council,201033,CAMBRIDGESHIRE COUNTY COUNCIL,64045,23/04/2022,4.23E+11,WASTE MARCH 22,19/05/2022,0,10800,10800,Trade Refuse,Waste Disposal Costs,64050
http://statistics.data.gov.uk/id/local-authority/12UE,Huntingdonshire District Council,201033,CAMBRIDGESHIRE COUNTY COUNCIL,64045,23/04/2022,4.23E+11,WASTE MARCH 22,19/05/2022,0,95,95,Trade Refuse,Waste Disposal Costs,64050
http://statistics.data.gov.uk/id/local-authority/12UE,Huntingdonshire District Council,201033,CAMBRIDGESHIRE COUNTY COUNCIL,64045,23/04/2022,4.23E+11,WASTE MARCH 22,19/05/2022,0,1278.33,1278.33,Trade Refuse,Waste Disposal Costs,64050
http://statistics.data.gov.uk/id/local-authority/12UE,Huntingdonshire District Council,201033,CAMBRIDGESHIRE COUNTY COUNCIL,64045,23/04/2022,4.23E+11,WASTE MARCH 22,19/05/2022,0,41.36,41.36,Trade Refuse,Waste Disposal Costs,64050
http://statistics.data.gov.uk/id/local-authority/12UE,Huntingdonshire District Council,201033,CAMBRIDGESHIRE COUNTY COUNCIL,64422,29/03/2022,4.23E+11,Trade/Food Waste Disposal Costs,16/05/2022,0,9799.19,9799.19,Trade Refuse,Waste Disposal Costs,64050
http://statistics.data.gov.uk/id/local-authority/12UE,Huntingdonshire District Council,201033,CAMBRIDGESHIRE COUNTY COUNCIL,64422,29/03/2022,4.23E+11,Trade/Food Waste Disposal Costs,16/05/2022,0,89.8,89.8,Trade Refuse,Waste Disposal Costs,64050
http://statistics.data.gov.uk/id/local-authority/12UE,Huntingdonshire District Council,200159,CAMBRIDGESHIRE COUNTY COUNCIL CAMBRIDGESHIRE COUNTY COUNCIL,62208,30/03/2022,4.23E+11,Core Service Rental 2021/22,21/04/2022,2143.55,10717.74,12861.29,Cambridge City Business Case ,Broadband Line Rental,64080
http://statistics.data.gov.uk/id/local-authority/12UE,Huntingdonshire District Council,200159,CAMBRIDGESHIRE COUNTY COUNCIL CAMBRIDGESHIRE COUNTY COUNCIL,64417,25/03/2022,4.23E+11,Project Management Staff Charges,16/05/2022,0,0,0,Future High Streets,Consultancy Fees,62400
http://statistics.data.gov.uk/id/local-authority/12UE,Huntingdonshire District Council,200159,CAMBRIDGESHIRE COUNTY COUNCIL CAMBRIDGESHIRE COUNTY COUNCIL,62208,30/03/2022,4.23E+11,Core Service Rental 2021/22,21/04/2022,791.28,3956.39,4747.67,HDC Business Case ,Broadband Line Rental,64080
http://statistics.data.gov.uk/id/local-authority/12UE,Huntingdonshire District Council,200159,CAMBRIDGESHIRE COUNTY COUNCIL CAMBRIDGESHIRE COUNTY COUNCIL,64417,25/03/2022,4.23E+11,Project Management Staff Charges,16/05/2022,4366.57,21832.86,26199.43,High Street Improvements inc Pedestrianisation,Consultancy Fees,62400
http://statistics.data.gov.uk/id/local-authority/12UE,Huntingdonshire District Council,200159,CAMBRIDGESHIRE COUNTY COUNCIL CAMBRIDGESHIRE COUNTY COUNCIL,64843,14/04/2022,4.23E+11,Highway Searches Q4 21/22,26/05/2022,4208,21040,25248,Land Enquiry Con 29 Full,General Office Expenses,62004
http://statistics.data.gov.uk/id/local-authority/12UE,Huntingdonshire District Council,200159,CAMBRIDGESHIRE COUNTY COUNCIL CAMBRIDGESHIRE COUNTY COUNCIL,64417,25/03/2022,4.23E+11,Project Management Staff Charges,16/05/2022,6254.82,31274.09,37528.91,Market Square,Consultancy Fees,62400
http://statistics.data.gov.uk/id/local-authority/12UE,Huntingdonshire District Council,200159,CAMBRIDGESHIRE COUNTY COUNCIL CAMBRIDGESHIRE COUNTY COUNCIL,62208,30/03/2022,4.23E+11,Core Service Rental 2021/22,21/04/2022,388.95,1944.75,2333.7,SCDC Business Case ,Broadband Line Rental,64080
http://statistics.data.gov.uk/id/local-authority/12UE,Huntingdonshire District Council,200159,CAMBRIDGESHIRE COUNTY COUNCIL CAMBRIDGESHIRE COUNTY COUNCIL,62059,31/03/2022,4.23E+11,County's Share SIEC 2020/21,28/04/2022,0,4600.48,4600.48,St Ives Enterprise Centre,Profit Share Payable,67100
http://statistics.data.gov.uk/id/local-authority/12UE,Huntingdonshire District Council,200159,CAMBRIDGESHIRE COUNTY COUNCIL CAMBRIDGESHIRE COUNTY COUNCIL,64417,25/03/2022,4.23E+11,Project Management Staff Charges,16/05/2022,1180.15,5900.77,7080.92,St Neots Bridge Road,Consultancy Fees,62400
http://statistics.data.gov.uk/id/local-authority/12UE,Huntingdonshire District Council,200877,CAMBRIDGESHIRE FIRE AND RESCUE SERVICE CAMBRIDGESHIRE AND PETERBOROUGH FIRE AUTHORITY,63278,12/04/2022,5876,CPLRF MoU Contribution,05/05/2022,0,5775.79,5775.79,Emergency Planning,Grants And Contributions,64600
http://statistics.data.gov.uk/id/local-authority/12UE,Huntingdonshire District Council,201054,Cambridgeshire Pension Fund,61205,12/03/2022,4.23E+11,unfunded charges feb and Mar 22,30/06/2022,0,27093.36,27093.36,Non Distributed Costs,Pension Increase Act Payments,60101
http://statistics.data.gov.uk/id/local-authority/12UE,Huntingdonshire District Council,201054,Cambridgeshire Pension Fund,66663,18/05/2022,4.23E+11,IAS Accounting Report Mar22,30/06/2022,490,2450,2940,Non Distributed Costs,Pension Increase Act Payments,60101
http://statistics.data.gov.uk/id/local-authority/12UE,Huntingdonshire District Council,201054,Cambridgeshire Pension Fund,61548,23/03/2022,4233000222,unfunded charges feb and Mar 22,30/06/2022,0,-27093.36,-27093.36,Non Distributed Costs,Pension Increase Act Payments,60101
http://statistics.data.gov.uk/id/local-authority/12UE,Huntingdonshire District Council,200164,CAMPBELL ASSOCIATES CAMPBELL ASSOCIATES,64369,25/04/2022,27770,Equipment,19/05/2022,101,505,606,Air Quality,Equipment,61713
http://statistics.data.gov.uk/id/local-authority/12UE,Huntingdonshire District Council,200164,CAMPBELL ASSOCIATES CAMPBELL ASSOCIATES,64369,25/04/2022,27770,Equipment,19/05/2022,27,135,162,Air Quality,Equipment,61713
http://statistics.data.gov.uk/id/local-authority/12UE,Huntingdonshire District Council,200164,CAMPBELL ASSOCIATES CAMPBELL ASSOCIATES,66058,30/03/2022,27644,Maintenance Equipment,20/06/2022,0.01,0,0.01,Finance,Over/Under VAT Rounding,68350
http://statistics.data.gov.uk/id/local-authority/12UE,Huntingdonshire District Council,200164,CAMPBELL ASSOCIATES CAMPBELL ASSOCIATES,66058,30/03/2022,27644,Maintenance Equipment,20/06/2022,100.79,503.93,604.72,Noise Control,"Maintenance - Equipment, Furniture And Materials",61702
http://statistics.data.gov.uk/id/local-authority/12UE,Huntingdonshire District Council,200164,CAMPBELL ASSOCIATES CAMPBELL ASSOCIATES,66058,30/03/2022,27644,Maintenance Equipment,20/06/2022,8,40,48,Noise Control,"Maintenance - Equipment, Furniture And Materials",61702
http://statistics.data.gov.uk/id/local-authority/12UE,Huntingdonshire District Council,202824,CANHAM CONTROLS LIMITED,63490,31/03/2022,14431,FACILITIES STIV INDOORS,28/04/2022,77.35,386.75,464.1,OLSI - Site & Centre Management,Maintenance - Building,60201
http://statistics.data.gov.uk/id/local-authority/12UE,Huntingdonshire District Council,200166,CAPITA CAPITA,61431,15/03/2022,6004107564,010422 - 310323,07/04/2022,4076.72,20383.62,24460.34,Cambridge City Business Case ,Ict Software,64071
http://statistics.data.gov.uk/id/local-authority/12UE,Huntingdonshire District Council,200166,CAPITA CAPITA,61431,15/03/2022,6004107564,010422 - 310323,07/04/2022,782.32,3911.62,4693.94,Cambridge City Business Case ,"Maintenance - Equipment, Furniture And Materials",61702
http://statistics.data.gov.uk/id/local-authority/12UE,Huntingdonshire District Council,200166,CAPITA CAPITA,64969,28/04/2022,6004113455,IT Software,26/05/2022,680,3400,4080,City Recoverable,Ict Software,64071
http://statistics.data.gov.uk/id/local-authority/12UE,Huntingdonshire District Council,200166,CAPITA CAPITA,64719,28/04/2022,6004113456,3CICT 010422-31032023,26/05/2022,136,680,816,City Recoverable,Ict Software,64071
http://statistics.data.gov.uk/id/local-authority/12UE,Huntingdonshire District Council,200166,CAPITA CAPITA,61431,15/03/2022,6004107564,010422 - 310323,07/04/2022,0.01,0,0.01,Finance,Over/Under VAT Rounding,68350
http://statistics.data.gov.uk/id/local-authority/12UE,Huntingdonshire District Council,200166,CAPITA CAPITA,61441,15/03/2022,6004107602,IT Software- Annual Maint 2022/23,07/04/2022,-0.01,0,-0.01,Finance,Over/Under VAT Rounding,68350
http://statistics.data.gov.uk/id/local-authority/12UE,Huntingdonshire District Council,200166,CAPITA CAPITA,61441,15/03/2022,6004107602,IT Software- Annual Maint 2022/23,07/04/2022,3154.84,15774.19,18929.03,HDC Business Case ,Ict Software,64071
http://statistics.data.gov.uk/id/local-authority/12UE,Huntingdonshire District Council,200166,CAPITA CAPITA,61441,15/03/2022,6004107602,IT Software- Annual Maint 2022/23,07/04/2022,291.61,1458.03,1749.64,HDC Business Case ,"Maintenance - Equipment, Furniture And Materials",61702
http://statistics.data.gov.uk/id/local-authority/12UE,Huntingdonshire District Council,200166,CAPITA CAPITA,61857,25/03/2022,6004109031,IT Software,21/04/2022,900,4500,5400,HDC Recoverable,Ict Software,64071
http://statistics.data.gov.uk/id/local-authority/12UE,Huntingdonshire District Council,200166,CAPITA CAPITA,61503,15/03/2022,6004107631,HDC Annual Maintenance 2022/23,07/04/2022,1057.45,5287.23,6344.68,SCDC Business Case ,Ict Software,64071
http://statistics.data.gov.uk/id/local-authority/12UE,Huntingdonshire District Council,200166,CAPITA CAPITA,61503,15/03/2022,6004107631,HDC Annual Maintenance 2022/23,07/04/2022,69.94,349.71,419.65,SCDC Business Case ,"Maintenance - Equipment, Furniture And Materials",61702
http://statistics.data.gov.uk/id/local-authority/12UE,Huntingdonshire District Council,200166,CAPITA CAPITA,61857,25/03/2022,6004109031,IT Software,21/04/2022,900,4500,5400,SCDC Recoverable,Ict Software,64071
http://statistics.data.gov.uk/id/local-authority/12UE,Huntingdonshire District Council,200169,CARE CHECK LTD CARE CHECK LTD,65182,30/04/2022,351484,community disbursment,01/06/2022,0,80,80,Homes for Ukraine,Enquiries,63400
http://statistics.data.gov.uk/id/local-authority/12UE,Huntingdonshire District Council,200169,CARE CHECK LTD CARE CHECK LTD,65182,30/04/2022,351484,community disbursment,01/06/2022,2,10,12,Homes for Ukraine,Enquiries,63400
http://statistics.data.gov.uk/id/local-authority/12UE,Huntingdonshire District Council,200169,CARE CHECK LTD CARE CHECK LTD,65182,30/04/2022,351484,community disbursment,01/06/2022,0,306,306,Homes for Ukraine,Enquiries,63400
http://statistics.data.gov.uk/id/local-authority/12UE,Huntingdonshire District Council,200169,CARE CHECK LTD CARE CHECK LTD,65182,30/04/2022,351484,community disbursment,01/06/2022,17,85,102,Homes for Ukraine,Enquiries,63400
http://statistics.data.gov.uk/id/local-authority/12UE,Huntingdonshire District Council,200169,CARE CHECK LTD CARE CHECK LTD,65182,30/04/2022,351484,community disbursment,01/06/2022,0,2052,2052,Homes for Ukraine,Enquiries,63400
http://statistics.data.gov.uk/id/local-authority/12UE,Huntingdonshire District Council,200169,CARE CHECK LTD CARE CHECK LTD,65182,30/04/2022,351484,community disbursment,01/06/2022,54,270,324,Homes for Ukraine,Enquiries,63400
http://statistics.data.gov.uk/id/local-authority/12UE,Huntingdonshire District Council,200169,CARE CHECK LTD CARE CHECK LTD,63722,30/04/2022,351520,Enquiries,26/05/2022,0,322,322,HR Services,Enquiries,63400
http://statistics.data.gov.uk/id/local-authority/12UE,Huntingdonshire District Council,200169,CARE CHECK LTD CARE CHECK LTD,63722,30/04/2022,351520,Enquiries,26/05/2022,10,50,60,HR Services,Enquiries,63400
http://statistics.data.gov.uk/id/local-authority/12UE,Huntingdonshire District Council,200169,CARE CHECK LTD CARE CHECK LTD,63206,31/03/2022,344877,DBS Check/Fees,28/04/2022,0,252,252,HR Services,Enquiries,63400
http://statistics.data.gov.uk/id/local-authority/12UE,Huntingdonshire District Council,200169,CARE CHECK LTD CARE CHECK LTD,63206,31/03/2022,344877,DBS Check/Fees,28/04/2022,12,60,72,HR Services,Enquiries,63400
http://statistics.data.gov.uk/id/local-authority/12UE,Huntingdonshire District Council,202458,CARRINGTON WEST LTD,64458,12/05/2022,201386,REDACTED,09/06/2022,640.41,3202.05,3842.46,Development Management,Agency Staff,60011
http://statistics.data.gov.uk/id/local-authority/12UE,Huntingdonshire District Council,202458,CARRINGTON WEST LTD,65260,19/05/2022,202371,REDACTED,16/06/2022,640.41,3202.05,3842.46,Development Management,Agency Staff,60011
http://statistics.data.gov.uk/id/local-authority/12UE,Huntingdonshire District Council,202458,CARRINGTON WEST LTD,65261,19/05/2022,202370,REDACTED,16/06/2022,640.41,3202.05,3842.46,Development Management,Agency Staff,60011
http://statistics.data.gov.uk/id/local-authority/12UE,Huntingdonshire District Council,202458,CARRINGTON WEST LTD,65567,01/06/2022,204401,REDACTED,30/06/2022,640.41,3202.05,3842.46,Development Management,Agency Staff,60011
http://statistics.data.gov.uk/id/local-authority/12UE,Huntingdonshire District Council,202458,CARRINGTON WEST LTD,66360,28/04/2022,199252,REDACTED,30/06/2022,640.41,3202.05,3842.46,Development Management,Agency Staff,60011
http://statistics.data.gov.uk/id/local-authority/12UE,Huntingdonshire District Council,202458,CARRINGTON WEST LTD,66375,21/04/2022,198242,REDACTED,30/06/2022,640.41,3202.05,3842.46,Development Management,Agency Staff,60011
http://statistics.data.gov.uk/id/local-authority/12UE,Huntingdonshire District Council,202458,CARRINGTON WEST LTD,66378,21/04/2022,198241,REDACTED,30/06/2022,640.41,3202.05,3842.46,Development Management,Agency Staff,60011
http://statistics.data.gov.uk/id/local-authority/12UE,Huntingdonshire District Council,202458,CARRINGTON WEST LTD,61144,10/03/2022,192554,REDACTED,07/04/2022,632.5,3162.5,3795,Development Management,Agency Staff,60011
http://statistics.data.gov.uk/id/local-authority/12UE,Huntingdonshire District Council,202458,CARRINGTON WEST LTD,61338,17/03/2022,193488,REDACTED,13/04/2022,632.5,3162.5,3795,Development Management,Agency Staff,60011
http://statistics.data.gov.uk/id/local-authority/12UE,Huntingdonshire District Council,202458,CARRINGTON WEST LTD,61678,23/03/2022,194441,REDACTED,13/04/2022,632.5,3162.5,3795,Development Management,Agency Staff,60011
http://statistics.data.gov.uk/id/local-authority/12UE,Huntingdonshire District Council,202458,CARRINGTON WEST LTD,62074,31/03/2022,195406,REDACTED,28/04/2022,632.5,3162.5,3795,Development Management,Agency Staff,60011
http://statistics.data.gov.uk/id/local-authority/12UE,Huntingdonshire District Council,202458,CARRINGTON WEST LTD,66367,05/05/2022,200309,REDACTED,30/06/2022,395.89,1979.44,2375.33,Development Management,Agency Staff,60011
http://statistics.data.gov.uk/id/local-authority/12UE,Huntingdonshire District Council,202458,CARRINGTON WEST LTD,62400,07/04/2022,196445,REDACTED,05/05/2022,383.78,1918.89,2302.67,Development Management,Agency Staff,60011
http://statistics.data.gov.uk/id/local-authority/12UE,Huntingdonshire District Council,202458,CARRINGTON WEST LTD,64449,12/05/2022,201388,REDACTED,09/06/2022,382.95,1914.75,2297.7,Development Management,Agency Staff,60011
http://statistics.data.gov.uk/id/local-authority/12UE,Huntingdonshire District Council,202458,CARRINGTON WEST LTD,65428,01/06/2022,204398,REDACTED,30/06/2022,382.95,1914.75,2297.7,Development Management,Agency Staff,60011
http://statistics.data.gov.uk/id/local-authority/12UE,Huntingdonshire District Council,202458,CARRINGTON WEST LTD,65430,01/06/2022,204399,REDACTED,30/06/2022,382.95,1914.75,2297.7,Development Management,Agency Staff,60011
http://statistics.data.gov.uk/id/local-authority/12UE,Huntingdonshire District Council,202458,CARRINGTON WEST LTD,66255,13/04/2022,197364,REDACTED,23/06/2022,382.95,1914.75,2297.7,Development Management,Agency Staff,60011
http://statistics.data.gov.uk/id/local-authority/12UE,Huntingdonshire District Council,202458,CARRINGTON WEST LTD,66358,27/05/2022,203415,REDACTED,30/06/2022,382.95,1914.75,2297.7,Development Management,Agency Staff,60011
http://statistics.data.gov.uk/id/local-authority/12UE,Huntingdonshire District Council,202458,CARRINGTON WEST LTD,66365,28/04/2022,199255,REDACTED,30/06/2022,372.6,1863,2235.6,Development Management,Agency Staff,60011
http://statistics.data.gov.uk/id/local-authority/12UE,Huntingdonshire District Council,202458,CARRINGTON WEST LTD,66359,05/05/2022,200307,REDACTED,30/06/2022,327.75,1638.75,1966.5,Development Management,Agency Staff,60011
http://statistics.data.gov.uk/id/local-authority/12UE,Huntingdonshire District Council,202458,CARRINGTON WEST LTD,62457,07/04/2022,196443,REDACTED,05/05/2022,253.46,1267.3,1520.76,Development Management,Agency Staff,60011
http://statistics.data.gov.uk/id/local-authority/12UE,Huntingdonshire District Council,202458,CARRINGTON WEST LTD,62457,07/04/2022,196443,REDACTED,05/05/2022,69.92,349.6,419.52,Development Management,Agency Staff,60011
http://statistics.data.gov.uk/id/local-authority/12UE,Huntingdonshire District Council,202458,CARRINGTON WEST LTD,65254,19/05/2022,202368,REDACTED,16/06/2022,323.38,1616.9,1940.28,Development Management,Agency Staff,60011
http://statistics.data.gov.uk/id/local-authority/12UE,Huntingdonshire District Council,202458,CARRINGTON WEST LTD,66357,27/05/2022,203414,REDACTED,30/06/2022,323.38,1616.9,1940.28,Development Management,Agency Staff,60011
http://statistics.data.gov.uk/id/local-authority/12UE,Huntingdonshire District Council,202458,CARRINGTON WEST LTD,62069,31/03/2022,195407,REDACTED,28/04/2022,319.01,1595.05,1914.06,Development Management,Agency Staff,60011
http://statistics.data.gov.uk/id/local-authority/12UE,Huntingdonshire District Council,202458,CARRINGTON WEST LTD,66254,13/04/2022,197362,REDACTED,23/06/2022,314.64,1573.2,1887.84,Development Management,Agency Staff,60011
http://statistics.data.gov.uk/id/local-authority/12UE,Huntingdonshire District Council,202458,CARRINGTON WEST LTD,62462,07/04/2022,196441,REDACTED,05/05/2022,217.86,1089.28,1307.14,Development Management,Agency Staff,60011
http://statistics.data.gov.uk/id/local-authority/12UE,Huntingdonshire District Council,202458,CARRINGTON WEST LTD,62462,07/04/2022,196441,REDACTED,05/05/2022,57.87,289.34,347.21,Development Management,Agency Staff,60011
http://statistics.data.gov.uk/id/local-authority/12UE,Huntingdonshire District Council,202458,CARRINGTON WEST LTD,64240,28/04/2022,199256,REDACTED,26/05/2022,275.72,1378.62,1654.34,Development Management,Agency Staff,60011
http://statistics.data.gov.uk/id/local-authority/12UE,Huntingdonshire District Council,202458,CARRINGTON WEST LTD,65228,19/05/2022,202369,REDACTED,16/06/2022,275.72,1378.62,1654.34,Development Management,Agency Staff,60011
http://statistics.data.gov.uk/id/local-authority/12UE,Huntingdonshire District Council,202458,CARRINGTON WEST LTD,65568,01/06/2022,204400,REDACTED,30/06/2022,275.72,1378.62,1654.34,Development Management,Agency Staff,60011
http://statistics.data.gov.uk/id/local-authority/12UE,Huntingdonshire District Council,202458,CARRINGTON WEST LTD,66253,13/04/2022,197361,REDACTED,23/06/2022,275.72,1378.62,1654.34,Development Management,Agency Staff,60011
http://statistics.data.gov.uk/id/local-authority/12UE,Huntingdonshire District Council,202458,CARRINGTON WEST LTD,66356,27/05/2022,203416,REDACTED,30/06/2022,275.72,1378.62,1654.34,Development Management,Agency Staff,60011
http://statistics.data.gov.uk/id/local-authority/12UE,Huntingdonshire District Council,202458,CARRINGTON WEST LTD,66362,05/05/2022,200310,REDACTED,30/06/2022,275.72,1378.62,1654.34,Development Management,Agency Staff,60011
http://statistics.data.gov.uk/id/local-authority/12UE,Huntingdonshire District Council,202458,CARRINGTON WEST LTD,66364,21/04/2022,198246,REDACTED,30/06/2022,275.72,1378.62,1654.34,Development Management,Agency Staff,60011
http://statistics.data.gov.uk/id/local-authority/12UE,Huntingdonshire District Council,202458,CARRINGTON WEST LTD,61147,10/03/2022,192533,REDACTED,07/04/2022,272.32,1361.6,1633.92,Development Management,Agency Staff,60011
http://statistics.data.gov.uk/id/local-authority/12UE,Huntingdonshire District Council,202458,CARRINGTON WEST LTD,61341,17/03/2022,193487,REDACTED,13/04/2022,272.32,1361.6,1633.92,Development Management,Agency Staff,60011
http://statistics.data.gov.uk/id/local-authority/12UE,Huntingdonshire District Council,202458,CARRINGTON WEST LTD,61677,23/03/2022,194440,REDACTED,13/04/2022,272.32,1361.6,1633.92,Development Management,Agency Staff,60011
http://statistics.data.gov.uk/id/local-authority/12UE,Huntingdonshire District Council,202458,CARRINGTON WEST LTD,62073,31/03/2022,195405,REDACTED,28/04/2022,272.32,1361.6,1633.92,Development Management,Agency Staff,60011
http://statistics.data.gov.uk/id/local-authority/12UE,Huntingdonshire District Council,202458,CARRINGTON WEST LTD,66361,28/04/2022,199253,REDACTED,30/06/2022,266.57,1332.85,1599.42,Development Management,Agency Staff,60011
http://statistics.data.gov.uk/id/local-authority/12UE,Huntingdonshire District Council,202458,CARRINGTON WEST LTD,64451,12/05/2022,201387,REDACTED,09/06/2022,262.2,1311,1573.2,Development Management,Agency Staff,60011
http://statistics.data.gov.uk/id/local-authority/12UE,Huntingdonshire District Council,202458,CARRINGTON WEST LTD,62464,07/04/2022,196442,REDACTED,05/05/2022,256.16,1280.82,1536.98,Development Management,Agency Staff,60011
http://statistics.data.gov.uk/id/local-authority/12UE,Huntingdonshire District Council,202458,CARRINGTON WEST LTD,62454,07/04/2022,196444,REDACTED,05/05/2022,170.2,851,1021.2,Development Management,Agency Staff,60011
http://statistics.data.gov.uk/id/local-authority/12UE,Huntingdonshire District Council,202458,CARRINGTON WEST LTD,62454,07/04/2022,196444,REDACTED,05/05/2022,45.21,226.07,271.28,Development Management,Agency Staff,60011
http://statistics.data.gov.uk/id/local-authority/12UE,Huntingdonshire District Council,202458,CARRINGTON WEST LTD,64187,05/05/2022,200308,REDACTED,01/06/2022,215.41,1077.07,1292.48,Development Management,Agency Staff,60011
http://statistics.data.gov.uk/id/local-authority/12UE,Huntingdonshire District Council,202458,CARRINGTON WEST LTD,66256,13/04/2022,197363,REDACTED,23/06/2022,215.41,1077.07,1292.48,Development Management,Agency Staff,60011
http://statistics.data.gov.uk/id/local-authority/12UE,Huntingdonshire District Council,202458,CARRINGTON WEST LTD,61146,10/03/2022,192552,REDACTED,07/04/2022,212.75,1063.75,1276.5,Development Management,Agency Staff,60011
http://statistics.data.gov.uk/id/local-authority/12UE,Huntingdonshire District Council,202458,CARRINGTON WEST LTD,61339,17/03/2022,193486,REDACTED,13/04/2022,212.75,1063.75,1276.5,Development Management,Agency Staff,60011
http://statistics.data.gov.uk/id/local-authority/12UE,Huntingdonshire District Council,202458,CARRINGTON WEST LTD,62071,31/03/2022,195404,REDACTED,28/04/2022,212.75,1063.75,1276.5,Development Management,Agency Staff,60011
http://statistics.data.gov.uk/id/local-authority/12UE,Huntingdonshire District Council,202458,CARRINGTON WEST LTD,65745,23/03/2022,194439,REDACTED,13/06/2022,212.75,1063.75,1276.5,Development Management,Agency Staff,60011
http://statistics.data.gov.uk/id/local-authority/12UE,Huntingdonshire District Council,202458,CARRINGTON WEST LTD,64241,28/04/2022,199254,REDACTED,26/05/2022,209.59,1047.96,1257.55,Development Management,Agency Staff,60011
http://statistics.data.gov.uk/id/local-authority/12UE,Huntingdonshire District Council,202458,CARRINGTON WEST LTD,66366,21/04/2022,198244,REDACTED,30/06/2022,195.04,975.18,1170.22,Development Management,Agency Staff,60011
http://statistics.data.gov.uk/id/local-authority/12UE,Huntingdonshire District Council,202458,CARRINGTON WEST LTD,66363,21/04/2022,198243,REDACTED,30/06/2022,135.47,677.35,812.82,Development Management,Agency Staff,60011
http://statistics.data.gov.uk/id/local-authority/12UE,Huntingdonshire District Council,201074.01,CATALYST HOUSING LTD,63765,27/04/2022,REDACTED,REDACTED,05/05/2022,0,895,895,Homelessness,Homeless Prevention Payments,64403
http://statistics.data.gov.uk/id/local-authority/12UE,Huntingdonshire District Council,201209,Catworth Parish Council,63400,27/04/2022,PARISH PRECEPT APR 22,Parish Precept - April 2022,27/04/2022,0,14581,14581,P C Precept Catworth,Precepts,66301
http://statistics.data.gov.uk/id/local-authority/12UE,Huntingdonshire District Council,201011,CENTENNIAL PROPERTY LTD,62394,01/04/2022,CP-HDC128,TA 17-31.03.22,19/05/2022,0,0,0,Homelessness,B&B Accommodation,64401
http://statistics.data.gov.uk/id/local-authority/12UE,Huntingdonshire District Council,201011,CENTENNIAL PROPERTY LTD,62394,01/04/2022,CP-HDC128,TA 17-31.03.22,19/05/2022,11.25,90,101.25,Homelessness,B&B Accommodation,64401
http://statistics.data.gov.uk/id/local-authority/12UE,Huntingdonshire District Council,201011,CENTENNIAL PROPERTY LTD,64106,01/05/2022,CP-HDC130,TA 150422-300422,12/05/2022,72,360,432,Homelessness,B&B Accommodation,64401
http://statistics.data.gov.uk/id/local-authority/12UE,Huntingdonshire District Council,201011,CENTENNIAL PROPERTY LTD,64106,01/05/2022,CP-HDC130,TA 150422-300422,12/05/2022,27,135,162,Homelessness,B&B Accommodation,64401
http://statistics.data.gov.uk/id/local-authority/12UE,Huntingdonshire District Council,201011,CENTENNIAL PROPERTY LTD,65057,17/05/2022,CP-HDC131,TA WE 08.05.22,30/05/2022,54,270,324,Homelessness,B&B Accommodation,64401
http://statistics.data.gov.uk/id/local-authority/12UE,Huntingdonshire District Council,201011,CENTENNIAL PROPERTY LTD,65057,17/05/2022,CP-HDC131,TA WE 08.05.22,30/05/2022,98.8,494,592.8,Homelessness,B&B Accommodation,64401
http://statistics.data.gov.uk/id/local-authority/12UE,Huntingdonshire District Council,201011,CENTENNIAL PROPERTY LTD,65057,17/05/2022,CP-HDC131,TA WE 08.05.22,30/05/2022,7.6,38,45.6,Homelessness,B&B Accommodation,64401
http://statistics.data.gov.uk/id/local-authority/12UE,Huntingdonshire District Council,201011,CENTENNIAL PROPERTY LTD,65548,01/06/2022,CP-HDC132,HOUSING TA WE 310522,09/06/2022,60.8,304,364.8,Homelessness,B&B Accommodation,64401
http://statistics.data.gov.uk/id/local-authority/12UE,Huntingdonshire District Council,201011,CENTENNIAL PROPERTY LTD,65548,01/06/2022,CP-HDC132,HOUSING TA WE 310522,09/06/2022,135,675,810,Homelessness,B&B Accommodation,64401
http://statistics.data.gov.uk/id/local-authority/12UE,Huntingdonshire District Council,201011,CENTENNIAL PROPERTY LTD,62394,01/04/2022,CP-HDC128,TA 17-31.03.22,19/05/2022,71.25,570,641.25,Homelessness,B&B Accommodation,64401
http://statistics.data.gov.uk/id/local-authority/12UE,Huntingdonshire District Council,201011,CENTENNIAL PROPERTY LTD,64106,01/05/2022,CP-HDC130,TA 150422-300422,12/05/2022,121.6,608,729.6,Homelessness,B&B Accommodation,64401
http://statistics.data.gov.uk/id/local-authority/12UE,Huntingdonshire District Council,201011,CENTENNIAL PROPERTY LTD,65057,17/05/2022,CP-HDC131,TA WE 08.05.22,30/05/2022,121.6,608,729.6,Homelessness,B&B Accommodation,64401
http://statistics.data.gov.uk/id/local-authority/12UE,Huntingdonshire District Council,201011,CENTENNIAL PROPERTY LTD,62862,19/04/2022,CP-HDC129,TA- 01-14.04.22,21/04/2022,106.4,532,638.4,Homelessness,B&B Accommodation,64401
http://statistics.data.gov.uk/id/local-authority/12UE,Huntingdonshire District Council,201011,CENTENNIAL PROPERTY LTD,65548,01/06/2022,CP-HDC132,HOUSING TA WE 310522,09/06/2022,114,570,684,Homelessness,B&B Accommodation,64401
http://statistics.data.gov.uk/id/local-authority/12UE,Huntingdonshire District Council,201011,CENTENNIAL PROPERTY LTD,62394,01/04/2022,CP-HDC128,TA 17-31.03.22,19/05/2022,84.38,675,759.38,Homelessness,B&B Accommodation,64401
http://statistics.data.gov.uk/id/local-authority/12UE,Huntingdonshire District Council,201011,CENTENNIAL PROPERTY LTD,64106,01/05/2022,CP-HDC130,TA 150422-300422,12/05/2022,144,720,864,Homelessness,B&B Accommodation,64401
http://statistics.data.gov.uk/id/local-authority/12UE,Huntingdonshire District Council,201011,CENTENNIAL PROPERTY LTD,62862,19/04/2022,CP-HDC129,TA- 01-14.04.22,21/04/2022,126,630,756,Homelessness,B&B Accommodation,64401
http://statistics.data.gov.uk/id/local-authority/12UE,Huntingdonshire District Council,201011,CENTENNIAL PROPERTY LTD,64106,01/05/2022,CP-HDC130,TA 150422-300422,12/05/2022,36,180,216,Homelessness,B&B Accommodation,64401
http://statistics.data.gov.uk/id/local-authority/12UE,Huntingdonshire District Council,201011,CENTENNIAL PROPERTY LTD,65057,17/05/2022,CP-HDC131,TA WE 08.05.22,30/05/2022,45,225,270,Homelessness,B&B Accommodation,64401
http://statistics.data.gov.uk/id/local-authority/12UE,Huntingdonshire District Council,201011,CENTENNIAL PROPERTY LTD,62394,01/04/2022,CP-HDC128,TA 17-31.03.22,19/05/2022,5.63,45,50.63,Homelessness,B&B Accommodation,64401
http://statistics.data.gov.uk/id/local-authority/12UE,Huntingdonshire District Council,201011,CENTENNIAL PROPERTY LTD,64106,01/05/2022,CP-HDC130,TA 150422-300422,12/05/2022,144,720,864,Homelessness,B&B Accommodation,64401
http://statistics.data.gov.uk/id/local-authority/12UE,Huntingdonshire District Council,201011,CENTENNIAL PROPERTY LTD,65057,17/05/2022,CP-HDC131,TA WE 08.05.22,30/05/2022,144,720,864,Homelessness,B&B Accommodation,64401
http://statistics.data.gov.uk/id/local-authority/12UE,Huntingdonshire District Council,201011,CENTENNIAL PROPERTY LTD,62862,19/04/2022,CP-HDC129,TA- 01-14.04.22,21/04/2022,126,630,756,Homelessness,B&B Accommodation,64401
http://statistics.data.gov.uk/id/local-authority/12UE,Huntingdonshire District Council,201011,CENTENNIAL PROPERTY LTD,65548,01/06/2022,CP-HDC132,HOUSING TA WE 310522,09/06/2022,72,360,432,Homelessness,B&B Accommodation,64401
http://statistics.data.gov.uk/id/local-authority/12UE,Huntingdonshire District Council,201011,CENTENNIAL PROPERTY LTD,62394,01/04/2022,CP-HDC128,TA 17-31.03.22,19/05/2022,33.75,270,303.75,Homelessness,B&B Accommodation,64401
http://statistics.data.gov.uk/id/local-authority/12UE,Huntingdonshire District Council,201011,CENTENNIAL PROPERTY LTD,62862,19/04/2022,CP-HDC129,TA- 01-14.04.22,21/04/2022,36,180,216,Homelessness,B&B Accommodation,64401
http://statistics.data.gov.uk/id/local-authority/12UE,Huntingdonshire District Council,201011,CENTENNIAL PROPERTY LTD,62394,01/04/2022,CP-HDC128,TA 17-31.03.22,19/05/2022,103.12,825,928.12,Homelessness,B&B Accommodation,64401
http://statistics.data.gov.uk/id/local-authority/12UE,Huntingdonshire District Council,201011,CENTENNIAL PROPERTY LTD,64106,01/05/2022,CP-HDC130,TA 150422-300422,12/05/2022,176,880,1056,Homelessness,B&B Accommodation,64401
http://statistics.data.gov.uk/id/local-authority/12UE,Huntingdonshire District Council,201011,CENTENNIAL PROPERTY LTD,65057,17/05/2022,CP-HDC131,TA WE 08.05.22,30/05/2022,176,880,1056,Homelessness,B&B Accommodation,64401
http://statistics.data.gov.uk/id/local-authority/12UE,Huntingdonshire District Council,201011,CENTENNIAL PROPERTY LTD,62862,19/04/2022,CP-HDC129,TA- 01-14.04.22,21/04/2022,154,770,924,Homelessness,B&B Accommodation,64401
http://statistics.data.gov.uk/id/local-authority/12UE,Huntingdonshire District Council,201011,CENTENNIAL PROPERTY LTD,65548,01/06/2022,CP-HDC132,HOUSING TA WE 310522,09/06/2022,165,825,990,Homelessness,B&B Accommodation,64401
http://statistics.data.gov.uk/id/local-authority/12UE,Huntingdonshire District Council,201011,CENTENNIAL PROPERTY LTD,62394,01/04/2022,CP-HDC128,TA 17-31.03.22,19/05/2022,71.25,570,641.25,Homelessness,B&B Accommodation,64401
http://statistics.data.gov.uk/id/local-authority/12UE,Huntingdonshire District Council,201011,CENTENNIAL PROPERTY LTD,64106,01/05/2022,CP-HDC130,TA 150422-300422,12/05/2022,45.6,228,273.6,Homelessness,B&B Accommodation,64401
http://statistics.data.gov.uk/id/local-authority/12UE,Huntingdonshire District Council,201011,CENTENNIAL PROPERTY LTD,62862,19/04/2022,CP-HDC129,TA- 01-14.04.22,21/04/2022,106.4,532,638.4,Homelessness,B&B Accommodation,64401
http://statistics.data.gov.uk/id/local-authority/12UE,Huntingdonshire District Council,201011,CENTENNIAL PROPERTY LTD,62394,01/04/2022,CP-HDC128,TA 17-31.03.22,19/05/2022,41.25,330,371.25,Homelessness,B&B Accommodation,64401
http://statistics.data.gov.uk/id/local-authority/12UE,Huntingdonshire District Council,201011,CENTENNIAL PROPERTY LTD,62394,01/04/2022,CP-HDC128,TA 17-31.03.22,19/05/2022,45,360,405,Homelessness,B&B Accommodation,64401
http://statistics.data.gov.uk/id/local-authority/12UE,Huntingdonshire District Council,201011,CENTENNIAL PROPERTY LTD,62394,01/04/2022,CP-HDC128,TA 17-31.03.22,19/05/2022,84.37,675,759.37,Homelessness,B&B Accommodation,64401
http://statistics.data.gov.uk/id/local-authority/12UE,Huntingdonshire District Council,201011,CENTENNIAL PROPERTY LTD,64106,01/05/2022,CP-HDC130,TA 150422-300422,12/05/2022,144,720,864,Homelessness,B&B Accommodation,64401
http://statistics.data.gov.uk/id/local-authority/12UE,Huntingdonshire District Council,201011,CENTENNIAL PROPERTY LTD,65057,17/05/2022,CP-HDC131,TA WE 08.05.22,30/05/2022,72,360,432,Homelessness,B&B Accommodation,64401
http://statistics.data.gov.uk/id/local-authority/12UE,Huntingdonshire District Council,201011,CENTENNIAL PROPERTY LTD,62862,19/04/2022,CP-HDC129,TA- 01-14.04.22,21/04/2022,126,630,756,Homelessness,B&B Accommodation,64401
http://statistics.data.gov.uk/id/local-authority/12UE,Huntingdonshire District Council,201011,CENTENNIAL PROPERTY LTD,62394,01/04/2022,CP-HDC128,TA 17-31.03.22,19/05/2022,84.38,675,759.38,Homelessness,B&B Accommodation,64401
http://statistics.data.gov.uk/id/local-authority/12UE,Huntingdonshire District Council,201011,CENTENNIAL PROPERTY LTD,62862,19/04/2022,CP-HDC129,TA- 01-14.04.22,21/04/2022,45,225,270,Homelessness,B&B Accommodation,64401
http://statistics.data.gov.uk/id/local-authority/12UE,Huntingdonshire District Council,201011,CENTENNIAL PROPERTY LTD,62394,01/04/2022,CP-HDC128,TA 17-31.03.22,19/05/2022,103.13,825,928.13,Homelessness,B&B Accommodation,64401
http://statistics.data.gov.uk/id/local-authority/12UE,Huntingdonshire District Council,201011,CENTENNIAL PROPERTY LTD,64106,01/05/2022,CP-HDC130,TA 150422-300422,12/05/2022,176,880,1056,Homelessness,B&B Accommodation,64401
http://statistics.data.gov.uk/id/local-authority/12UE,Huntingdonshire District Council,201011,CENTENNIAL PROPERTY LTD,65057,17/05/2022,CP-HDC131,TA WE 08.05.22,30/05/2022,165,825,990,Homelessness,B&B Accommodation,64401
http://statistics.data.gov.uk/id/local-authority/12UE,Huntingdonshire District Council,201011,CENTENNIAL PROPERTY LTD,62862,19/04/2022,CP-HDC129,TA- 01-14.04.22,21/04/2022,154,770,924,Homelessness,B&B Accommodation,64401
http://statistics.data.gov.uk/id/local-authority/12UE,Huntingdonshire District Council,201011,CENTENNIAL PROPERTY LTD,62394,01/04/2022,CP-HDC128,TA 17-31.03.22,19/05/2022,84.37,675,759.37,Homelessness,B&B Accommodation,64401
http://statistics.data.gov.uk/id/local-authority/12UE,Huntingdonshire District Council,201011,CENTENNIAL PROPERTY LTD,64106,01/05/2022,CP-HDC130,TA 150422-300422,12/05/2022,144,720,864,Homelessness,B&B Accommodation,64401
http://statistics.data.gov.uk/id/local-authority/12UE,Huntingdonshire District Council,201011,CENTENNIAL PROPERTY LTD,65057,17/05/2022,CP-HDC131,TA WE 08.05.22,30/05/2022,144,720,864,Homelessness,B&B Accommodation,64401
http://statistics.data.gov.uk/id/local-authority/12UE,Huntingdonshire District Council,201011,CENTENNIAL PROPERTY LTD,62862,19/04/2022,CP-HDC129,TA- 01-14.04.22,21/04/2022,126,630,756,Homelessness,B&B Accommodation,64401
http://statistics.data.gov.uk/id/local-authority/12UE,Huntingdonshire District Council,201011,CENTENNIAL PROPERTY LTD,65548,01/06/2022,CP-HDC132,HOUSING TA WE 310522,09/06/2022,135,675,810,Homelessness,B&B Accommodation,64401
http://statistics.data.gov.uk/id/local-authority/12UE,Huntingdonshire District Council,201011,CENTENNIAL PROPERTY LTD,65548,01/06/2022,CP-HDC132,HOUSING TA WE 310522,09/06/2022,53.2,266,319.2,Homelessness,B&B Accommodation,64401
http://statistics.data.gov.uk/id/local-authority/12UE,Huntingdonshire District Council,201011,CENTENNIAL PROPERTY LTD,65057,17/05/2022,CP-HDC131,TA WE 08.05.22,30/05/2022,144,720,864,Homelessness,B&B Accommodation,64401
http://statistics.data.gov.uk/id/local-authority/12UE,Huntingdonshire District Council,201011,CENTENNIAL PROPERTY LTD,65548,01/06/2022,CP-HDC132,HOUSING TA WE 310522,09/06/2022,135,675,810,Homelessness,B&B Accommodation,64401
http://statistics.data.gov.uk/id/local-authority/12UE,Huntingdonshire District Council,201011,CENTENNIAL PROPERTY LTD,65057,17/05/2022,CP-HDC131,TA WE 08.05.22,30/05/2022,38,190,228,Homelessness,B&B Accommodation,64401
http://statistics.data.gov.uk/id/local-authority/12UE,Huntingdonshire District Council,201011,CENTENNIAL PROPERTY LTD,65548,01/06/2022,CP-HDC132,HOUSING TA WE 310522,09/06/2022,106.4,532,638.4,Homelessness,B&B Accommodation,64401
http://statistics.data.gov.uk/id/local-authority/12UE,Huntingdonshire District Council,201011,CENTENNIAL PROPERTY LTD,65548,01/06/2022,CP-HDC132,HOUSING TA WE 310522,09/06/2022,106.4,532,638.4,Homelessness,B&B Accommodation,64401
http://statistics.data.gov.uk/id/local-authority/12UE,Huntingdonshire District Council,201486,CENTRICA BUSINESS SOLUTIONS UK LTD,65117,18/05/2022,22501730,Premier Maint Cover 2022/23,09/06/2022,2731.18,13655.89,16387.07,OLH - Site & Centre Management,Maintenance - Mechanical And Electrical,60203
http://statistics.data.gov.uk/id/local-authority/12UE,Huntingdonshire District Council,201486,CENTRICA BUSINESS SOLUTIONS UK LTD,65118,18/05/2022,22501738,Premier Maint Cover 2022/23,09/06/2022,2731.18,13655.89,16387.07,OLSI - Site & Centre Management,Maintenance - Mechanical And Electrical,60203
http://statistics.data.gov.uk/id/local-authority/12UE,Huntingdonshire District Council,200179,CERTAS ENERGY T/A PACE FUELCARE CERTAS ENERGY T/A PACE FUELCARE,62844,14/04/2022,7182897,OLSIO Diesel,12/05/2022,265.97,1329.83,1595.8,OLSIO - Site & Centre Management,Fuel,60902
http://statistics.data.gov.uk/id/local-authority/12UE,Huntingdonshire District Council,202084,CHARTER PROPERTY REPAIRS,65711,05/06/2022,REDACTED,REDACTED,23/06/2022,0,1714.69,1714.69,VAT,VAT Input Tax,11727
http://statistics.data.gov.uk/id/local-authority/12UE,Huntingdonshire District Council,201210,Chesterton Parish Council,63400,27/04/2022,PARISH PRECEPT APR 22,Parish Precept - April 2022,27/04/2022,0,1000,1000,P C Precept Chesterton,Precepts,66301
http://statistics.data.gov.uk/id/local-authority/12UE,Huntingdonshire District Council,200190,CHIPSIDE CHIPSIDE,62384,31/03/2022,S222945,MiPermit Fee mAR22,28/04/2022,351,1755,2106,Car Park Management,Contract Charges ,61800
http://statistics.data.gov.uk/id/local-authority/12UE,Huntingdonshire District Council,200190,CHIPSIDE CHIPSIDE,62384,31/03/2022,S222945,MiPermit Fee mAR22,28/04/2022,1,5,6,Car Park Management,Contract Charges ,61800
http://statistics.data.gov.uk/id/local-authority/12UE,Huntingdonshire District Council,200190,CHIPSIDE CHIPSIDE,62383,31/03/2022,S223023,MiPermit Charge Mar22,28/04/2022,91.76,458.79,550.55,Car Park Management,Contract Charges ,61800
http://statistics.data.gov.uk/id/local-authority/12UE,Huntingdonshire District Council,200190,CHIPSIDE CHIPSIDE,62383,31/03/2022,S223023,MiPermit Charge Mar22,28/04/2022,0.21,1.02,1.23,Car Park Management,Contract Charges ,61800
http://statistics.data.gov.uk/id/local-authority/12UE,Huntingdonshire District Council,200511,CHORUS HOMES GROUP LTD,66590,10/06/2022,1191186,MHP Management Fee Apr-Jun22,30/06/2022,1414.07,7070.34,8484.41,Mobile Home Park,Management Charge,60411
http://statistics.data.gov.uk/id/local-authority/12UE,Huntingdonshire District Council,200511.02,CHORUS HOMES LTD  HLPREV,64552,17/05/2022,1189157,REDACTED,19/05/2022,0,1476.02,1476.02,Afghan Resettlement Scheme,"Purchase - Equipment, Furniture And Materials",61703
http://statistics.data.gov.uk/id/local-authority/12UE,Huntingdonshire District Council,200511.01,CHORUS HOMES LTD (PRIVATE RENTS),64625,19/05/2022,REDACTED,REDACTED,19/05/2022,0,1929.16,1929.16,Homelessness,Homeless Prevention Payments,64403
http://statistics.data.gov.uk/id/local-authority/12UE,Huntingdonshire District Council,200511.01,CHORUS HOMES LTD (PRIVATE RENTS),63359,27/04/2022,448448,REDACTED,28/04/2022,0,522.28,522.28,Homelessness,Homeless Prevention Payments,64403
http://statistics.data.gov.uk/id/local-authority/12UE,Huntingdonshire District Council,200511.01,CHORUS HOMES LTD (PRIVATE RENTS),64958,23/05/2022,REDACTED,REDACTED,26/05/2022,0,460,460,Homelessness,Homeless Prevention Payments,64403
http://statistics.data.gov.uk/id/local-authority/12UE,Huntingdonshire District Council,200511.01,CHORUS HOMES LTD (PRIVATE RENTS),64334,11/05/2022,REDACTED,REDACTED,16/05/2022,0,5710.25,5710.25,Homelessness,Homeless Prevention Payments,64403
http://statistics.data.gov.uk/id/local-authority/12UE,Huntingdonshire District Council,200511.01,CHORUS HOMES LTD (PRIVATE RENTS),62546,31/03/2022,REDACTED,REDACTED,13/04/2022,0,3241.71,3241.71,Homelessness,Homeless Prevention Payments,64403
http://statistics.data.gov.uk/id/local-authority/12UE,Huntingdonshire District Council,200511.01,CHORUS HOMES LTD (PRIVATE RENTS),64336,12/05/2022,REDACTED,REDACTED,16/05/2022,0,1300.71,1300.71,Homelessness,Homeless Prevention Payments,64403
http://statistics.data.gov.uk/id/local-authority/12UE,Huntingdonshire District Council,200511.01,CHORUS HOMES LTD (PRIVATE RENTS),64428,16/05/2022,644040,REDACTED,19/05/2022,0,650,650,Homelessness,Homeless Prevention Payments,64403
http://statistics.data.gov.uk/id/local-authority/12UE,Huntingdonshire District Council,200511.01,CHORUS HOMES LTD (PRIVATE RENTS),64627,19/05/2022,REDACTED,REDACTED,19/05/2022,0,2417.81,2417.81,Homelessness,Homeless Prevention Payments,64403
http://statistics.data.gov.uk/id/local-authority/12UE,Huntingdonshire District Council,200511.01,CHORUS HOMES LTD (PRIVATE RENTS),64626,19/05/2022,373606,REDACTED,19/05/2022,0,1385.87,1385.87,Homelessness,Homeless Prevention Payments,64403
http://statistics.data.gov.uk/id/local-authority/12UE,Huntingdonshire District Council,200511.01,CHORUS HOMES LTD (PRIVATE RENTS),65220,27/05/2022,REDACTED,REDACTED,01/06/2022,0,1500,1500,Homelessness,Homeless Prevention Payments,64403
http://statistics.data.gov.uk/id/local-authority/12UE,Huntingdonshire District Council,200511.01,CHORUS HOMES LTD (PRIVATE RENTS),65816,13/06/2022,31781167,REDACTED,16/06/2022,0,300,300,Homelessness,Homeless Prevention Payments,64403
http://statistics.data.gov.uk/id/local-authority/12UE,Huntingdonshire District Council,200511.01,CHORUS HOMES LTD (PRIVATE RENTS),65465,06/06/2022,PRF REFUND INV 810422,REFUND INVOICE 810422,09/06/2022,0,451.32,451.32,Sales Control 2,Sales Control 2,12052
http://statistics.data.gov.uk/id/local-authority/12UE,Huntingdonshire District Council,202713,Cinderella Support Services LTD,63523,31/03/2022,95097,Annual Roof Cleaning Contract,28/04/2022,440,2200,2640,OLSI - Site & Centre Management,Maintenance - Building,60201
http://statistics.data.gov.uk/id/local-authority/12UE,Huntingdonshire District Council,200195,CIPFA BUSINESS LIMITED CIPFA BUSINESS LIMITED,66580,07/03/2022,3163619,Staff Training 10.03.22,30/06/2022,118,590,708,Finance,Staff Development And Training,60115
http://statistics.data.gov.uk/id/local-authority/12UE,Huntingdonshire District Council,201192,CITIZENS ADVICE RURAL CAMBS,65845,07/06/2022,VOLUNTARY SECTOR 2022,HDC Voluntary Sec Agreement Apr-Sep22,23/06/2022,0,57850,57850,Voluntary Sector Grants,Grants And Contributions,64600
http://statistics.data.gov.uk/id/local-authority/12UE,Huntingdonshire District Council,200197,CIVICA UK LTD CIVICA UK LTD,64460,19/04/2022,M/RB099912,NDR Local Discount Module 22/23,19/05/2022,186.3,931.48,1117.78,HDC Business Case ,Ict Software,64071
http://statistics.data.gov.uk/id/local-authority/12UE,Huntingdonshire District Council,200197,CIVICA UK LTD CIVICA UK LTD,66642,08/06/2022,C/RB245330,IT Software 22/23,30/06/2022,1872.97,9364.86,11237.83,SCDC Recoverable,Ict Software,64071
http://statistics.data.gov.uk/id/local-authority/12UE,Huntingdonshire District Council,200197,CIVICA UK LTD CIVICA UK LTD,66642,08/06/2022,C/RB245330,IT Software 22/23,30/06/2022,1872.97,9364.86,11237.83,SCDC Recoverable,Ict Software,64071
http://statistics.data.gov.uk/id/local-authority/12UE,Huntingdonshire District Council,202854,CLEVELAND LAND SERVICES (GUISBOROUGH) LIMITED,62482,25/02/2022,40472,OLSIO Athletic Track Works,16/05/2022,315.15,1575.75,1890.9,OLSIO - Outdoor Sports,Maintenance - Building,60201
http://statistics.data.gov.uk/id/local-authority/12UE,Huntingdonshire District Council,202947,CMPNY B Ltd,64586,12/05/2022,10,OL CONSULTANCY,09/06/2022,0,1440,1440,One Leisure Management Team,Consultancy Fees,62400
http://statistics.data.gov.uk/id/local-authority/12UE,Huntingdonshire District Council,201445,CMS SUPATRAK LTD,65210,17/05/2022,104114,OPS ECO TREK,09/06/2022,36,180,216,Vehicles & Plant,Purchase Of Vehicles Related Costs,60906
http://statistics.data.gov.uk/id/local-authority/12UE,Huntingdonshire District Council,201445,CMS SUPATRAK LTD,65210,17/05/2022,104114,OPS ECO TREK,09/06/2022,36,180,216,Vehicles & Plant,Purchase Of Vehicles Related Costs,60906
http://statistics.data.gov.uk/id/local-authority/12UE,Huntingdonshire District Council,201445,CMS SUPATRAK LTD,65210,17/05/2022,104114,OPS ECO TREK,09/06/2022,36,180,216,Vehicles & Plant,Purchase Of Vehicles Related Costs,60906
http://statistics.data.gov.uk/id/local-authority/12UE,Huntingdonshire District Council,201445,CMS SUPATRAK LTD,65210,17/05/2022,104114,OPS ECO TREK,09/06/2022,36,180,216,Vehicles & Plant,Purchase Of Vehicles Related Costs,60906
http://statistics.data.gov.uk/id/local-authority/12UE,Huntingdonshire District Council,201012,COACH & HORSES,62657,10/04/2022,535,TA 04-13.04.22,21/04/2022,9,45,54,Homelessness,B&B Accommodation,64401
http://statistics.data.gov.uk/id/local-authority/12UE,Huntingdonshire District Council,201012,COACH & HORSES,62388,03/04/2022,534,TA- 28-31.03.22,11/04/2022,5.4,43.2,48.6,Homelessness,B&B Accommodation,64401
http://statistics.data.gov.uk/id/local-authority/12UE,Huntingdonshire District Council,201012,COACH & HORSES,63415,24/04/2022,537,TA - 18-24-04.22,28/04/2022,63,315,378,Homelessness,B&B Accommodation,64401
http://statistics.data.gov.uk/id/local-authority/12UE,Huntingdonshire District Council,201012,COACH & HORSES,64361,08/05/2022,539,TA- 02-08.05.22,16/05/2022,63,315,378,Homelessness,B&B Accommodation,64401
http://statistics.data.gov.uk/id/local-authority/12UE,Huntingdonshire District Council,201012,COACH & HORSES,63861,01/05/2022,538,TA- 25.04-01.05.22,09/05/2022,63,315,378,Homelessness,B&B Accommodation,64401
http://statistics.data.gov.uk/id/local-authority/12UE,Huntingdonshire District Council,201012,COACH & HORSES,64589,15/05/2022,540,TA- 09-15.05.22,19/05/2022,9,45,54,Homelessness,B&B Accommodation,64401
http://statistics.data.gov.uk/id/local-authority/12UE,Huntingdonshire District Council,201012,COACH & HORSES,62852,08/04/2022,536,TA 11-17.04.22,21/04/2022,63,315,378,Homelessness,B&B Accommodation,64401
http://statistics.data.gov.uk/id/local-authority/12UE,Huntingdonshire District Council,201012,COACH & HORSES,62657,10/04/2022,535,TA 04-13.04.22,21/04/2022,63,315,378,Homelessness,B&B Accommodation,64401
http://statistics.data.gov.uk/id/local-authority/12UE,Huntingdonshire District Council,201012,COACH & HORSES,62388,03/04/2022,534,TA- 28-31.03.22,11/04/2022,21.6,172.8,194.4,Homelessness,B&B Accommodation,64401
http://statistics.data.gov.uk/id/local-authority/12UE,Huntingdonshire District Council,201012,COACH & HORSES,62437,03/04/2022,534/1,TA 01-03.04.22,11/04/2022,27,135,162,Homelessness,B&B Accommodation,64401
http://statistics.data.gov.uk/id/local-authority/12UE,Huntingdonshire District Council,201012,COACH & HORSES,63415,24/04/2022,537,TA - 18-24-04.22,28/04/2022,30,150,180,Homelessness,B&B Accommodation,64401
http://statistics.data.gov.uk/id/local-authority/12UE,Huntingdonshire District Council,201012,COACH & HORSES,63861,01/05/2022,538,TA- 25.04-01.05.22,09/05/2022,20,100,120,Homelessness,B&B Accommodation,64401
http://statistics.data.gov.uk/id/local-authority/12UE,Huntingdonshire District Council,201012,COACH & HORSES,64361,08/05/2022,539,TA- 02-08.05.22,16/05/2022,40,200,240,Homelessness,B&B Accommodation,64401
http://statistics.data.gov.uk/id/local-authority/12UE,Huntingdonshire District Council,201012,COACH & HORSES,66548,26/06/2022,546,TA - 13-26.06.22,30/06/2022,140,700,840,Homelessness,B&B Accommodation,64401
http://statistics.data.gov.uk/id/local-authority/12UE,Huntingdonshire District Council,201012,COACH & HORSES,64589,15/05/2022,540,TA- 09-15.05.22,19/05/2022,70,350,420,Homelessness,B&B Accommodation,64401
http://statistics.data.gov.uk/id/local-authority/12UE,Huntingdonshire District Council,201012,COACH & HORSES,65507,05/06/2022,543,TA WE 050622,09/06/2022,70,350,420,Homelessness,B&B Accommodation,64401
http://statistics.data.gov.uk/id/local-authority/12UE,Huntingdonshire District Council,201012,COACH & HORSES,65225,29/05/2022,542,HOUSING TA WE 290522,01/06/2022,70,350,420,Homelessness,B&B Accommodation,64401
http://statistics.data.gov.uk/id/local-authority/12UE,Huntingdonshire District Council,201012,COACH & HORSES,64955,22/05/2022,541,TA 16-22.05.22,26/05/2022,70,350,420,Homelessness,B&B Accommodation,64401
http://statistics.data.gov.uk/id/local-authority/12UE,Huntingdonshire District Council,201012,COACH & HORSES,65855,12/06/2022,544,TA 06-12.06.22,16/06/2022,70,350,420,Homelessness,B&B Accommodation,64401
http://statistics.data.gov.uk/id/local-authority/12UE,Huntingdonshire District Council,201012,COACH & HORSES,63415,24/04/2022,537,TA - 18-24-04.22,28/04/2022,36,180,216,Homelessness,B&B Accommodation,64401
http://statistics.data.gov.uk/id/local-authority/12UE,Huntingdonshire District Council,201012,COACH & HORSES,64361,08/05/2022,539,TA- 02-08.05.22,16/05/2022,63,315,378,Homelessness,B&B Accommodation,64401
http://statistics.data.gov.uk/id/local-authority/12UE,Huntingdonshire District Council,201012,COACH & HORSES,63861,01/05/2022,538,TA- 25.04-01.05.22,09/05/2022,63,315,378,Homelessness,B&B Accommodation,64401
http://statistics.data.gov.uk/id/local-authority/12UE,Huntingdonshire District Council,201012,COACH & HORSES,64589,15/05/2022,540,TA- 09-15.05.22,19/05/2022,18,90,108,Homelessness,B&B Accommodation,64401
http://statistics.data.gov.uk/id/local-authority/12UE,Huntingdonshire District Council,201012,COACH & HORSES,63415,24/04/2022,537,TA - 18-24-04.22,28/04/2022,63,315,378,Homelessness,B&B Accommodation,64401
http://statistics.data.gov.uk/id/local-authority/12UE,Huntingdonshire District Council,201012,COACH & HORSES,63861,01/05/2022,538,TA- 25.04-01.05.22,09/05/2022,63,315,378,Homelessness,B&B Accommodation,64401
http://statistics.data.gov.uk/id/local-authority/12UE,Huntingdonshire District Council,201012,COACH & HORSES,64589,15/05/2022,540,TA- 09-15.05.22,19/05/2022,45,225,270,Homelessness,B&B Accommodation,64401
http://statistics.data.gov.uk/id/local-authority/12UE,Huntingdonshire District Council,201012,COACH & HORSES,62852,08/04/2022,536,TA 11-17.04.22,21/04/2022,63,315,378,Homelessness,B&B Accommodation,64401
http://statistics.data.gov.uk/id/local-authority/12UE,Huntingdonshire District Council,201012,COACH & HORSES,62657,10/04/2022,535,TA 04-13.04.22,21/04/2022,63,315,378,Homelessness,B&B Accommodation,64401
http://statistics.data.gov.uk/id/local-authority/12UE,Huntingdonshire District Council,201012,COACH & HORSES,62388,03/04/2022,534,TA- 28-31.03.22,11/04/2022,21.6,172.8,194.4,Homelessness,B&B Accommodation,64401
http://statistics.data.gov.uk/id/local-authority/12UE,Huntingdonshire District Council,201012,COACH & HORSES,62437,03/04/2022,534/1,TA 01-03.04.22,11/04/2022,27,135,162,Homelessness,B&B Accommodation,64401
http://statistics.data.gov.uk/id/local-authority/12UE,Huntingdonshire District Council,201012,COACH & HORSES,62388,03/04/2022,534,TA- 28-31.03.22,11/04/2022,10.8,86.4,97.2,Homelessness,B&B Accommodation,64401
http://statistics.data.gov.uk/id/local-authority/12UE,Huntingdonshire District Council,201012,COACH & HORSES,63415,24/04/2022,537,TA - 18-24-04.22,28/04/2022,63,315,378,Homelessness,B&B Accommodation,64401
http://statistics.data.gov.uk/id/local-authority/12UE,Huntingdonshire District Council,201012,COACH & HORSES,64361,08/05/2022,539,TA- 02-08.05.22,16/05/2022,63,315,378,Homelessness,B&B Accommodation,64401
http://statistics.data.gov.uk/id/local-authority/12UE,Huntingdonshire District Council,201012,COACH & HORSES,63861,01/05/2022,538,TA- 25.04-01.05.22,09/05/2022,63,315,378,Homelessness,B&B Accommodation,64401
http://statistics.data.gov.uk/id/local-authority/12UE,Huntingdonshire District Council,201012,COACH & HORSES,64589,15/05/2022,540,TA- 09-15.05.22,19/05/2022,63,315,378,Homelessness,B&B Accommodation,64401
http://statistics.data.gov.uk/id/local-authority/12UE,Huntingdonshire District Council,201012,COACH & HORSES,62852,08/04/2022,536,TA 11-17.04.22,21/04/2022,63,315,378,Homelessness,B&B Accommodation,64401
http://statistics.data.gov.uk/id/local-authority/12UE,Huntingdonshire District Council,201012,COACH & HORSES,65507,05/06/2022,543,TA WE 050622,09/06/2022,63,315,378,Homelessness,B&B Accommodation,64401
http://statistics.data.gov.uk/id/local-authority/12UE,Huntingdonshire District Council,201012,COACH & HORSES,65225,29/05/2022,542,HOUSING TA WE 290522,01/06/2022,63,315,378,Homelessness,B&B Accommodation,64401
http://statistics.data.gov.uk/id/local-authority/12UE,Huntingdonshire District Council,201012,COACH & HORSES,62657,10/04/2022,535,TA 04-13.04.22,21/04/2022,63,315,378,Homelessness,B&B Accommodation,64401
http://statistics.data.gov.uk/id/local-authority/12UE,Huntingdonshire District Council,201012,COACH & HORSES,64955,22/05/2022,541,TA 16-22.05.22,26/05/2022,63,315,378,Homelessness,B&B Accommodation,64401
http://statistics.data.gov.uk/id/local-authority/12UE,Huntingdonshire District Council,201012,COACH & HORSES,65855,12/06/2022,544,TA 06-12.06.22,16/06/2022,27,135,162,Homelessness,B&B Accommodation,64401
http://statistics.data.gov.uk/id/local-authority/12UE,Huntingdonshire District Council,201012,COACH & HORSES,62388,03/04/2022,534,TA- 28-31.03.22,11/04/2022,21.6,172.8,194.4,Homelessness,B&B Accommodation,64401
http://statistics.data.gov.uk/id/local-authority/12UE,Huntingdonshire District Council,201012,COACH & HORSES,62437,03/04/2022,534/1,TA 01-03.04.22,11/04/2022,27,135,162,Homelessness,B&B Accommodation,64401
http://statistics.data.gov.uk/id/local-authority/12UE,Huntingdonshire District Council,201012,COACH & HORSES,62388,03/04/2022,534,TA- 28-31.03.22,11/04/2022,10.8,86.4,97.2,Homelessness,B&B Accommodation,64401
http://statistics.data.gov.uk/id/local-authority/12UE,Huntingdonshire District Council,201012,COACH & HORSES,62388,03/04/2022,534,TA- 28-31.03.22,11/04/2022,5.4,43.2,48.6,Homelessness,B&B Accommodation,64401
http://statistics.data.gov.uk/id/local-authority/12UE,Huntingdonshire District Council,201012,COACH & HORSES,63415,24/04/2022,537,TA - 18-24-04.22,28/04/2022,63,315,378,Homelessness,B&B Accommodation,64401
http://statistics.data.gov.uk/id/local-authority/12UE,Huntingdonshire District Council,201012,COACH & HORSES,64361,08/05/2022,539,TA- 02-08.05.22,16/05/2022,63,315,378,Homelessness,B&B Accommodation,64401
http://statistics.data.gov.uk/id/local-authority/12UE,Huntingdonshire District Council,201012,COACH & HORSES,66548,26/06/2022,546,TA - 13-26.06.22,30/06/2022,63,315,378,Homelessness,B&B Accommodation,64401
http://statistics.data.gov.uk/id/local-authority/12UE,Huntingdonshire District Council,201012,COACH & HORSES,63861,01/05/2022,538,TA- 25.04-01.05.22,09/05/2022,63,315,378,Homelessness,B&B Accommodation,64401
http://statistics.data.gov.uk/id/local-authority/12UE,Huntingdonshire District Council,201012,COACH & HORSES,64589,15/05/2022,540,TA- 09-15.05.22,19/05/2022,63,315,378,Homelessness,B&B Accommodation,64401
http://statistics.data.gov.uk/id/local-authority/12UE,Huntingdonshire District Council,201012,COACH & HORSES,62852,08/04/2022,536,TA 11-17.04.22,21/04/2022,63,315,378,Homelessness,B&B Accommodation,64401
http://statistics.data.gov.uk/id/local-authority/12UE,Huntingdonshire District Council,201012,COACH & HORSES,65507,05/06/2022,543,TA WE 050622,09/06/2022,63,315,378,Homelessness,B&B Accommodation,64401
http://statistics.data.gov.uk/id/local-authority/12UE,Huntingdonshire District Council,201012,COACH & HORSES,65225,29/05/2022,542,HOUSING TA WE 290522,01/06/2022,63,315,378,Homelessness,B&B Accommodation,64401
http://statistics.data.gov.uk/id/local-authority/12UE,Huntingdonshire District Council,201012,COACH & HORSES,62657,10/04/2022,535,TA 04-13.04.22,21/04/2022,63,315,378,Homelessness,B&B Accommodation,64401
http://statistics.data.gov.uk/id/local-authority/12UE,Huntingdonshire District Council,201012,COACH & HORSES,64955,22/05/2022,541,TA 16-22.05.22,26/05/2022,63,315,378,Homelessness,B&B Accommodation,64401
http://statistics.data.gov.uk/id/local-authority/12UE,Huntingdonshire District Council,201012,COACH & HORSES,65855,12/06/2022,544,TA 06-12.06.22,16/06/2022,63,315,378,Homelessness,B&B Accommodation,64401
http://statistics.data.gov.uk/id/local-authority/12UE,Huntingdonshire District Council,201012,COACH & HORSES,62388,03/04/2022,534,TA- 28-31.03.22,11/04/2022,21.6,172.8,194.4,Homelessness,B&B Accommodation,64401
http://statistics.data.gov.uk/id/local-authority/12UE,Huntingdonshire District Council,201012,COACH & HORSES,66154,19/06/2022,545,TA 13-19.06.22,23/06/2022,63,315,378,Homelessness,B&B Accommodation,64401
http://statistics.data.gov.uk/id/local-authority/12UE,Huntingdonshire District Council,201012,COACH & HORSES,62437,03/04/2022,534/1,TA 01-03.04.22,11/04/2022,27,135,162,Homelessness,B&B Accommodation,64401
http://statistics.data.gov.uk/id/local-authority/12UE,Huntingdonshire District Council,201012,COACH & HORSES,62388,03/04/2022,534,TA- 28-31.03.22,11/04/2022,16.2,129.6,145.8,Homelessness,B&B Accommodation,64401
http://statistics.data.gov.uk/id/local-authority/12UE,Huntingdonshire District Council,201012,COACH & HORSES,63415,24/04/2022,537,TA - 18-24-04.22,28/04/2022,63,315,378,Homelessness,B&B Accommodation,64401
http://statistics.data.gov.uk/id/local-authority/12UE,Huntingdonshire District Council,201012,COACH & HORSES,64361,08/05/2022,539,TA- 02-08.05.22,16/05/2022,63,315,378,Homelessness,B&B Accommodation,64401
http://statistics.data.gov.uk/id/local-authority/12UE,Huntingdonshire District Council,201012,COACH & HORSES,63861,01/05/2022,538,TA- 25.04-01.05.22,09/05/2022,63,315,378,Homelessness,B&B Accommodation,64401
http://statistics.data.gov.uk/id/local-authority/12UE,Huntingdonshire District Council,201012,COACH & HORSES,64589,15/05/2022,540,TA- 09-15.05.22,19/05/2022,63,315,378,Homelessness,B&B Accommodation,64401
http://statistics.data.gov.uk/id/local-authority/12UE,Huntingdonshire District Council,201012,COACH & HORSES,62852,08/04/2022,536,TA 11-17.04.22,21/04/2022,63,315,378,Homelessness,B&B Accommodation,64401
http://statistics.data.gov.uk/id/local-authority/12UE,Huntingdonshire District Council,201012,COACH & HORSES,64955,22/05/2022,541,TA 16-22.05.22,26/05/2022,36,180,216,Homelessness,B&B Accommodation,64401
http://statistics.data.gov.uk/id/local-authority/12UE,Huntingdonshire District Council,201012,COACH & HORSES,63415,24/04/2022,537,TA - 18-24-04.22,28/04/2022,54,270,324,Homelessness,B&B Accommodation,64401
http://statistics.data.gov.uk/id/local-authority/12UE,Huntingdonshire District Council,201012,COACH & HORSES,63861,01/05/2022,538,TA- 25.04-01.05.22,09/05/2022,9,45,54,Homelessness,B&B Accommodation,64401
http://statistics.data.gov.uk/id/local-authority/12UE,Huntingdonshire District Council,201012,COACH & HORSES,65507,05/06/2022,543,TA WE 050622,09/06/2022,18,90,108,Homelessness,B&B Accommodation,64401
http://statistics.data.gov.uk/id/local-authority/12UE,Huntingdonshire District Council,201012,COACH & HORSES,65225,29/05/2022,542,HOUSING TA WE 290522,01/06/2022,36,180,216,Homelessness,B&B Accommodation,64401
http://statistics.data.gov.uk/id/local-authority/12UE,Huntingdonshire District Council,201012,COACH & HORSES,66548,26/06/2022,546,TA - 13-26.06.22,30/06/2022,70,350,420,Homelessness,B&B Accommodation,64401
http://statistics.data.gov.uk/id/local-authority/12UE,Huntingdonshire District Council,201012,COACH & HORSES,65507,05/06/2022,543,TA WE 050622,09/06/2022,70,350,420,Homelessness,B&B Accommodation,64401
http://statistics.data.gov.uk/id/local-authority/12UE,Huntingdonshire District Council,201012,COACH & HORSES,65225,29/05/2022,542,HOUSING TA WE 290522,01/06/2022,30,150,180,Homelessness,B&B Accommodation,64401
http://statistics.data.gov.uk/id/local-authority/12UE,Huntingdonshire District Council,201012,COACH & HORSES,65855,12/06/2022,544,TA 06-12.06.22,16/06/2022,70,350,420,Homelessness,B&B Accommodation,64401
http://statistics.data.gov.uk/id/local-authority/12UE,Huntingdonshire District Council,201012,COACH & HORSES,66154,19/06/2022,545,TA 13-19.06.22,23/06/2022,70,350,420,Homelessness,B&B Accommodation,64401
http://statistics.data.gov.uk/id/local-authority/12UE,Huntingdonshire District Council,201012,COACH & HORSES,66548,26/06/2022,546,TA - 13-26.06.22,30/06/2022,70,350,420,Homelessness,B&B Accommodation,64401
http://statistics.data.gov.uk/id/local-authority/12UE,Huntingdonshire District Council,201012,COACH & HORSES,66154,19/06/2022,545,TA 13-19.06.22,23/06/2022,20,100,120,Homelessness,B&B Accommodation,64401
http://statistics.data.gov.uk/id/local-authority/12UE,Huntingdonshire District Council,201012,COACH & HORSES,66154,19/06/2022,545,TA 13-19.06.22,23/06/2022,10,50,60,Homelessness,B&B Accommodation,64401
http://statistics.data.gov.uk/id/local-authority/12UE,Huntingdonshire District Council,201012,COACH & HORSES,66548,26/06/2022,546,TA - 13-26.06.22,30/06/2022,70,350,420,Homelessness,B&B Accommodation,64401
http://statistics.data.gov.uk/id/local-authority/12UE,Huntingdonshire District Council,201012,COACH & HORSES,64361,08/05/2022,539,TA- 02-08.05.22,16/05/2022,63,315,378,Homelessness,B&B Costs Recovered,51406
http://statistics.data.gov.uk/id/local-authority/12UE,Huntingdonshire District Council,201211,Colne Parish Council,63400,27/04/2022,PARISH PRECEPT APR 22,Parish Precept - April 2022,27/04/2022,0,23000,23000,P C Precept Colne,Precepts,66301
http://statistics.data.gov.uk/id/local-authority/12UE,Huntingdonshire District Council,200207,COMPLETE BOWLING SERVICES LTD COMPLETE BOWLING SERVICES LTD,63726,15/04/2022,7-08 1406,Equipment Maintenance,12/05/2022,365.4,1827,2192.4,Leisure Cents - Future Improve,Maintenance - Building,60201
http://statistics.data.gov.uk/id/local-authority/12UE,Huntingdonshire District Council,202749,COMPLETE POOL CONTROLS LTD,61394,14/03/2022,DOC186366,OLH CHEMICALS,07/04/2022,108.69,543.47,652.16,OLH - Site & Centre Management,Chemicals,64000
http://statistics.data.gov.uk/id/local-authority/12UE,Huntingdonshire District Council,202749,COMPLETE POOL CONTROLS LTD,63394,22/04/2022,INV073099,OLH Pool Chemicals,19/05/2022,94.73,473.66,568.39,OLH - Site & Centre Management,Chemicals,64000
http://statistics.data.gov.uk/id/local-authority/12UE,Huntingdonshire District Council,202749,COMPLETE POOL CONTROLS LTD,65995,31/05/2022,INV074824,OLH Pool Chemicals,30/06/2022,126.33,631.64,757.97,OLH - Swimming,Chemicals,64000
http://statistics.data.gov.uk/id/local-authority/12UE,Huntingdonshire District Council,202749,COMPLETE POOL CONTROLS LTD,65705,07/06/2022,DOC189616,OLSI GRANULES,30/06/2022,103.82,519.1,622.92,OLR - Swimming,Chemicals,64000
http://statistics.data.gov.uk/id/local-authority/12UE,Huntingdonshire District Council,202749,COMPLETE POOL CONTROLS LTD,63480,27/04/2022,INV073316,OLR Pool Chemicals,19/05/2022,91.07,455.35,546.42,OLR - Swimming,Chemicals,64000
http://statistics.data.gov.uk/id/local-authority/12UE,Huntingdonshire District Council,202749,COMPLETE POOL CONTROLS LTD,65479,31/05/2022,INV074823,OLSTI HTH GRANULES,30/06/2022,131.05,655.24,786.29,OLSI - Swimming,Chemicals,64000
http://statistics.data.gov.uk/id/local-authority/12UE,Huntingdonshire District Council,202749,COMPLETE POOL CONTROLS LTD,64546,11/05/2022,INV073728,OLSI Pool Chemicals,01/06/2022,9.44,47.2,56.64,OLSI - Swimming,Chemicals,64000
http://statistics.data.gov.uk/id/local-authority/12UE,Huntingdonshire District Council,202749,COMPLETE POOL CONTROLS LTD,64546,11/05/2022,INV073728,OLSI Pool Chemicals,01/06/2022,85.9,429.5,515.4,OLSI - Swimming,Chemicals,64000
http://statistics.data.gov.uk/id/local-authority/12UE,Huntingdonshire District Council,202749,COMPLETE POOL CONTROLS LTD,64546,11/05/2022,INV073728,OLSI Pool Chemicals,01/06/2022,3.2,16,19.2,OLSI - Swimming,Chemicals,64000
http://statistics.data.gov.uk/id/local-authority/12UE,Huntingdonshire District Council,202749,COMPLETE POOL CONTROLS LTD,64546,11/05/2022,INV073728,OLSI Pool Chemicals,01/06/2022,10.35,51.75,62.1,OLSI - Swimming,Chemicals,64000
http://statistics.data.gov.uk/id/local-authority/12UE,Huntingdonshire District Council,202749,COMPLETE POOL CONTROLS LTD,64546,11/05/2022,INV073728,OLSI Pool Chemicals,01/06/2022,1.65,8.25,9.9,OLSI - Swimming,Chemicals,64000
http://statistics.data.gov.uk/id/local-authority/12UE,Huntingdonshire District Council,202749,COMPLETE POOL CONTROLS LTD,61669,23/03/2022,INV071964,OLSIO Pool Chemicals,13/04/2022,6.4,32,38.4,OLSI - Swimming,Chemicals,64000
http://statistics.data.gov.uk/id/local-authority/12UE,Huntingdonshire District Council,202749,COMPLETE POOL CONTROLS LTD,61669,23/03/2022,INV071964,OLSIO Pool Chemicals,13/04/2022,11.8,59,70.8,OLSI - Swimming,Chemicals,64000
http://statistics.data.gov.uk/id/local-authority/12UE,Huntingdonshire District Council,202749,COMPLETE POOL CONTROLS LTD,61669,23/03/2022,INV071964,OLSIO Pool Chemicals,13/04/2022,65.9,329.5,395.4,OLSI - Swimming,Chemicals,64000
http://statistics.data.gov.uk/id/local-authority/12UE,Huntingdonshire District Council,202749,COMPLETE POOL CONTROLS LTD,61669,23/03/2022,INV071964,OLSIO Pool Chemicals,13/04/2022,1.65,8.25,9.9,OLSI - Swimming,Chemicals,64000
http://statistics.data.gov.uk/id/local-authority/12UE,Huntingdonshire District Council,202749,COMPLETE POOL CONTROLS LTD,61669,23/03/2022,INV071964,OLSIO Pool Chemicals,13/04/2022,9,45,54,OLSI - Swimming,Chemicals,64000
http://statistics.data.gov.uk/id/local-authority/12UE,Huntingdonshire District Council,202749,COMPLETE POOL CONTROLS LTD,63192,11/04/2022,INV072577,OLSI Pool Chemicals,05/05/2022,65.9,329.5,395.4,OLSI - Swimming,Chemicals,64000
http://statistics.data.gov.uk/id/local-authority/12UE,Huntingdonshire District Council,202749,COMPLETE POOL CONTROLS LTD,63192,11/04/2022,INV072577,OLSI Pool Chemicals,05/05/2022,3.2,16,19.2,OLSI - Swimming,Chemicals,64000
http://statistics.data.gov.uk/id/local-authority/12UE,Huntingdonshire District Council,202749,COMPLETE POOL CONTROLS LTD,63192,11/04/2022,INV072577,OLSI Pool Chemicals,05/05/2022,1.65,8.25,9.9,OLSI - Swimming,Chemicals,64000
http://statistics.data.gov.uk/id/local-authority/12UE,Huntingdonshire District Council,202749,COMPLETE POOL CONTROLS LTD,63192,11/04/2022,INV072577,OLSI Pool Chemicals,05/05/2022,9,45,54,OLSI - Swimming,Chemicals,64000
http://statistics.data.gov.uk/id/local-authority/12UE,Huntingdonshire District Council,202749,COMPLETE POOL CONTROLS LTD,61662,22/03/2022,INV071944,OLSN Pool Chemicals,13/04/2022,76.55,382.75,459.3,OLSN - Site & Centre Management,Chemicals,64000
http://statistics.data.gov.uk/id/local-authority/12UE,Huntingdonshire District Council,202749,COMPLETE POOL CONTROLS LTD,65917,31/05/2022,INV074822,OLSN Pool Chemicals,30/06/2022,149.68,748.38,898.06,OLSN - Swimming,Chemicals,64000
http://statistics.data.gov.uk/id/local-authority/12UE,Huntingdonshire District Council,202749,COMPLETE POOL CONTROLS LTD,63281,21/04/2022,INV073025,OLSN Pool Chemicals,19/05/2022,77.9,389.5,467.4,OLSN - Swimming,Chemicals,64000
http://statistics.data.gov.uk/id/local-authority/12UE,Huntingdonshire District Council,202749,COMPLETE POOL CONTROLS LTD,64893,20/05/2022,INV074158,OLSN Pool Chemicals,16/06/2022,73.57,367.87,441.44,OLSN - Swimming,Chemicals,64000
http://statistics.data.gov.uk/id/local-authority/12UE,Huntingdonshire District Council,202749,COMPLETE POOL CONTROLS LTD,65263,27/05/2022,INV074523,PO036144 CHEMICALS,23/06/2022,50.62,253.08,303.7,OLSN - Swimming,Chemicals,64000
http://statistics.data.gov.uk/id/local-authority/12UE,Huntingdonshire District Council,200210,COMPUTERSHARE VOUCHERS LTD COMPUTERSHARE VOUCHERS LTD,63236,21/04/2022,C-0003313901,ChildCare Admin Voucher,25/04/2022,0,1753.27,1753.27,Child Care Vouchers - Payroll,Childcare Admin Vouchers,60106
http://statistics.data.gov.uk/id/local-authority/12UE,Huntingdonshire District Council,200210,COMPUTERSHARE VOUCHERS LTD COMPUTERSHARE VOUCHERS LTD,64975,23/05/2022,C-0003323307,ChildCare Admin Voucher,26/05/2022,0,1753.27,1753.27,Child Care Vouchers - Payroll,Childcare Admin Vouchers,60106
http://statistics.data.gov.uk/id/local-authority/12UE,Huntingdonshire District Council,200210,COMPUTERSHARE VOUCHERS LTD COMPUTERSHARE VOUCHERS LTD,66638,24/06/2022,C-0003332761,ChildCare Admin Voucher,30/06/2022,0,1753.26,1753.26,Child Care Vouchers - Payroll,Childcare Admin Vouchers,60106
http://statistics.data.gov.uk/id/local-authority/12UE,Huntingdonshire District Council,200210,COMPUTERSHARE VOUCHERS LTD COMPUTERSHARE VOUCHERS LTD,63236,21/04/2022,C-0003313901,ChildCare Admin Voucher,25/04/2022,8.77,43.83,52.6,Payroll Services,Childcare Admin Vouchers,60106
http://statistics.data.gov.uk/id/local-authority/12UE,Huntingdonshire District Council,200210,COMPUTERSHARE VOUCHERS LTD COMPUTERSHARE VOUCHERS LTD,64975,23/05/2022,C-0003323307,ChildCare Admin Voucher,26/05/2022,8.77,43.83,52.6,Payroll Services,Childcare Admin Vouchers,60106
http://statistics.data.gov.uk/id/local-authority/12UE,Huntingdonshire District Council,200210,COMPUTERSHARE VOUCHERS LTD COMPUTERSHARE VOUCHERS LTD,66638,24/06/2022,C-0003332761,ChildCare Admin Voucher,30/06/2022,8.77,43.83,52.6,Payroll Services,Childcare Admin Vouchers,60106
http://statistics.data.gov.uk/id/local-authority/12UE,Huntingdonshire District Council,202898,Concept Event Solutions Ltd,61255,14/03/2022,INV-203574,OPS - STALLS GENERATOR,05/04/2022,114.66,573.28,687.94,Welcome Back Fund,Hire - Equipment Furniture And Materials,61700
http://statistics.data.gov.uk/id/local-authority/12UE,Huntingdonshire District Council,201216,Conington Parish Council,63400,27/04/2022,PARISH PRECEPT APR 22,Parish Precept - April 2022,27/04/2022,0,2650,2650,P C Precept Connington,Precepts,66301
http://statistics.data.gov.uk/id/local-authority/12UE,Huntingdonshire District Council,202818,CONOR BUXTON CARPENTRY LTD,63386,06/04/2022,1,REDACTED,16/05/2022,0,7038,7038,Disables Facilities Grants,Mandatory Grants,64601
http://statistics.data.gov.uk/id/local-authority/12UE,Huntingdonshire District Council,202906,Constellia Public Ltd,63482,27/04/2022,INV-0484,St Ives & Hunts Toilet Refurb,05/05/2022,6246,31230,37476,Upgrade/Replacement of Public Toilets,Consultancy Fees,62400
http://statistics.data.gov.uk/id/local-authority/12UE,Huntingdonshire District Council,202905,Construction Profiles Ltd,63982,30/03/2022,13391,facilities flashing work,09/06/2022,545,2725,3270,Pathfinder House,Maintenance - Building,60201
http://statistics.data.gov.uk/id/local-authority/12UE,Huntingdonshire District Council,202410,CORAL DESIGN MANAGEMENT,62853,10/04/2022,2145,Consultancy Fees,05/05/2022,0,2400,2400,Godmanchester Mill Weir Improvements,Contributions From Other Local Authorities (Income),51000
http://statistics.data.gov.uk/id/local-authority/12UE,Huntingdonshire District Council,200215,CORNERSTONE BARRISTERS CORNERSTONE BARRISTERS,64429,03/05/2022,155682 03/05/22,Barrister Fees Case 155682,19/05/2022,150,750,900,Customer Service Centres,Consultancy Fees,62400
http://statistics.data.gov.uk/id/local-authority/12UE,Huntingdonshire District Council,200215,CORNERSTONE BARRISTERS CORNERSTONE BARRISTERS,64926,16/05/2022,157303,Counsel Advice,09/06/2022,500,2500,3000,Development Management,Consultancy Fees,62400
http://statistics.data.gov.uk/id/local-authority/12UE,Huntingdonshire District Council,200215,CORNERSTONE BARRISTERS CORNERSTONE BARRISTERS,61193,10/03/2022,155647 10/03/22,Barrister Fees 155647,07/04/2022,300,1500,1800,Development Management,Consultancy Fees,62400
http://statistics.data.gov.uk/id/local-authority/12UE,Huntingdonshire District Council,200947,COVERGOLD LTD,62008,29/03/2022,164296,IT Hardware Microfishe,21/04/2022,730,3650,4380,Development Management,Ict Hardware,64070
http://statistics.data.gov.uk/id/local-authority/12UE,Huntingdonshire District Council,200947,COVERGOLD LTD,62849,07/02/2022,164114,Contract Renewal 2022/23,21/04/2022,86,430,516,HDC Business Case ,"Maintenance - Equipment, Furniture And Materials",61702
http://statistics.data.gov.uk/id/local-authority/12UE,Huntingdonshire District Council,201217,Covington Parish Meeting,63400,27/04/2022,PARISH PRECEPT APR 22,Parish Precept - April 2022,27/04/2022,0,1300,1300,P C Precept Covington,Precepts,66301
http://statistics.data.gov.uk/id/local-authority/12UE,Huntingdonshire District Council,200900,CRAEMER UK LTD,63237,21/04/2022,3043312,Ops Refuse Containers,19/05/2022,3354,16770,20124,Wheeled Bins,Refuse Containers/Litter Bins,61200
http://statistics.data.gov.uk/id/local-authority/12UE,Huntingdonshire District Council,202939,Create Signs Limited,62847,04/04/2022,51367,Signs,28/04/2022,286.67,1433.33,1720,Godmanchester Mill Weir Improvements,Contributions From Other Local Authorities (Income),51000
http://statistics.data.gov.uk/id/local-authority/12UE,Huntingdonshire District Council,202939,Create Signs Limited,62847,04/04/2022,51367,Signs,28/04/2022,10,50,60,Godmanchester Mill Weir Improvements,Contributions From Other Local Authorities (Income),51000
http://statistics.data.gov.uk/id/local-authority/12UE,Huntingdonshire District Council,202939,Create Signs Limited,62847,04/04/2022,51367,Signs,28/04/2022,10,50,60,Godmanchester Mill Weir Improvements,Contributions From Other Local Authorities (Income),51000
http://statistics.data.gov.uk/id/local-authority/12UE,Huntingdonshire District Council,201341,CROSS KEYS HOMES LTD,65001,19/05/2022,REDACTED,REDACTED,30/05/2022,0,1300.88,1300.88,Homelessness,Homeless Prevention Payments,64403
http://statistics.data.gov.uk/id/local-authority/12UE,Huntingdonshire District Council,201341,CROSS KEYS HOMES LTD,63764,27/04/2022,70381,REDACTED,05/05/2022,0,321.96,321.96,Homelessness,Rent Deposit Loan Payments,64405
http://statistics.data.gov.uk/id/local-authority/12UE,Huntingdonshire District Council,202245,CTA CONSULTANCY LTD,62864,08/04/2022,253,Revs DTI Consultancy,05/05/2022,110,550,660,Benefits Management,Printing,62001
http://statistics.data.gov.uk/id/local-authority/12UE,Huntingdonshire District Council,202513,CV-LIBRARY LTD,63524,04/04/2022,402132,Staff Recruitment Costs 12Months,28/04/2022,590,2950,3540,HR Services,Staff Recruitment Costs,60116
http://statistics.data.gov.uk/id/local-authority/12UE,Huntingdonshire District Council,202821,CVSS LIMITED,61434,17/03/2022,13758,5 CCTV Cameras Installed 07.03.22,13/04/2022,1365,6825,8190,Cctv Huntingdonshire,Cctv Cameras,69319
http://statistics.data.gov.uk/id/local-authority/12UE,Huntingdonshire District Council,202821,CVSS LIMITED,61445,15/03/2022,13757,Quoted Works & Installs 15.03.22,07/04/2022,130.6,653,783.6,Cctv Huntingdonshire,Cctv Cameras,69319
http://statistics.data.gov.uk/id/local-authority/12UE,Huntingdonshire District Council,202821,CVSS LIMITED,63350,28/02/2022,13737,CCTV Cameras,28/04/2022,120,600,720,Cctv Huntingdonshire,Cctv Cameras,69319
http://statistics.data.gov.uk/id/local-authority/12UE,Huntingdonshire District Council,202821,CVSS LIMITED,65241,30/05/2022,13869,CCTV PROJECT INSTALLATION,30/06/2022,2904.4,14522,17426.4,Cctv Huntingdonshire,"Purchase - Equipment, Furniture And Materials",61703
http://statistics.data.gov.uk/id/local-authority/12UE,Huntingdonshire District Council,202821,CVSS LIMITED,65240,30/05/2022,13868,CCTV SIGNAGE,30/06/2022,63.75,318.75,382.5,Cctv Huntingdonshire,"Purchase - Equipment, Furniture And Materials",61703
http://statistics.data.gov.uk/id/local-authority/12UE,Huntingdonshire District Council,200220,D & H SIGN & DISPLAY SERVICE D & H SIGN & DISPLAY SERVICE,63796,25/04/2022,7113,VK22BXY Fit HDC Livery,19/05/2022,139,695,834,Vehicles & Plant,Purchase Of Vehicles Related Costs,60906
http://statistics.data.gov.uk/id/local-authority/12UE,Huntingdonshire District Council,200220,D & H SIGN & DISPLAY SERVICE D & H SIGN & DISPLAY SERVICE,63797,25/04/2022,7110,VK22BYA Fit HDC Livery,19/05/2022,139,695,834,Vehicles & Plant,Purchase Of Vehicles Related Costs,60906
http://statistics.data.gov.uk/id/local-authority/12UE,Huntingdonshire District Council,200220,D & H SIGN & DISPLAY SERVICE D & H SIGN & DISPLAY SERVICE,63798,25/04/2022,7111,VK22BXX Fit HDC Livery,19/05/2022,139,695,834,Vehicles & Plant,Purchase Of Vehicles Related Costs,60906
http://statistics.data.gov.uk/id/local-authority/12UE,Huntingdonshire District Council,200220,D & H SIGN & DISPLAY SERVICE D & H SIGN & DISPLAY SERVICE,63799,25/04/2022,4112,VK22BXZ Fit HDC Livery,19/05/2022,139,695,834,Vehicles & Plant,Purchase Of Vehicles Related Costs,60906
http://statistics.data.gov.uk/id/local-authority/12UE,Huntingdonshire District Council,200221,D B TRANSPORT SERVICES D B TRANSPORT SERVICES,63138,28/03/2022,14098,VN66WLH Hopper Hose,25/04/2022,68.83,344.16,412.99,Recycling Collections,Vehicle Repairs And Maintenance,60904
http://statistics.data.gov.uk/id/local-authority/12UE,Huntingdonshire District Council,202634,D Houghton Ltd trading as Kings Landscapes,64362,13/05/2022,KIN8851,Priory Park Tree Works,09/06/2022,984,4920,5904,Arboricultural Team,Subcontractors,62401
http://statistics.data.gov.uk/id/local-authority/12UE,Huntingdonshire District Council,202634,D Houghton Ltd trading as Kings Landscapes,63393,28/02/2022,KIN8687,Emergency Tree Works- Henbrook,28/04/2022,435,2175,2610,Arboricultural Team,Subcontractors,62401
http://statistics.data.gov.uk/id/local-authority/12UE,Huntingdonshire District Council,202634,D Houghton Ltd trading as Kings Landscapes,62805,31/01/2022,KIN8807,Holt Island Willow Remove Limb,21/04/2022,179,895,1074,Arboricultural Team,Subcontractors,62401
http://statistics.data.gov.uk/id/local-authority/12UE,Huntingdonshire District Council,202702,D J SAYWELL LTD,66540,17/05/2022,51197,Pax Pits Materials,30/06/2022,369.6,1848,2217.6,Paxton Pits,Materials,61709
http://statistics.data.gov.uk/id/local-authority/12UE,Huntingdonshire District Council,200226,DAL-ROD (CAMRIDGESHIRE) DAL-ROD (CAMRIDGESHIRE),66613,28/02/2022,59249,Empty Fat Trap 22.02.22,30/06/2022,64,320,384,Eastfield House,Maintenance - Building,60201
http://statistics.data.gov.uk/id/local-authority/12UE,Huntingdonshire District Council,200226,DAL-ROD (CAMRIDGESHIRE) DAL-ROD (CAMRIDGESHIRE),61837,23/03/2022,59566,Repair Sewer Pipe- 35 Levellers Ln,13/04/2022,356,1780,2136,Industrial Properties,Maintenance - Building,60201
http://statistics.data.gov.uk/id/local-authority/12UE,Huntingdonshire District Council,200226,DAL-ROD (CAMRIDGESHIRE) DAL-ROD (CAMRIDGESHIRE),63308,08/04/2022,59826,OLH Fix Blockage 22.03.22,05/05/2022,50,250,300,OLH - Site & Centre Management,Maintenance - Building,60201
http://statistics.data.gov.uk/id/local-authority/12UE,Huntingdonshire District Council,200226,DAL-ROD (CAMRIDGESHIRE) DAL-ROD (CAMRIDGESHIRE),64105,04/05/2022,60070,ol blocked drain,26/05/2022,75,375,450,OLR - Site & Centre Management,Maintenance - Building,60201
http://statistics.data.gov.uk/id/local-authority/12UE,Huntingdonshire District Council,200226,DAL-ROD (CAMRIDGESHIRE) DAL-ROD (CAMRIDGESHIRE),63825,04/05/2022,60104,OLR Unblock Shower Gullies,26/05/2022,50,250,300,OLR - Site & Centre Management,Maintenance - Building,60201
http://statistics.data.gov.uk/id/local-authority/12UE,Huntingdonshire District Council,200226,DAL-ROD (CAMRIDGESHIRE) DAL-ROD (CAMRIDGESHIRE),61763,25/03/2022,59643,OLR  Clear 2 Drains,21/04/2022,125,625,750,OLR - Site & Centre Management,"Maintenance - Equipment, Furniture And Materials",61702
http://statistics.data.gov.uk/id/local-authority/12UE,Huntingdonshire District Council,200226,DAL-ROD (CAMRIDGESHIRE) DAL-ROD (CAMRIDGESHIRE),61440,17/03/2022,59519,OLSIO CCTV Survey 16.03.22,13/04/2022,53,265,318,OLSI - Burgess Hall,Maintenance - Building,60201
http://statistics.data.gov.uk/id/local-authority/12UE,Huntingdonshire District Council,200226,DAL-ROD (CAMRIDGESHIRE) DAL-ROD (CAMRIDGESHIRE),65311,27/05/2022,60419,Grease Trap Maintenance,23/06/2022,64,320,384,Pathfinder House,Cleaning Services,60501
http://statistics.data.gov.uk/id/local-authority/12UE,Huntingdonshire District Council,200229,DATACENTRE UK DATACENTRE UK,65587,01/06/2022,476038,fire supression,30/06/2022,244,1220,1464,HDC Business Case ,Maintenance - Building,60201
http://statistics.data.gov.uk/id/local-authority/12UE,Huntingdonshire District Council,200229,DATACENTRE UK DATACENTRE UK,65587,01/06/2022,476038,fire supression,30/06/2022,114,570,684,HDC Business Case ,Maintenance - Building,60201
http://statistics.data.gov.uk/id/local-authority/12UE,Huntingdonshire District Council,201715,DATASHREDDERS LTD,62180,31/03/2022,102406,PFH Confidential Shredding 21/22,28/04/2022,54,270,324,Eastfield House,Shredding,64055
http://statistics.data.gov.uk/id/local-authority/12UE,Huntingdonshire District Council,201715,DATASHREDDERS LTD,65586,31/05/2022,103593,facilities confidential bins,30/06/2022,117.8,589,706.8,Pathfinder House,Shredding,64055
